date,department/service,beneficiary,amount,summary of purpose,category,transaction number,SAP vendor number
01.05.2022,ASSET MANAGEMENT,ARMINA LTD,"1,047.92",DISREPAIR,BUILDING R&M,2103471257,3000002121
01.05.2022,ASSET MANAGEMENT,ARMINA LTD,"1,358.54",DISREPAIR,PAYMENTS FOR LEGAL SERVICES,2103471256,3000002121
01.05.2022,ASSET MANAGEMENT,LONDON FIRE BRIGADE,352,ENG CONTRACTS (NORTH),LIFTS,5902522895,1000083629
01.05.2022,CENTRAL FUNCTIONS,BRESLIN CONSTRUCTION LTD,"12,000.00",COMMERCIAL PROPERTIES,BUILDING R&M,2103468566,3000001948
01.05.2022,COMMISSIONING & CENTRAL,WORKING ON WELLBEING LTD,"1,375.00",STRATEGIC DIRECTOR OF C&AS,EXTERNAL AGENCIES AND BODIES,5902522767,1000077251
01.05.2022,ENVIRONMENT AND LEISURE,BLOOM PROCUREMENT SERVICES LTD,"3,899.57",CAPITAL PS (LEISURE),CONSTRUCTION FEES  - EXTERNAL,5902522330,1000082531
01.05.2022,ENVIRONMENT AND LEISURE,BLOOM PROCUREMENT SERVICES LTD,"8,732.01",CAPITAL PS (LEISURE),CONSTRUCTION FEES  - EXTERNAL,5902522330,1000082531
01.05.2022,ENVIRONMENT DIRECTORATE,SOUTHWARK NEWSPAPER LTD,"1,644.00",HIGHWAYS DEVELOPMENT,MARKETING & PUBLICITY SERVICES,5902522395,1556957
01.05.2022,F & C S EXCLUDING CORPORATE BUDGETS,DSI BILLING SERVICES LTD,"3,385.72",ADMINISTRATIVE SUPPORT,POSTAGES,5902522862,1000058640
01.05.2022,HOUSING,LIFTEC LIFTS LTD,"137,932.51",PAYMENTS CONTROL ACCOUNT - LIFTEC,I-WORLD CONTRACTORS HOLDING ACCOUNT,5902522334,1000057278
01.05.2022,HOUSING GENERAL FUND,AJM ADAPTIONS LTD,"8,209.00",CAPITAL PS (HOUSING GF),CAPITAL GRANTS,5902522921,1000080297
01.05.2022,HOUSING HRA,WALWORTH HOMES LTD,"29,220.20",CAPITAL PS (HRA),CONSTRUCTION FEES  - EXTERNAL,5902521820,1000079197
01.05.2022,HOUSING HRA,SHERGROUP LTD,"4,320.00",CAPITAL PS (HRA),CONSTRUCTION FEES  - EXTERNAL,5902522359,1000087977
01.05.2022,HOUSING HRA,DURKAN LTD,"974,831.96",CAPITAL PS (HRA),CONSTRUCTION FEES  - EXTERNAL,2103465908,3000000960
01.05.2022,HR & OT,INDEED IRELAND OPERATIONS LTD,"48,000.00",NON RECHARGEABLE COSTS,OTHER EMPLOYEE EXPENSES,5902522408,1000085834
01.05.2022,LEISURE DIRECTORATE,FPS ARBORIST LTD,"13,500.00",TREES PRINCIPAL ROADS,TREE MAINTENANCE,5902522245,1000082343
01.05.2022,PLANNING AND TRANSPORT,SECURE-A-FIELD LTD,409.4,SUPPORT SERVICES,OFFICE EXPENSES,5902522955,1000072371
01.05.2022,STRATEGIC FINANCING BUDGETS,JOHNSON AUSTIN LTD,500,PROPERTY RELATED INSURANCE,PROFESSIONAL FEES,5902522393,1000040202
02.05.2022,ASSET MANAGEMENT,EG TRAINING SERVICES,887,REPAIRS OPERATIONS,TRAINING,5902522760,1000060933
02.05.2022,ASSET MANAGEMENT,EG TRAINING SERVICES,"1,070.00",REPAIRS OPERATIONS,TRAINING,5902522758,1000060933
02.05.2022,ASSET MANAGEMENT HGF,WHATEVER DESIGN LTD,288,TSFM CONTINGENCY,MARKETING & PUBLICITY SERVICES,5902522354,1000036500
02.05.2022,ENVIRONMENT AND LEISURE,EURO TRAINING SERVICES LTD,975,MANAGEMENT TEAM,TRAINING,5902522825,1000072728
02.05.2022,ENVIRONMENT DIRECTORATE,PACE ACCIDENT REPAIRS CENTRE LTD,380,COMMERCIAL VEH CTRL A/C,HIRED VEHICLES,5902522780,1000069899
02.05.2022,ENVIRONMENT DIRECTORATE,PACE ACCIDENT REPAIRS CENTRE LTD,380,COMMERCIAL VEH CTRL A/C,HIRED VEHICLES,5902522783,1000069899
02.05.2022,ENVIRONMENT DIRECTORATE,CYCLE CONFIDENT LTD,"20,000.00","ROAD SAFETY EDUCATION,TRAINING&PUBLICITY",PROFESSIONAL FEES,5902522564,1000070228
02.05.2022,F & C S EXCLUDING CORPORATE BUDGETS,CIVICA UK LTD,"8,502.01",CONSTITUTIONAL TEAM,SOFTWARE,5902522922,1730625
02.05.2022,LEISURE DIRECTORATE,JAPANESE KNOTWEED ERADICATION LTD,490,SOUTHWARK AREA TEAM,GROUNDS MAINTENANCE,5902522772,1000059297
02.05.2022,LEISURE DIRECTORATE,ASKEWS & HOLTS LIBRARY SERVICES LTD,"2,400.00",STOCK SERVICES,BOOKS & PUBLICATIONS,5902522821,1494168
02.05.2022,NEW BUILD,WEBB YATES ENGINEERS LTD,"7,936.00",DEVELOPMENT DELIVERY,PROFESSIONAL FEES,5902523013,1000085861
02.05.2022,REGENERATION,BRESLIN CONSTRUCTION LTD,"3,750.00",TOWER WORKSHOPS,BUILDING R&M,5902522968,1000078031
03.05.2022,LEISURE DIRECTORATE,REDAPPLES NEWSAGENT,411.45,LIBRARIES DEVELOPMENT,BOOKS & PUBLICATIONS,5902522887,11319405
04.05.2022,ADULT SOCIAL CARE,REDACTED PERSONAL DATA,488,APPOINTEESHIPS,OTHER PAYMENTS FOR CLIENTS,REDACTED,REDACTED
04.05.2022,ADULT SOCIAL CARE,THE DRIVE CARE HOMES LTD,"14,393.10",DISABILITIES LAC,EXTERNAL AGENCIES AND BODIES,2103471978,1000003889
04.05.2022,ADULT SOCIAL CARE,THE DRIVE CARE HOMES LTD,"1,210.00",DISABILITIES LAC,OTHER PAYMENTS FOR CLIENTS,2103472172,1000003889
04.05.2022,ADULT SOCIAL CARE,REDACTED PERSONAL DATA,"1,094.60",DISABILITIES LAC,PAYMENTS TO CARERS,REDACTED,REDACTED
04.05.2022,ADULT SOCIAL CARE,REDACTED PERSONAL DATA,"1,632.00",DISABILITIES LAC,PAYMENTS TO CARERS,REDACTED,REDACTED
04.05.2022,ADULT SOCIAL CARE,REDACTED PERSONAL DATA,756,DISABILITIES LAC,PAYMENTS TO CARERS,REDACTED,REDACTED
04.05.2022,ADULT SOCIAL CARE,REDACTED PERSONAL DATA,918.57,DISABILITIES LAC,PAYMENTS TO CARERS,REDACTED,REDACTED
04.05.2022,ADULT SOCIAL CARE,THE DRIVE CARE HOMES LTD,720,DISABILITIES LAC,RESIDENTIAL CARE,2103471979,1000003889
04.05.2022,ADULT SOCIAL CARE,THE DRIVE CARE HOMES LTD,"13,670.83",DISABILITIES LAC,RESIDENTIAL CARE,2103471980,1000003889
04.05.2022,ADULT SOCIAL CARE,THE BEECHES UK LTD,"26,957.14",DISABILITIES LAC,RESIDENTIAL CARE,2103471882,1000083173
04.05.2022,ADULT SOCIAL CARE,SAGECARE LTD,501.93,DISCHARGE TO ACCESS,HOMECARE - C&V,2103472197,1000080924
04.05.2022,ADULT SOCIAL CARE,SAGECARE LTD,420.61,DISCHARGE TO ACCESS,HOMECARE - IC,2103472278,1000080924
04.05.2022,ADULT SOCIAL CARE,THAMES HOMECARE SERVICE LTD,873.15,DISCHARGE TO ACCESS,HOMECARE - SPOT,2103472052,1000079295
04.05.2022,ADULT SOCIAL CARE,REDACTED PERSONAL DATA,262.5,FAMILY LINK,PAYMENTS TO CARERS,REDACTED,REDACTED
04.05.2022,ADULT SOCIAL CARE,REDACTED PERSONAL DATA,320,FAMILY LINK,PAYMENTS TO CARERS,REDACTED,REDACTED
04.05.2022,ADULT SOCIAL CARE,SAGECARE LTD,322.7,LD LTS 18-64,HOMECARE - C&V,2103472249,1000080924
04.05.2022,ADULT SOCIAL CARE,SAGECARE LTD,465.61,LD LTS 18-64,HOMECARE - C&V,2103472205,1000080924
04.05.2022,ADULT SOCIAL CARE,SAGECARE LTD,973.25,LD LTS 18-64,HOMECARE - C&V,2103472214,1000080924
04.05.2022,ADULT SOCIAL CARE,THAMES HOMECARE SERVICE LTD,825.17,MEM LTS 65+,HOMECARE - C&V,2103472160,1000079295
04.05.2022,ADULT SOCIAL CARE,SAGECARE LTD,626.96,MEM LTS 65+,HOMECARE - C&V,2103472303,1000080924
04.05.2022,ADULT SOCIAL CARE,SAGECARE LTD,646,MEM LTS 65+,HOMECARE - C&V,2103472212,1000080924
04.05.2022,ADULT SOCIAL CARE,SAGECARE LTD,654.62,MEM LTS 65+,HOMECARE - C&V,2103472195,1000080924
04.05.2022,ADULT SOCIAL CARE,SAGECARE LTD,871.29,MEM LTS 65+,HOMECARE - C&V,2103472327,1000080924
04.05.2022,ADULT SOCIAL CARE,SAGECARE LTD,"1,000.37",MEM LTS 65+,HOMECARE - C&V,2103472202,1000080924
04.05.2022,ADULT SOCIAL CARE,SAGECARE LTD,"1,180.16",MEM LTS 65+,HOMECARE - C&V,2103472336,1000080924
04.05.2022,ADULT SOCIAL CARE,SAGECARE LTD,"1,880.88",MEM LTS 65+,HOMECARE - C&V,2103472288,1000080924
04.05.2022,ADULT SOCIAL CARE,SAGECARE LTD,"3,111.75",MEM LTS 65+,HOMECARE - C&V,2103472223,1000080924
04.05.2022,ADULT SOCIAL CARE,THAMES HOMECARE SERVICE LTD,671.65,MEM LTS 65+,HOMECARE - SPOT,2103472034,1000079295
04.05.2022,ADULT SOCIAL CARE,LONDON CARE LTD,623.43,MEM STS 65+,HOMECARE - IC,2103471801,1000003398
04.05.2022,ADULT SOCIAL CARE,LONDON CARE LTD,296.23,MH LTS 18-64,HOMECARE - C&V,2103471754,1000003398
04.05.2022,ADULT SOCIAL CARE,LONDON CARE LTD,706.48,MH LTS 18-64,HOMECARE - C&V,2103471833,1000003398
04.05.2022,ADULT SOCIAL CARE,SAGECARE LTD,258.16,MH LTS 18-64,HOMECARE - C&V,2103472337,1000080924
04.05.2022,ADULT SOCIAL CARE,SAGECARE LTD,272,MH LTS 18-64,HOMECARE - C&V,2103472299,1000080924
04.05.2022,ADULT SOCIAL CARE,SAGECARE LTD,299.65,MH LTS 18-64,HOMECARE - C&V,2103472284,1000080924
04.05.2022,ADULT SOCIAL CARE,SAGECARE LTD,331.92,MH LTS 18-64,HOMECARE - C&V,2103472305,1000080924
04.05.2022,ADULT SOCIAL CARE,SAGECARE LTD,391,MH LTS 18-64,HOMECARE - C&V,2103472192,1000080924
04.05.2022,ADULT SOCIAL CARE,SAGECARE LTD,571.64,MH LTS 18-64,HOMECARE - C&V,2103472265,1000080924
04.05.2022,ADULT SOCIAL CARE,SAGECARE LTD,688.5,MH LTS 18-64,HOMECARE - C&V,2103472224,1000080924
04.05.2022,ADULT SOCIAL CARE,SAGECARE LTD,696.11,MH LTS 18-64,HOMECARE - C&V,2103472344,1000080924
04.05.2022,ADULT SOCIAL CARE,SAGECARE LTD,"1,534.25",MH LTS 18-64,HOMECARE - C&V,2103472206,1000080924
04.05.2022,ADULT SOCIAL CARE,LONDON CARE LTD,641.98,MH LTS 65+,HOMECARE - C&V,2103471806,1000003398
04.05.2022,ADULT SOCIAL CARE,LONDON CARE LTD,646.59,MH LTS 65+,HOMECARE - C&V,2103471792,1000003398
04.05.2022,ADULT SOCIAL CARE,LONDON CARE LTD,"1,637.04",MH LTS 65+,HOMECARE - C&V,2103471764,1000003398
04.05.2022,ADULT SOCIAL CARE,LONDON CARE LTD,"1,673.58",MH LTS 65+,HOMECARE - C&V,2103471829,1000003398
04.05.2022,ADULT SOCIAL CARE,SAGECARE LTD,266.46,MH LTS 65+,HOMECARE - C&V,2103472245,1000080924
04.05.2022,ADULT SOCIAL CARE,SAGECARE LTD,612,MH LTS 65+,HOMECARE - C&V,2103472367,1000080924
04.05.2022,ADULT SOCIAL CARE,SAGECARE LTD,663.84,MH LTS 65+,HOMECARE - C&V,2103472293,1000080924
04.05.2022,ADULT SOCIAL CARE,SAGECARE LTD,922,MH LTS 65+,HOMECARE - C&V,2103472186,1000080924
04.05.2022,ADULT SOCIAL CARE,LONDON CARE LTD,813.24,MH STS 18-64,HOMECARE - IC,2103471767,1000003398
04.05.2022,ADULT SOCIAL CARE,KENT COUNTY COUNCIL - LASER,366.59,ORIENT ST � RESPITE,OFFICE EXPENSES,5902523161,1000012926
04.05.2022,ADULT SOCIAL CARE,KENT COUNTY COUNCIL - LASER,558.24,ORIENT ST � RESPITE,OFFICE EXPENSES,5902523159,1000012926
04.05.2022,ADULT SOCIAL CARE,LONDON CARE LTD,320.89,PHY LTS 18-64,HOMECARE - C&V,2103471837,1000003398
04.05.2022,ADULT SOCIAL CARE,LONDON CARE LTD,376.68,PHY LTS 18-64,HOMECARE - C&V,2103471807,1000003398
04.05.2022,ADULT SOCIAL CARE,LONDON CARE LTD,390.74,PHY LTS 18-64,HOMECARE - C&V,2103471813,1000003398
04.05.2022,ADULT SOCIAL CARE,LONDON CARE LTD,651.2,PHY LTS 18-64,HOMECARE - C&V,2103471867,1000003398
04.05.2022,ADULT SOCIAL CARE,LONDON CARE LTD,"1,160.55",PHY LTS 18-64,HOMECARE - C&V,2103471831,1000003398
04.05.2022,ADULT SOCIAL CARE,LONDON CARE LTD,"1,801.56",PHY LTS 18-64,HOMECARE - C&V,2103471782,1000003398
04.05.2022,ADULT SOCIAL CARE,THAMES HOMECARE SERVICE LTD,388.6,PHY LTS 18-64,HOMECARE - C&V,2103472137,1000079295
04.05.2022,ADULT SOCIAL CARE,THAMES HOMECARE SERVICE LTD,887.54,PHY LTS 18-64,HOMECARE - C&V,2103472113,1000079295
04.05.2022,ADULT SOCIAL CARE,SAGECARE LTD,253.96,PHY LTS 18-64,HOMECARE - C&V,2103472209,1000080924
04.05.2022,ADULT SOCIAL CARE,SAGECARE LTD,314.5,PHY LTS 18-64,HOMECARE - C&V,2103472301,1000080924
04.05.2022,ADULT SOCIAL CARE,SAGECARE LTD,314.5,PHY LTS 18-64,HOMECARE - C&V,2103472314,1000080924
04.05.2022,ADULT SOCIAL CARE,SAGECARE LTD,336.53,PHY LTS 18-64,HOMECARE - C&V,2103472306,1000080924
04.05.2022,ADULT SOCIAL CARE,SAGECARE LTD,354.97,PHY LTS 18-64,HOMECARE - C&V,2103472320,1000080924
04.05.2022,ADULT SOCIAL CARE,SAGECARE LTD,382.63,PHY LTS 18-64,HOMECARE - C&V,2103472332,1000080924
04.05.2022,ADULT SOCIAL CARE,SAGECARE LTD,405.68,PHY LTS 18-64,HOMECARE - C&V,2103472213,1000080924
04.05.2022,ADULT SOCIAL CARE,SAGECARE LTD,428.73,PHY LTS 18-64,HOMECARE - C&V,2103472366,1000080924
04.05.2022,ADULT SOCIAL CARE,SAGECARE LTD,565.25,PHY LTS 18-64,HOMECARE - C&V,2103472264,1000080924
04.05.2022,ADULT SOCIAL CARE,SAGECARE LTD,570.47,PHY LTS 18-64,HOMECARE - C&V,2103472271,1000080924
04.05.2022,ADULT SOCIAL CARE,SAGECARE LTD,585.47,PHY LTS 18-64,HOMECARE - C&V,2103472364,1000080924
04.05.2022,ADULT SOCIAL CARE,SAGECARE LTD,586.5,PHY LTS 18-64,HOMECARE - C&V,2103472244,1000080924
04.05.2022,ADULT SOCIAL CARE,SAGECARE LTD,608.52,PHY LTS 18-64,HOMECARE - C&V,2103472286,1000080924
04.05.2022,ADULT SOCIAL CARE,SAGECARE LTD,612,PHY LTS 18-64,HOMECARE - C&V,2103472235,1000080924
04.05.2022,ADULT SOCIAL CARE,SAGECARE LTD,626.96,PHY LTS 18-64,HOMECARE - C&V,2103472207,1000080924
04.05.2022,ADULT SOCIAL CARE,SAGECARE LTD,654.62,PHY LTS 18-64,HOMECARE - C&V,2103472348,1000080924
04.05.2022,ADULT SOCIAL CARE,SAGECARE LTD,663.84,PHY LTS 18-64,HOMECARE - C&V,2103472253,1000080924
04.05.2022,ADULT SOCIAL CARE,SAGECARE LTD,746.82,PHY LTS 18-64,HOMECARE - C&V,2103472350,1000080924
04.05.2022,ADULT SOCIAL CARE,SAGECARE LTD,788.31,PHY LTS 18-64,HOMECARE - C&V,2103472330,1000080924
04.05.2022,ADULT SOCIAL CARE,SAGECARE LTD,794.75,PHY LTS 18-64,HOMECARE - C&V,2103472184,1000080924
04.05.2022,ADULT SOCIAL CARE,SAGECARE LTD,799,PHY LTS 18-64,HOMECARE - C&V,2103472227,1000080924
04.05.2022,ADULT SOCIAL CARE,SAGECARE LTD,833,PHY LTS 18-64,HOMECARE - C&V,2103472199,1000080924
04.05.2022,ADULT SOCIAL CARE,SAGECARE LTD,991.15,PHY LTS 18-64,HOMECARE - C&V,2103472354,1000080924
04.05.2022,ADULT SOCIAL CARE,SAGECARE LTD,"1,170.94",PHY LTS 18-64,HOMECARE - C&V,2103472266,1000080924
04.05.2022,ADULT SOCIAL CARE,SAGECARE LTD,"1,173.00",PHY LTS 18-64,HOMECARE - C&V,2103472270,1000080924
04.05.2022,ADULT SOCIAL CARE,SAGECARE LTD,"1,258.53",PHY LTS 18-64,HOMECARE - C&V,2103472321,1000080924
04.05.2022,ADULT SOCIAL CARE,SAGECARE LTD,"1,373.78",PHY LTS 18-64,HOMECARE - C&V,2103472328,1000080924
04.05.2022,ADULT SOCIAL CARE,SAGECARE LTD,"1,453.50",PHY LTS 18-64,HOMECARE - C&V,2103472300,1000080924
04.05.2022,ADULT SOCIAL CARE,THAMES HOMECARE SERVICE LTD,268.66,PHY LTS 18-64,HOMECARE - SPOT,2103471988,1000079295
04.05.2022,ADULT SOCIAL CARE,THAMES HOMECARE SERVICE LTD,273.46,PHY LTS 18-64,HOMECARE - SPOT,2103472035,1000079295
04.05.2022,ADULT SOCIAL CARE,THAMES HOMECARE SERVICE LTD,335.83,PHY LTS 18-64,HOMECARE - SPOT,2103472078,1000079295
04.05.2022,ADULT SOCIAL CARE,THAMES HOMECARE SERVICE LTD,340.62,PHY LTS 18-64,HOMECARE - SPOT,2103472006,1000079295
04.05.2022,ADULT SOCIAL CARE,THAMES HOMECARE SERVICE LTD,388.6,PHY LTS 18-64,HOMECARE - SPOT,2103472070,1000079295
04.05.2022,ADULT SOCIAL CARE,THAMES HOMECARE SERVICE LTD,604.49,PHY LTS 18-64,HOMECARE - SPOT,2103472084,1000079295
04.05.2022,ADULT SOCIAL CARE,THAMES HOMECARE SERVICE LTD,604.49,PHY LTS 18-64,HOMECARE - SPOT,2103472139,1000079295
04.05.2022,ADULT SOCIAL CARE,THAMES HOMECARE SERVICE LTD,604.49,PHY LTS 18-64,HOMECARE - SPOT,2103472163,1000079295
04.05.2022,ADULT SOCIAL CARE,THAMES HOMECARE SERVICE LTD,671.65,PHY LTS 18-64,HOMECARE - SPOT,2103471987,1000079295
04.05.2022,ADULT SOCIAL CARE,THAMES HOMECARE SERVICE LTD,738.82,PHY LTS 18-64,HOMECARE - SPOT,2103471995,1000079295
04.05.2022,ADULT SOCIAL CARE,THAMES HOMECARE SERVICE LTD,892.34,PHY LTS 18-64,HOMECARE - SPOT,2103472128,1000079295
04.05.2022,ADULT SOCIAL CARE,THAMES HOMECARE SERVICE LTD,959.5,PHY LTS 18-64,HOMECARE - SPOT,2103472019,1000079295
04.05.2022,ADULT SOCIAL CARE,THAMES HOMECARE SERVICE LTD,988.29,PHY LTS 18-64,HOMECARE - SPOT,2103472127,1000079295
04.05.2022,ADULT SOCIAL CARE,LONDON CARE LTD,260.46,PHY LTS 65+,HOMECARE - C&V,2103471768,1000003398
04.05.2022,ADULT SOCIAL CARE,LONDON CARE LTD,276.6,PHY LTS 65+,HOMECARE - C&V,2103471773,1000003398
04.05.2022,ADULT SOCIAL CARE,LONDON CARE LTD,298.18,PHY LTS 65+,HOMECARE - C&V,2103471824,1000003398
04.05.2022,ADULT SOCIAL CARE,LONDON CARE LTD,325.25,PHY LTS 65+,HOMECARE - C&V,2103471771,1000003398
04.05.2022,ADULT SOCIAL CARE,LONDON CARE LTD,330.42,PHY LTS 65+,HOMECARE - C&V,2103471825,1000003398
04.05.2022,ADULT SOCIAL CARE,LONDON CARE LTD,334.68,PHY LTS 65+,HOMECARE - C&V,2103471746,1000003398
04.05.2022,ADULT SOCIAL CARE,LONDON CARE LTD,357.99,PHY LTS 65+,HOMECARE - C&V,2103471826,1000003398
04.05.2022,ADULT SOCIAL CARE,LONDON CARE LTD,358.11,PHY LTS 65+,HOMECARE - C&V,2103471752,1000003398
04.05.2022,ADULT SOCIAL CARE,LONDON CARE LTD,378.01,PHY LTS 65+,HOMECARE - C&V,2103471859,1000003398
04.05.2022,ADULT SOCIAL CARE,LONDON CARE LTD,381.52,PHY LTS 65+,HOMECARE - C&V,2103471775,1000003398
04.05.2022,ADULT SOCIAL CARE,LONDON CARE LTD,390.74,PHY LTS 65+,HOMECARE - C&V,2103471841,1000003398
04.05.2022,ADULT SOCIAL CARE,LONDON CARE LTD,390.74,PHY LTS 65+,HOMECARE - C&V,2103471863,1000003398
04.05.2022,ADULT SOCIAL CARE,LONDON CARE LTD,464.96,PHY LTS 65+,HOMECARE - C&V,2103471755,1000003398
04.05.2022,ADULT SOCIAL CARE,LONDON CARE LTD,488.09,PHY LTS 65+,HOMECARE - C&V,2103471864,1000003398
04.05.2022,ADULT SOCIAL CARE,LONDON CARE LTD,493.04,PHY LTS 65+,HOMECARE - C&V,2103471839,1000003398
04.05.2022,ADULT SOCIAL CARE,LONDON CARE LTD,506.97,PHY LTS 65+,HOMECARE - C&V,2103471820,1000003398
04.05.2022,ADULT SOCIAL CARE,LONDON CARE LTD,511.59,PHY LTS 65+,HOMECARE - C&V,2103471793,1000003398
04.05.2022,ADULT SOCIAL CARE,LONDON CARE LTD,511.59,PHY LTS 65+,HOMECARE - C&V,2103471798,1000003398
04.05.2022,ADULT SOCIAL CARE,LONDON CARE LTD,516.31,PHY LTS 65+,HOMECARE - C&V,2103471745,1000003398
04.05.2022,ADULT SOCIAL CARE,LONDON CARE LTD,534.76,PHY LTS 65+,HOMECARE - C&V,2103472374,1000003398
04.05.2022,ADULT SOCIAL CARE,LONDON CARE LTD,557.81,PHY LTS 65+,HOMECARE - C&V,2103471783,1000003398
04.05.2022,ADULT SOCIAL CARE,LONDON CARE LTD,608.24,PHY LTS 65+,HOMECARE - C&V,2103471749,1000003398
04.05.2022,ADULT SOCIAL CARE,LONDON CARE LTD,617.99,PHY LTS 65+,HOMECARE - C&V,2103471784,1000003398
04.05.2022,ADULT SOCIAL CARE,LONDON CARE LTD,632.76,PHY LTS 65+,HOMECARE - C&V,2103471757,1000003398
04.05.2022,ADULT SOCIAL CARE,LONDON CARE LTD,641.99,PHY LTS 65+,HOMECARE - C&V,2103471804,1000003398
04.05.2022,ADULT SOCIAL CARE,LONDON CARE LTD,723.79,PHY LTS 65+,HOMECARE - C&V,2103471840,1000003398
04.05.2022,ADULT SOCIAL CARE,LONDON CARE LTD,749,PHY LTS 65+,HOMECARE - C&V,2103471760,1000003398
04.05.2022,ADULT SOCIAL CARE,LONDON CARE LTD,758.22,PHY LTS 65+,HOMECARE - C&V,2103471808,1000003398
04.05.2022,ADULT SOCIAL CARE,LONDON CARE LTD,776.87,PHY LTS 65+,HOMECARE - C&V,2103471838,1000003398
04.05.2022,ADULT SOCIAL CARE,LONDON CARE LTD,782.08,PHY LTS 65+,HOMECARE - C&V,2103471865,1000003398
04.05.2022,ADULT SOCIAL CARE,LONDON CARE LTD,800.56,PHY LTS 65+,HOMECARE - C&V,2103471744,1000003398
04.05.2022,ADULT SOCIAL CARE,LONDON CARE LTD,869.94,PHY LTS 65+,HOMECARE - C&V,2103471822,1000003398
04.05.2022,ADULT SOCIAL CARE,LONDON CARE LTD,883.88,PHY LTS 65+,HOMECARE - C&V,2103471850,1000003398
04.05.2022,ADULT SOCIAL CARE,LONDON CARE LTD,888.61,PHY LTS 65+,HOMECARE - C&V,2103471799,1000003398
04.05.2022,ADULT SOCIAL CARE,LONDON CARE LTD,893.22,PHY LTS 65+,HOMECARE - C&V,2103471756,1000003398
04.05.2022,ADULT SOCIAL CARE,LONDON CARE LTD,902.22,PHY LTS 65+,HOMECARE - C&V,2103471830,1000003398
04.05.2022,ADULT SOCIAL CARE,LONDON CARE LTD,944.16,PHY LTS 65+,HOMECARE - C&V,2103471787,1000003398
04.05.2022,ADULT SOCIAL CARE,LONDON CARE LTD,983.01,PHY LTS 65+,HOMECARE - C&V,2103471856,1000003398
04.05.2022,ADULT SOCIAL CARE,LONDON CARE LTD,"1,049.02",PHY LTS 65+,HOMECARE - C&V,2103471797,1000003398
04.05.2022,ADULT SOCIAL CARE,LONDON CARE LTD,"1,053.54",PHY LTS 65+,HOMECARE - C&V,2103471753,1000003398
04.05.2022,ADULT SOCIAL CARE,LONDON CARE LTD,"1,172.12",PHY LTS 65+,HOMECARE - C&V,2103471844,1000003398
04.05.2022,ADULT SOCIAL CARE,LONDON CARE LTD,"1,172.12",PHY LTS 65+,HOMECARE - C&V,2103471853,1000003398
04.05.2022,ADULT SOCIAL CARE,LONDON CARE LTD,"1,218.68",PHY LTS 65+,HOMECARE - C&V,2103471765,1000003398
04.05.2022,ADULT SOCIAL CARE,LONDON CARE LTD,"1,341.04",PHY LTS 65+,HOMECARE - C&V,2103471848,1000003398
04.05.2022,ADULT SOCIAL CARE,LONDON CARE LTD,"2,288.46",PHY LTS 65+,HOMECARE - C&V,2103471812,1000003398
04.05.2022,ADULT SOCIAL CARE,LONDON CARE LTD,"2,360.32",PHY LTS 65+,HOMECARE - C&V,2103472376,1000003398
04.05.2022,ADULT SOCIAL CARE,LONDON CARE LTD,"2,553.04",PHY LTS 65+,HOMECARE - C&V,2103471861,1000003398
04.05.2022,ADULT SOCIAL CARE,THAMES HOMECARE SERVICE LTD,254.27,PHY LTS 65+,HOMECARE - C&V,2103472164,1000079295
04.05.2022,ADULT SOCIAL CARE,THAMES HOMECARE SERVICE LTD,268.66,PHY LTS 65+,HOMECARE - C&V,2103472053,1000079295
04.05.2022,ADULT SOCIAL CARE,THAMES HOMECARE SERVICE LTD,340.62,PHY LTS 65+,HOMECARE - C&V,2103472129,1000079295
04.05.2022,ADULT SOCIAL CARE,THAMES HOMECARE SERVICE LTD,402.99,PHY LTS 65+,HOMECARE - C&V,2103472071,1000079295
04.05.2022,ADULT SOCIAL CARE,SAGECARE LTD,258.16,PHY LTS 65+,HOMECARE - C&V,2103472323,1000080924
04.05.2022,ADULT SOCIAL CARE,SAGECARE LTD,259.25,PHY LTS 65+,HOMECARE - C&V,2103472294,1000080924
04.05.2022,ADULT SOCIAL CARE,SAGECARE LTD,262.77,PHY LTS 65+,HOMECARE - C&V,2103472353,1000080924
04.05.2022,ADULT SOCIAL CARE,SAGECARE LTD,271.99,PHY LTS 65+,HOMECARE - C&V,2103472263,1000080924
04.05.2022,ADULT SOCIAL CARE,SAGECARE LTD,276.6,PHY LTS 65+,HOMECARE - C&V,2103472276,1000080924
04.05.2022,ADULT SOCIAL CARE,SAGECARE LTD,276.6,PHY LTS 65+,HOMECARE - C&V,2103472340,1000080924
04.05.2022,ADULT SOCIAL CARE,SAGECARE LTD,295.04,PHY LTS 65+,HOMECARE - C&V,2103472334,1000080924
04.05.2022,ADULT SOCIAL CARE,SAGECARE LTD,304.26,PHY LTS 65+,HOMECARE - C&V,2103472346,1000080924
04.05.2022,ADULT SOCIAL CARE,SAGECARE LTD,327.25,PHY LTS 65+,HOMECARE - C&V,2103472318,1000080924
04.05.2022,ADULT SOCIAL CARE,SAGECARE LTD,345.56,PHY LTS 65+,HOMECARE - C&V,2103472193,1000080924
04.05.2022,ADULT SOCIAL CARE,SAGECARE LTD,357,PHY LTS 65+,HOMECARE - C&V,2103472237,1000080924
04.05.2022,ADULT SOCIAL CARE,SAGECARE LTD,368.8,PHY LTS 65+,HOMECARE - C&V,2103472352,1000080924
04.05.2022,ADULT SOCIAL CARE,SAGECARE LTD,373.41,PHY LTS 65+,HOMECARE - C&V,2103472335,1000080924
04.05.2022,ADULT SOCIAL CARE,SAGECARE LTD,374,PHY LTS 65+,HOMECARE - C&V,2103472262,1000080924
04.05.2022,ADULT SOCIAL CARE,SAGECARE LTD,387.24,PHY LTS 65+,HOMECARE - C&V,2103472358,1000080924
04.05.2022,ADULT SOCIAL CARE,SAGECARE LTD,401.07,PHY LTS 65+,HOMECARE - C&V,2103472230,1000080924
04.05.2022,ADULT SOCIAL CARE,SAGECARE LTD,405.68,PHY LTS 65+,HOMECARE - C&V,2103472201,1000080924
04.05.2022,ADULT SOCIAL CARE,SAGECARE LTD,424.12,PHY LTS 65+,HOMECARE - C&V,2103472216,1000080924
04.05.2022,ADULT SOCIAL CARE,SAGECARE LTD,471.75,PHY LTS 65+,HOMECARE - C&V,2103472274,1000080924
04.05.2022,ADULT SOCIAL CARE,SAGECARE LTD,493.27,PHY LTS 65+,HOMECARE - C&V,2103472324,1000080924
04.05.2022,ADULT SOCIAL CARE,SAGECARE LTD,516.32,PHY LTS 65+,HOMECARE - C&V,2103472339,1000080924
04.05.2022,ADULT SOCIAL CARE,SAGECARE LTD,553.2,PHY LTS 65+,HOMECARE - C&V,2103472349,1000080924
04.05.2022,ADULT SOCIAL CARE,SAGECARE LTD,565.25,PHY LTS 65+,HOMECARE - C&V,2103472315,1000080924
04.05.2022,ADULT SOCIAL CARE,SAGECARE LTD,567.03,PHY LTS 65+,HOMECARE - C&V,2103472343,1000080924
04.05.2022,ADULT SOCIAL CARE,SAGECARE LTD,573.75,PHY LTS 65+,HOMECARE - C&V,2103472308,1000080924
04.05.2022,ADULT SOCIAL CARE,SAGECARE LTD,585.47,PHY LTS 65+,HOMECARE - C&V,2103472331,1000080924
04.05.2022,ADULT SOCIAL CARE,SAGECARE LTD,595.44,PHY LTS 65+,HOMECARE - C&V,2103472218,1000080924
04.05.2022,ADULT SOCIAL CARE,SAGECARE LTD,608.52,PHY LTS 65+,HOMECARE - C&V,2103472342,1000080924
04.05.2022,ADULT SOCIAL CARE,SAGECARE LTD,622.35,PHY LTS 65+,HOMECARE - C&V,2103472326,1000080924
04.05.2022,ADULT SOCIAL CARE,SAGECARE LTD,645.4,PHY LTS 65+,HOMECARE - C&V,2103472242,1000080924
04.05.2022,ADULT SOCIAL CARE,SAGECARE LTD,645.4,PHY LTS 65+,HOMECARE - C&V,2103472281,1000080924
04.05.2022,ADULT SOCIAL CARE,SAGECARE LTD,686.89,PHY LTS 65+,HOMECARE - C&V,2103472248,1000080924
04.05.2022,ADULT SOCIAL CARE,SAGECARE LTD,688.5,PHY LTS 65+,HOMECARE - C&V,2103472255,1000080924
04.05.2022,ADULT SOCIAL CARE,SAGECARE LTD,697,PHY LTS 65+,HOMECARE - C&V,2103472241,1000080924
04.05.2022,ADULT SOCIAL CARE,SAGECARE LTD,714,PHY LTS 65+,HOMECARE - C&V,2103472217,1000080924
04.05.2022,ADULT SOCIAL CARE,SAGECARE LTD,754.83,PHY LTS 65+,HOMECARE - C&V,2103472252,1000080924
04.05.2022,ADULT SOCIAL CARE,SAGECARE LTD,820.25,PHY LTS 65+,HOMECARE - C&V,2103472313,1000080924
04.05.2022,ADULT SOCIAL CARE,SAGECARE LTD,825.19,PHY LTS 65+,HOMECARE - C&V,2103472272,1000080924
04.05.2022,ADULT SOCIAL CARE,SAGECARE LTD,848.24,PHY LTS 65+,HOMECARE - C&V,2103472312,1000080924
04.05.2022,ADULT SOCIAL CARE,SAGECARE LTD,852.85,PHY LTS 65+,HOMECARE - C&V,2103472247,1000080924
04.05.2022,ADULT SOCIAL CARE,SAGECARE LTD,861.96,PHY LTS 65+,HOMECARE - C&V,2103472359,1000080924
04.05.2022,ADULT SOCIAL CARE,SAGECARE LTD,866.09,PHY LTS 65+,HOMECARE - C&V,2103472220,1000080924
04.05.2022,ADULT SOCIAL CARE,SAGECARE LTD,874.46,PHY LTS 65+,HOMECARE - C&V,2103472258,1000080924
04.05.2022,ADULT SOCIAL CARE,SAGECARE LTD,875.9,PHY LTS 65+,HOMECARE - C&V,2103472190,1000080924
04.05.2022,ADULT SOCIAL CARE,SAGECARE LTD,878.59,PHY LTS 65+,HOMECARE - C&V,2103472290,1000080924
04.05.2022,ADULT SOCIAL CARE,SAGECARE LTD,886.98,PHY LTS 65+,HOMECARE - C&V,2103472283,1000080924
04.05.2022,ADULT SOCIAL CARE,SAGECARE LTD,899.21,PHY LTS 65+,HOMECARE - C&V,2103472240,1000080924
04.05.2022,ADULT SOCIAL CARE,SAGECARE LTD,901,PHY LTS 65+,HOMECARE - C&V,2103472219,1000080924
04.05.2022,ADULT SOCIAL CARE,SAGECARE LTD,922,PHY LTS 65+,HOMECARE - C&V,2103472316,1000080924
04.05.2022,ADULT SOCIAL CARE,SAGECARE LTD,932.67,PHY LTS 65+,HOMECARE - C&V,2103472280,1000080924
04.05.2022,ADULT SOCIAL CARE,SAGECARE LTD,949.66,PHY LTS 65+,HOMECARE - C&V,2103472307,1000080924
04.05.2022,ADULT SOCIAL CARE,SAGECARE LTD,963.49,PHY LTS 65+,HOMECARE - C&V,2103472285,1000080924
04.05.2022,ADULT SOCIAL CARE,SAGECARE LTD,963.49,PHY LTS 65+,HOMECARE - C&V,2103472345,1000080924
04.05.2022,ADULT SOCIAL CARE,SAGECARE LTD,978.44,PHY LTS 65+,HOMECARE - C&V,2103472225,1000080924
04.05.2022,ADULT SOCIAL CARE,SAGECARE LTD,995.76,PHY LTS 65+,HOMECARE - C&V,2103472196,1000080924
04.05.2022,ADULT SOCIAL CARE,SAGECARE LTD,995.76,PHY LTS 65+,HOMECARE - C&V,2103472351,1000080924
04.05.2022,ADULT SOCIAL CARE,SAGECARE LTD,"1,032.64",PHY LTS 65+,HOMECARE - C&V,2103472203,1000080924
04.05.2022,ADULT SOCIAL CARE,SAGECARE LTD,"1,049.15",PHY LTS 65+,HOMECARE - C&V,2103472289,1000080924
04.05.2022,ADULT SOCIAL CARE,SAGECARE LTD,"1,049.22",PHY LTS 65+,HOMECARE - C&V,2103472246,1000080924
04.05.2022,ADULT SOCIAL CARE,SAGECARE LTD,"1,057.51",PHY LTS 65+,HOMECARE - C&V,2103472200,1000080924
04.05.2022,ADULT SOCIAL CARE,SAGECARE LTD,"1,066.75",PHY LTS 65+,HOMECARE - C&V,2103472269,1000080924
04.05.2022,ADULT SOCIAL CARE,SAGECARE LTD,"1,078.74",PHY LTS 65+,HOMECARE - C&V,2103472188,1000080924
04.05.2022,ADULT SOCIAL CARE,SAGECARE LTD,"1,090.83",PHY LTS 65+,HOMECARE - C&V,2103472233,1000080924
04.05.2022,ADULT SOCIAL CARE,SAGECARE LTD,"1,092.57",PHY LTS 65+,HOMECARE - C&V,2103472310,1000080924
04.05.2022,ADULT SOCIAL CARE,SAGECARE LTD,"1,099.17",PHY LTS 65+,HOMECARE - C&V,2103472259,1000080924
04.05.2022,ADULT SOCIAL CARE,SAGECARE LTD,"1,111.01",PHY LTS 65+,HOMECARE - C&V,2103472208,1000080924
04.05.2022,ADULT SOCIAL CARE,SAGECARE LTD,"1,129.45",PHY LTS 65+,HOMECARE - C&V,2103472194,1000080924
04.05.2022,ADULT SOCIAL CARE,SAGECARE LTD,"1,143.28",PHY LTS 65+,HOMECARE - C&V,2103472291,1000080924
04.05.2022,ADULT SOCIAL CARE,SAGECARE LTD,"1,147.50",PHY LTS 65+,HOMECARE - C&V,2103472238,1000080924
04.05.2022,ADULT SOCIAL CARE,SAGECARE LTD,"1,166.33",PHY LTS 65+,HOMECARE - C&V,2103472329,1000080924
04.05.2022,ADULT SOCIAL CARE,SAGECARE LTD,"1,175.96",PHY LTS 65+,HOMECARE - C&V,2103472198,1000080924
04.05.2022,ADULT SOCIAL CARE,SAGECARE LTD,"1,184.77",PHY LTS 65+,HOMECARE - C&V,2103472185,1000080924
04.05.2022,ADULT SOCIAL CARE,SAGECARE LTD,"1,190.00",PHY LTS 65+,HOMECARE - C&V,2103472204,1000080924
04.05.2022,ADULT SOCIAL CARE,SAGECARE LTD,"1,265.59",PHY LTS 65+,HOMECARE - C&V,2103472232,1000080924
04.05.2022,ADULT SOCIAL CARE,SAGECARE LTD,"1,267.75",PHY LTS 65+,HOMECARE - C&V,2103472325,1000080924
04.05.2022,ADULT SOCIAL CARE,SAGECARE LTD,"1,313.85",PHY LTS 65+,HOMECARE - C&V,2103472273,1000080924
04.05.2022,ADULT SOCIAL CARE,SAGECARE LTD,"1,341.51",PHY LTS 65+,HOMECARE - C&V,2103472215,1000080924
04.05.2022,ADULT SOCIAL CARE,SAGECARE LTD,"1,361.48",PHY LTS 65+,HOMECARE - C&V,2103472297,1000080924
04.05.2022,ADULT SOCIAL CARE,SAGECARE LTD,"1,415.59",PHY LTS 65+,HOMECARE - C&V,2103472261,1000080924
04.05.2022,ADULT SOCIAL CARE,SAGECARE LTD,"1,474.89",PHY LTS 65+,HOMECARE - C&V,2103472277,1000080924
04.05.2022,ADULT SOCIAL CARE,SAGECARE LTD,"1,615.74",PHY LTS 65+,HOMECARE - C&V,2103472275,1000080924
04.05.2022,ADULT SOCIAL CARE,SAGECARE LTD,"1,690.27",PHY LTS 65+,HOMECARE - C&V,2103472211,1000080924
04.05.2022,ADULT SOCIAL CARE,SAGECARE LTD,"1,742.50",PHY LTS 65+,HOMECARE - C&V,2103472268,1000080924
04.05.2022,ADULT SOCIAL CARE,SAGECARE LTD,"1,908.25",PHY LTS 65+,HOMECARE - C&V,2103472228,1000080924
04.05.2022,ADULT SOCIAL CARE,SAGECARE LTD,"1,950.03",PHY LTS 65+,HOMECARE - C&V,2103472319,1000080924
04.05.2022,ADULT SOCIAL CARE,SAGECARE LTD,"1,973.08",PHY LTS 65+,HOMECARE - C&V,2103472231,1000080924
04.05.2022,ADULT SOCIAL CARE,SAGECARE LTD,"2,040.42",PHY LTS 65+,HOMECARE - C&V,2103472229,1000080924
04.05.2022,ADULT SOCIAL CARE,SAGECARE LTD,"2,048.50",PHY LTS 65+,HOMECARE - C&V,2103472250,1000080924
04.05.2022,ADULT SOCIAL CARE,SAGECARE LTD,"2,143.65",PHY LTS 65+,HOMECARE - C&V,2103472254,1000080924
04.05.2022,ADULT SOCIAL CARE,SAGECARE LTD,"2,222.75",PHY LTS 65+,HOMECARE - C&V,2103472187,1000080924
04.05.2022,ADULT SOCIAL CARE,SAGECARE LTD,"2,314.22",PHY LTS 65+,HOMECARE - C&V,2103472298,1000080924
04.05.2022,ADULT SOCIAL CARE,SAGECARE LTD,"2,331.84",PHY LTS 65+,HOMECARE - C&V,2103472362,1000080924
04.05.2022,ADULT SOCIAL CARE,SAGECARE LTD,"2,354.50",PHY LTS 65+,HOMECARE - C&V,2103472279,1000080924
04.05.2022,ADULT SOCIAL CARE,SAGECARE LTD,"2,392.59",PHY LTS 65+,HOMECARE - C&V,2103472243,1000080924
04.05.2022,ADULT SOCIAL CARE,SAGECARE LTD,"2,422.50",PHY LTS 65+,HOMECARE - C&V,2103472302,1000080924
04.05.2022,ADULT SOCIAL CARE,SAGECARE LTD,"2,432.78",PHY LTS 65+,HOMECARE - C&V,2103472257,1000080924
04.05.2022,ADULT SOCIAL CARE,SAGECARE LTD,"2,465.00",PHY LTS 65+,HOMECARE - C&V,2103472234,1000080924
04.05.2022,ADULT SOCIAL CARE,SAGECARE LTD,"2,531.60",PHY LTS 65+,HOMECARE - C&V,2103472226,1000080924
04.05.2022,ADULT SOCIAL CARE,SAGECARE LTD,"2,577.27",PHY LTS 65+,HOMECARE - C&V,2103472191,1000080924
04.05.2022,ADULT SOCIAL CARE,SAGECARE LTD,"2,613.87",PHY LTS 65+,HOMECARE - C&V,2103472355,1000080924
04.05.2022,ADULT SOCIAL CARE,SAGECARE LTD,"2,618.00",PHY LTS 65+,HOMECARE - C&V,2103472256,1000080924
04.05.2022,ADULT SOCIAL CARE,SAGECARE LTD,"2,872.03",PHY LTS 65+,HOMECARE - C&V,2103472347,1000080924
04.05.2022,ADULT SOCIAL CARE,SAGECARE LTD,"3,157.75",PHY LTS 65+,HOMECARE - C&V,2103472296,1000080924
04.05.2022,ADULT SOCIAL CARE,SAGECARE LTD,"3,157.85",PHY LTS 65+,HOMECARE - C&V,2103472333,1000080924
04.05.2022,ADULT SOCIAL CARE,SAGECARE LTD,"3,167.07",PHY LTS 65+,HOMECARE - C&V,2103472356,1000080924
04.05.2022,ADULT SOCIAL CARE,THAMES HOMECARE SERVICE LTD,254.27,PHY LTS 65+,HOMECARE - SPOT,2103472153,1000079295
04.05.2022,ADULT SOCIAL CARE,THAMES HOMECARE SERVICE LTD,254.27,PHY LTS 65+,HOMECARE - SPOT,2103472165,1000079295
04.05.2022,ADULT SOCIAL CARE,THAMES HOMECARE SERVICE LTD,259.07,PHY LTS 65+,HOMECARE - SPOT,2103472171,1000079295
04.05.2022,ADULT SOCIAL CARE,THAMES HOMECARE SERVICE LTD,268.66,PHY LTS 65+,HOMECARE - SPOT,2103471996,1000079295
04.05.2022,ADULT SOCIAL CARE,THAMES HOMECARE SERVICE LTD,268.66,PHY LTS 65+,HOMECARE - SPOT,2103472159,1000079295
04.05.2022,ADULT SOCIAL CARE,THAMES HOMECARE SERVICE LTD,276.12,PHY LTS 65+,HOMECARE - SPOT,2103472133,1000079295
04.05.2022,ADULT SOCIAL CARE,THAMES HOMECARE SERVICE LTD,278.26,PHY LTS 65+,HOMECARE - SPOT,2103472156,1000079295
04.05.2022,ADULT SOCIAL CARE,THAMES HOMECARE SERVICE LTD,287.85,PHY LTS 65+,HOMECARE - SPOT,2103472093,1000079295
04.05.2022,ADULT SOCIAL CARE,THAMES HOMECARE SERVICE LTD,287.85,PHY LTS 65+,HOMECARE - SPOT,2103472147,1000079295
04.05.2022,ADULT SOCIAL CARE,THAMES HOMECARE SERVICE LTD,292.65,PHY LTS 65+,HOMECARE - SPOT,2103472029,1000079295
04.05.2022,ADULT SOCIAL CARE,THAMES HOMECARE SERVICE LTD,297.45,PHY LTS 65+,HOMECARE - SPOT,2103472005,1000079295
04.05.2022,ADULT SOCIAL CARE,THAMES HOMECARE SERVICE LTD,302.24,PHY LTS 65+,HOMECARE - SPOT,2103471994,1000079295
04.05.2022,ADULT SOCIAL CARE,THAMES HOMECARE SERVICE LTD,302.24,PHY LTS 65+,HOMECARE - SPOT,2103472012,1000079295
04.05.2022,ADULT SOCIAL CARE,THAMES HOMECARE SERVICE LTD,302.24,PHY LTS 65+,HOMECARE - SPOT,2103472089,1000079295
04.05.2022,ADULT SOCIAL CARE,THAMES HOMECARE SERVICE LTD,316.64,PHY LTS 65+,HOMECARE - SPOT,2103472003,1000079295
04.05.2022,ADULT SOCIAL CARE,THAMES HOMECARE SERVICE LTD,326.23,PHY LTS 65+,HOMECARE - SPOT,2103472095,1000079295
04.05.2022,ADULT SOCIAL CARE,THAMES HOMECARE SERVICE LTD,335.83,PHY LTS 65+,HOMECARE - SPOT,2103472168,1000079295
04.05.2022,ADULT SOCIAL CARE,THAMES HOMECARE SERVICE LTD,340.62,PHY LTS 65+,HOMECARE - SPOT,2103472016,1000079295
04.05.2022,ADULT SOCIAL CARE,THAMES HOMECARE SERVICE LTD,340.62,PHY LTS 65+,HOMECARE - SPOT,2103472074,1000079295
04.05.2022,ADULT SOCIAL CARE,THAMES HOMECARE SERVICE LTD,355.02,PHY LTS 65+,HOMECARE - SPOT,2103472073,1000079295
04.05.2022,ADULT SOCIAL CARE,THAMES HOMECARE SERVICE LTD,364.61,PHY LTS 65+,HOMECARE - SPOT,2103472067,1000079295
04.05.2022,ADULT SOCIAL CARE,THAMES HOMECARE SERVICE LTD,369.41,PHY LTS 65+,HOMECARE - SPOT,2103472103,1000079295
04.05.2022,ADULT SOCIAL CARE,THAMES HOMECARE SERVICE LTD,369.41,PHY LTS 65+,HOMECARE - SPOT,2103472124,1000079295
04.05.2022,ADULT SOCIAL CARE,THAMES HOMECARE SERVICE LTD,369.41,PHY LTS 65+,HOMECARE - SPOT,2103472152,1000079295
04.05.2022,ADULT SOCIAL CARE,THAMES HOMECARE SERVICE LTD,388.6,PHY LTS 65+,HOMECARE - SPOT,2103472107,1000079295
04.05.2022,ADULT SOCIAL CARE,THAMES HOMECARE SERVICE LTD,402.99,PHY LTS 65+,HOMECARE - SPOT,2103472062,1000079295
04.05.2022,ADULT SOCIAL CARE,THAMES HOMECARE SERVICE LTD,412.59,PHY LTS 65+,HOMECARE - SPOT,2103472061,1000079295
04.05.2022,ADULT SOCIAL CARE,THAMES HOMECARE SERVICE LTD,417.38,PHY LTS 65+,HOMECARE - SPOT,2103471981,1000079295
04.05.2022,ADULT SOCIAL CARE,THAMES HOMECARE SERVICE LTD,460.56,PHY LTS 65+,HOMECARE - SPOT,2103472115,1000079295
04.05.2022,ADULT SOCIAL CARE,THAMES HOMECARE SERVICE LTD,470.16,PHY LTS 65+,HOMECARE - SPOT,2103472118,1000079295
04.05.2022,ADULT SOCIAL CARE,THAMES HOMECARE SERVICE LTD,470.16,PHY LTS 65+,HOMECARE - SPOT,2103472125,1000079295
04.05.2022,ADULT SOCIAL CARE,THAMES HOMECARE SERVICE LTD,518.13,PHY LTS 65+,HOMECARE - SPOT,2103472008,1000079295
04.05.2022,ADULT SOCIAL CARE,THAMES HOMECARE SERVICE LTD,537.32,PHY LTS 65+,HOMECARE - SPOT,2103472028,1000079295
04.05.2022,ADULT SOCIAL CARE,THAMES HOMECARE SERVICE LTD,537.32,PHY LTS 65+,HOMECARE - SPOT,2103472134,1000079295
04.05.2022,ADULT SOCIAL CARE,THAMES HOMECARE SERVICE LTD,537.32,PHY LTS 65+,HOMECARE - SPOT,2103472151,1000079295
04.05.2022,ADULT SOCIAL CARE,THAMES HOMECARE SERVICE LTD,575.7,PHY LTS 65+,HOMECARE - SPOT,2103472076,1000079295
04.05.2022,ADULT SOCIAL CARE,THAMES HOMECARE SERVICE LTD,604.49,PHY LTS 65+,HOMECARE - SPOT,2103472001,1000079295
04.05.2022,ADULT SOCIAL CARE,THAMES HOMECARE SERVICE LTD,604.49,PHY LTS 65+,HOMECARE - SPOT,2103472142,1000079295
04.05.2022,ADULT SOCIAL CARE,THAMES HOMECARE SERVICE LTD,633.27,PHY LTS 65+,HOMECARE - SPOT,2103471991,1000079295
04.05.2022,ADULT SOCIAL CARE,THAMES HOMECARE SERVICE LTD,633.27,PHY LTS 65+,HOMECARE - SPOT,2103472111,1000079295
04.05.2022,ADULT SOCIAL CARE,THAMES HOMECARE SERVICE LTD,638.07,PHY LTS 65+,HOMECARE - SPOT,2103472088,1000079295
04.05.2022,ADULT SOCIAL CARE,THAMES HOMECARE SERVICE LTD,642.87,PHY LTS 65+,HOMECARE - SPOT,2103472140,1000079295
04.05.2022,ADULT SOCIAL CARE,THAMES HOMECARE SERVICE LTD,647.66,PHY LTS 65+,HOMECARE - SPOT,2103472004,1000079295
04.05.2022,ADULT SOCIAL CARE,THAMES HOMECARE SERVICE LTD,652.46,PHY LTS 65+,HOMECARE - SPOT,2103472017,1000079295
04.05.2022,ADULT SOCIAL CARE,THAMES HOMECARE SERVICE LTD,671.65,PHY LTS 65+,HOMECARE - SPOT,2103472043,1000079295
04.05.2022,ADULT SOCIAL CARE,THAMES HOMECARE SERVICE LTD,671.65,PHY LTS 65+,HOMECARE - SPOT,2103472047,1000079295
04.05.2022,ADULT SOCIAL CARE,THAMES HOMECARE SERVICE LTD,671.65,PHY LTS 65+,HOMECARE - SPOT,2103472072,1000079295
04.05.2022,ADULT SOCIAL CARE,THAMES HOMECARE SERVICE LTD,671.65,PHY LTS 65+,HOMECARE - SPOT,2103472077,1000079295
04.05.2022,ADULT SOCIAL CARE,THAMES HOMECARE SERVICE LTD,671.65,PHY LTS 65+,HOMECARE - SPOT,2103472169,1000079295
04.05.2022,ADULT SOCIAL CARE,THAMES HOMECARE SERVICE LTD,676.45,PHY LTS 65+,HOMECARE - SPOT,2103472054,1000079295
04.05.2022,ADULT SOCIAL CARE,THAMES HOMECARE SERVICE LTD,681.25,PHY LTS 65+,HOMECARE - SPOT,2103472081,1000079295
04.05.2022,ADULT SOCIAL CARE,THAMES HOMECARE SERVICE LTD,700.44,PHY LTS 65+,HOMECARE - SPOT,2103472027,1000079295
04.05.2022,ADULT SOCIAL CARE,THAMES HOMECARE SERVICE LTD,710.03,PHY LTS 65+,HOMECARE - SPOT,2103472065,1000079295
04.05.2022,ADULT SOCIAL CARE,THAMES HOMECARE SERVICE LTD,738.82,PHY LTS 65+,HOMECARE - SPOT,2103472121,1000079295
04.05.2022,ADULT SOCIAL CARE,THAMES HOMECARE SERVICE LTD,805.98,PHY LTS 65+,HOMECARE - SPOT,2103471985,1000079295
04.05.2022,ADULT SOCIAL CARE,THAMES HOMECARE SERVICE LTD,805.98,PHY LTS 65+,HOMECARE - SPOT,2103471993,1000079295
04.05.2022,ADULT SOCIAL CARE,THAMES HOMECARE SERVICE LTD,805.98,PHY LTS 65+,HOMECARE - SPOT,2103472042,1000079295
04.05.2022,ADULT SOCIAL CARE,THAMES HOMECARE SERVICE LTD,805.98,PHY LTS 65+,HOMECARE - SPOT,2103472045,1000079295
04.05.2022,ADULT SOCIAL CARE,THAMES HOMECARE SERVICE LTD,825.17,PHY LTS 65+,HOMECARE - SPOT,2103471992,1000079295
04.05.2022,ADULT SOCIAL CARE,THAMES HOMECARE SERVICE LTD,825.17,PHY LTS 65+,HOMECARE - SPOT,2103472120,1000079295
04.05.2022,ADULT SOCIAL CARE,THAMES HOMECARE SERVICE LTD,834.77,PHY LTS 65+,HOMECARE - SPOT,2103472170,1000079295
04.05.2022,ADULT SOCIAL CARE,THAMES HOMECARE SERVICE LTD,873.15,PHY LTS 65+,HOMECARE - SPOT,2103472080,1000079295
04.05.2022,ADULT SOCIAL CARE,THAMES HOMECARE SERVICE LTD,873.15,PHY LTS 65+,HOMECARE - SPOT,2103472138,1000079295
04.05.2022,ADULT SOCIAL CARE,THAMES HOMECARE SERVICE LTD,978.69,PHY LTS 65+,HOMECARE - SPOT,2103472166,1000079295
04.05.2022,ADULT SOCIAL CARE,THAMES HOMECARE SERVICE LTD,"1,036.26",PHY LTS 65+,HOMECARE - SPOT,2103472000,1000079295
04.05.2022,ADULT SOCIAL CARE,THAMES HOMECARE SERVICE LTD,"1,103.43",PHY LTS 65+,HOMECARE - SPOT,2103472146,1000079295
04.05.2022,ADULT SOCIAL CARE,SAGECARE LTD,428.73,PHY LTS 65+,HOMECARE - SPOT,2103472309,1000080924
04.05.2022,ADULT SOCIAL CARE,SNOWBALL CARE UK LTD,912,PHY LTS 65+,HOMECARE - SPOT,2103472368,1000081483
04.05.2022,ADULT SOCIAL CARE,SNOWBALL CARE UK LTD,"1,696.00",PHY LTS 65+,HOMECARE - SPOT,2103472369,1000081483
04.05.2022,ADULT SOCIAL CARE,LONDON CARE LTD,464.22,PHY STS 18-64,HOMECARE - IC,2103471795,1000003398
04.05.2022,ADULT SOCIAL CARE,LONDON CARE LTD,665.95,PHY STS 18-64,HOMECARE - IC,2103471763,1000003398
04.05.2022,ADULT SOCIAL CARE,LONDON CARE LTD,"1,023.95",PHY STS 18-64,HOMECARE - IC,2103471770,1000003398
04.05.2022,ADULT SOCIAL CARE,LONDON CARE LTD,"3,028.04",PHY STS 18-64,HOMECARE - IC,2103471780,1000003398
04.05.2022,ADULT SOCIAL CARE,THAMES HOMECARE SERVICE LTD,441.37,PHY STS 18-64,HOMECARE - IC,2103472090,1000079295
04.05.2022,ADULT SOCIAL CARE,THAMES HOMECARE SERVICE LTD,671.65,PHY STS 18-64,HOMECARE - IC,2103472009,1000079295
04.05.2022,ADULT SOCIAL CARE,LONDON CARE LTD,250.47,PHY STS 65+,HOMECARE - IC,2103471857,1000003398
04.05.2022,ADULT SOCIAL CARE,LONDON CARE LTD,304.14,PHY STS 65+,HOMECARE - IC,2103471761,1000003398
04.05.2022,ADULT SOCIAL CARE,LONDON CARE LTD,343.94,PHY STS 65+,HOMECARE - IC,2103471843,1000003398
04.05.2022,ADULT SOCIAL CARE,LONDON CARE LTD,349.04,PHY STS 65+,HOMECARE - IC,2103471810,1000003398
04.05.2022,ADULT SOCIAL CARE,LONDON CARE LTD,382.63,PHY STS 65+,HOMECARE - IC,2103471772,1000003398
04.05.2022,ADULT SOCIAL CARE,LONDON CARE LTD,390.74,PHY STS 65+,HOMECARE - IC,2103471814,1000003398
04.05.2022,ADULT SOCIAL CARE,LONDON CARE LTD,391.85,PHY STS 65+,HOMECARE - IC,2103471750,1000003398
04.05.2022,ADULT SOCIAL CARE,LONDON CARE LTD,451.78,PHY STS 65+,HOMECARE - IC,2103471747,1000003398
04.05.2022,ADULT SOCIAL CARE,LONDON CARE LTD,453.64,PHY STS 65+,HOMECARE - IC,2103471827,1000003398
04.05.2022,ADULT SOCIAL CARE,LONDON CARE LTD,491.77,PHY STS 65+,HOMECARE - IC,2103471852,1000003398
04.05.2022,ADULT SOCIAL CARE,LONDON CARE LTD,520.92,PHY STS 65+,HOMECARE - IC,2103471818,1000003398
04.05.2022,ADULT SOCIAL CARE,LONDON CARE LTD,530.19,PHY STS 65+,HOMECARE - IC,2103471778,1000003398
04.05.2022,ADULT SOCIAL CARE,LONDON CARE LTD,609.48,PHY STS 65+,HOMECARE - IC,2103471836,1000003398
04.05.2022,ADULT SOCIAL CARE,LONDON CARE LTD,762.57,PHY STS 65+,HOMECARE - IC,2103471791,1000003398
04.05.2022,ADULT SOCIAL CARE,LONDON CARE LTD,906.93,PHY STS 65+,HOMECARE - IC,2103471815,1000003398
04.05.2022,ADULT SOCIAL CARE,LONDON CARE LTD,"1,019.28",PHY STS 65+,HOMECARE - IC,2103471762,1000003398
04.05.2022,ADULT SOCIAL CARE,LONDON CARE LTD,"1,133.93",PHY STS 65+,HOMECARE - IC,2103471769,1000003398
04.05.2022,ADULT SOCIAL CARE,LONDON CARE LTD,"1,176.05",PHY STS 65+,HOMECARE - IC,2103471800,1000003398
04.05.2022,ADULT SOCIAL CARE,LONDON CARE LTD,"1,450.41",PHY STS 65+,HOMECARE - IC,2103471823,1000003398
04.05.2022,ADULT SOCIAL CARE,LONDON CARE LTD,"2,212.78",PHY STS 65+,HOMECARE - IC,2103471781,1000003398
04.05.2022,ADULT SOCIAL CARE,LONDON CARE LTD,"2,767.56",PHY STS 65+,HOMECARE - IC,2103471842,1000003398
04.05.2022,ADULT SOCIAL CARE,THAMES HOMECARE SERVICE LTD,260.74,PHY STS 65+,HOMECARE - IC,2103472378,1000079295
04.05.2022,ADULT SOCIAL CARE,THAMES HOMECARE SERVICE LTD,297.45,PHY STS 65+,HOMECARE - IC,2103472075,1000079295
04.05.2022,ADULT SOCIAL CARE,THAMES HOMECARE SERVICE LTD,302.24,PHY STS 65+,HOMECARE - IC,2103472058,1000079295
04.05.2022,ADULT SOCIAL CARE,THAMES HOMECARE SERVICE LTD,335.83,PHY STS 65+,HOMECARE - IC,2103471983,1000079295
04.05.2022,ADULT SOCIAL CARE,THAMES HOMECARE SERVICE LTD,335.83,PHY STS 65+,HOMECARE - IC,2103472068,1000079295
04.05.2022,ADULT SOCIAL CARE,THAMES HOMECARE SERVICE LTD,365.04,PHY STS 65+,HOMECARE - IC,2103472381,1000079295
04.05.2022,ADULT SOCIAL CARE,THAMES HOMECARE SERVICE LTD,365.04,PHY STS 65+,HOMECARE - IC,2103472389,1000079295
04.05.2022,ADULT SOCIAL CARE,THAMES HOMECARE SERVICE LTD,369.41,PHY STS 65+,HOMECARE - IC,2103472096,1000079295
04.05.2022,ADULT SOCIAL CARE,THAMES HOMECARE SERVICE LTD,374.21,PHY STS 65+,HOMECARE - IC,2103472049,1000079295
04.05.2022,ADULT SOCIAL CARE,THAMES HOMECARE SERVICE LTD,374.21,PHY STS 65+,HOMECARE - IC,2103472131,1000079295
04.05.2022,ADULT SOCIAL CARE,THAMES HOMECARE SERVICE LTD,407.79,PHY STS 65+,HOMECARE - IC,2103472116,1000079295
04.05.2022,ADULT SOCIAL CARE,THAMES HOMECARE SERVICE LTD,470.16,PHY STS 65+,HOMECARE - IC,2103472109,1000079295
04.05.2022,ADULT SOCIAL CARE,THAMES HOMECARE SERVICE LTD,580.32,PHY STS 65+,HOMECARE - IC,2103472403,1000079295
04.05.2022,ADULT SOCIAL CARE,THAMES HOMECARE SERVICE LTD,669.24,PHY STS 65+,HOMECARE - IC,2103472406,1000079295
04.05.2022,ADULT SOCIAL CARE,THAMES HOMECARE SERVICE LTD,671.65,PHY STS 65+,HOMECARE - IC,2103472014,1000079295
04.05.2022,ADULT SOCIAL CARE,THAMES HOMECARE SERVICE LTD,671.65,PHY STS 65+,HOMECARE - IC,2103472018,1000079295
04.05.2022,ADULT SOCIAL CARE,THAMES HOMECARE SERVICE LTD,678.6,PHY STS 65+,HOMECARE - IC,2103472407,1000079295
04.05.2022,ADULT SOCIAL CARE,THAMES HOMECARE SERVICE LTD,805.98,PHY STS 65+,HOMECARE - IC,2103472135,1000079295
04.05.2022,ADULT SOCIAL CARE,THAMES HOMECARE SERVICE LTD,851.76,PHY STS 65+,HOMECARE - IC,2103472379,1000079295
04.05.2022,ADULT SOCIAL CARE,THAMES HOMECARE SERVICE LTD,851.76,PHY STS 65+,HOMECARE - IC,2103472384,1000079295
04.05.2022,ADULT SOCIAL CARE,THAMES HOMECARE SERVICE LTD,851.76,PHY STS 65+,HOMECARE - IC,2103472387,1000079295
04.05.2022,ADULT SOCIAL CARE,THAMES HOMECARE SERVICE LTD,851.76,PHY STS 65+,HOMECARE - IC,2103472390,1000079295
04.05.2022,ADULT SOCIAL CARE,THAMES HOMECARE SERVICE LTD,851.76,PHY STS 65+,HOMECARE - IC,2103472392,1000079295
04.05.2022,ADULT SOCIAL CARE,THAMES HOMECARE SERVICE LTD,851.76,PHY STS 65+,HOMECARE - IC,2103472395,1000079295
04.05.2022,ADULT SOCIAL CARE,THAMES HOMECARE SERVICE LTD,851.76,PHY STS 65+,HOMECARE - IC,2103472397,1000079295
04.05.2022,ADULT SOCIAL CARE,THAMES HOMECARE SERVICE LTD,851.76,PHY STS 65+,HOMECARE - IC,2103472399,1000079295
04.05.2022,ADULT SOCIAL CARE,THAMES HOMECARE SERVICE LTD,851.76,PHY STS 65+,HOMECARE - IC,2103472401,1000079295
04.05.2022,ADULT SOCIAL CARE,THAMES HOMECARE SERVICE LTD,851.76,PHY STS 65+,HOMECARE - IC,2103472404,1000079295
04.05.2022,ADULT SOCIAL CARE,THAMES HOMECARE SERVICE LTD,873.15,PHY STS 65+,HOMECARE - IC,2103472157,1000079295
04.05.2022,ADULT SOCIAL CARE,THAMES HOMECARE SERVICE LTD,954.72,PHY STS 65+,HOMECARE - IC,2103472394,1000079295
04.05.2022,ADULT SOCIAL CARE,CITY MEDICAL UK LTD,572,SAFEGUARDING & DOLS,EXTERNAL AGENCIES AND BODIES,5902523126,1000082396
04.05.2022,ADULT SOCIAL CARE,CITY MEDICAL UK LTD,"1,637.55",SAFEGUARDING & DOLS,EXTERNAL AGENCIES AND BODIES,5902523129,1000082396
04.05.2022,ADULT SOCIAL CARE,CITY MEDICAL UK LTD,"2,561.60",SAFEGUARDING & DOLS,EXTERNAL AGENCIES AND BODIES,5902523128,1000082396
04.05.2022,ADULT SOCIAL CARE,THAMES HOMECARE SERVICE LTD,254.27,SEN LTS 65+,HOMECARE - SPOT,2103471984,1000079295
04.05.2022,ADULT SOCIAL CARE,THAMES HOMECARE SERVICE LTD,321.43,SEN LTS 65+,HOMECARE - SPOT,2103471998,1000079295
04.05.2022,ADULT SOCIAL CARE,LONDON CARE LTD,418.38,SEN STS 65+,HOMECARE - IC,2103471788,1000003398
04.05.2022,ADULT SOCIAL CARE,LONDON CARE LTD,483.2,SOCIAL ISOLATION,HOMECARE - C&V,2103471805,1000003398
04.05.2022,ADULT SOCIAL CARE,SAGECARE LTD,344.25,SOCIAL ISOLATION,HOMECARE - C&V,2103472189,1000080924
04.05.2022,ADULT SOCIAL CARE,SAGECARE LTD,349.77,SOCIAL ISOLATION,HOMECARE - C&V,2103472360,1000080924
04.05.2022,ADULT SOCIAL CARE,SAGECARE LTD,"1,869.20",SOCIAL ISOLATION,HOMECARE - C&V,2103472260,1000080924
04.05.2022,ADULT SOCIAL CARE,SAGECARE LTD,"2,919.75",SOCIAL ISOLATION,HOMECARE - C&V,2103472236,1000080924
04.05.2022,ADULT SOCIAL CARE,SAGECARE LTD,"2,964.23",SOCIAL ISOLATION,HOMECARE - C&V,2103472239,1000080924
04.05.2022,ADULT SOCIAL CARE,THAMES HOMECARE SERVICE LTD,379,SOCIAL ISOLATION,HOMECARE - SPOT,2103472015,1000079295
04.05.2022,ADULT SOCIAL CARE,SAGECARE LTD,"1,087.96",SUB LTS 65+,HOMECARE - C&V,2103472341,1000080924
04.05.2022,ASSET MANAGEMENT,ANTONY HODARI  SOLICITORS,"1,041.67",DISREPAIR,PAYMENTS FOR LEGAL SERVICES,2103471283,1000031040
04.05.2022,ASSET MANAGEMENT,ANTONY HODARI  SOLICITORS,"1,083.33",DISREPAIR,PAYMENTS FOR LEGAL SERVICES,2103471275,1000031040
04.05.2022,ASSET MANAGEMENT,ANTONY HODARI  SOLICITORS,"3,041.67",DISREPAIR,PAYMENTS FOR LEGAL SERVICES,2103471278,1000031040
04.05.2022,ASSET MANAGEMENT,ANTONY HODARI  SOLICITORS,"6,620.60",DISREPAIR,PAYMENTS FOR LEGAL SERVICES,2103471271,1000031040
04.05.2022,ASSET MANAGEMENT,ASHFORDS LLP,"5,833.33",DISREPAIR,PAYMENTS FOR LEGAL SERVICES,2103471279,1000055865
04.05.2022,ASSET MANAGEMENT,ASHFORDS LLP,"7,500.00",DISREPAIR,PAYMENTS FOR LEGAL SERVICES,2103471280,1000055865
04.05.2022,ASSET MANAGEMENT,ASHFORDS LLP,"8,333.33",DISREPAIR,PAYMENTS FOR LEGAL SERVICES,2103471266,1000055865
04.05.2022,ASSET MANAGEMENT,DRISCOLL KINGSTON SOLICITORS,"3,958.33",DISREPAIR,PAYMENTS FOR LEGAL SERVICES,2103471276,1000082357
04.05.2022,ASSET MANAGEMENT,NEW BROAD STREET LAW LTD,"3,333.33",DISREPAIR,PAYMENTS FOR LEGAL SERVICES,2103471265,1000083064
04.05.2022,ASSET MANAGEMENT,ALPINE LAW LTD,"8,333.33",DISREPAIR,PAYMENTS FOR LEGAL SERVICES,2103471272,1000083126
04.05.2022,ASSET MANAGEMENT,CHARLES HILL & CO SOLICITORS,"5,000.00",DISREPAIR,PAYMENTS FOR LEGAL SERVICES,2103471264,1000083841
04.05.2022,ASSET MANAGEMENT,BOND TURNER  SOLICITORS,665.92,DISREPAIR,PAYMENTS FOR LEGAL SERVICES,2103471270,1000085362
04.05.2022,ASSET MANAGEMENT,BOND TURNER  SOLICITORS,"1,000.00",DISREPAIR,PAYMENTS FOR LEGAL SERVICES,2103471284,1000085362
04.05.2022,ASSET MANAGEMENT,BOND TURNER  SOLICITORS,"1,250.00",DISREPAIR,PAYMENTS FOR LEGAL SERVICES,2103471274,1000085362
04.05.2022,ASSET MANAGEMENT,BOND TURNER  SOLICITORS,"3,688.97",DISREPAIR,PAYMENTS FOR LEGAL SERVICES,2103471269,1000085362
04.05.2022,ASSET MANAGEMENT,BOND TURNER  SOLICITORS,"4,500.00",DISREPAIR,PAYMENTS FOR LEGAL SERVICES,2103471267,1000085362
04.05.2022,ASSET MANAGEMENT,BOND TURNER  SOLICITORS,"5,000.00",DISREPAIR,PAYMENTS FOR LEGAL SERVICES,2103471281,1000085362
04.05.2022,ASSET MANAGEMENT,MANSFIELD SOLICITORS & ADVOCATES LTD,"6,666.67",DISREPAIR,PAYMENTS FOR LEGAL SERVICES,2103471277,1000087050
04.05.2022,ASSET MANAGEMENT,VERITAS  SOLICITORS,"1,871.67",DISREPAIR,PAYMENTS FOR LEGAL SERVICES,2103471282,1000088269
04.05.2022,ASSET MANAGEMENT,1st ACTIVE PROPERTY SERVICES LTD,274.29,DISREPAIR,PAYMENTS FOR LEGAL SERVICES,2103472644,3000001655
04.05.2022,ASSET MANAGEMENT,KNK BUILDING SERVICES LTD,"1,193.88",DISREPAIR,PAYMENTS FOR LEGAL SERVICES,2103471260,3000001728
04.05.2022,ASSET MANAGEMENT,CALFORD SEADEN LLP,"1,250.00",MAJOR REPAIRS,BUILDING R&M,5902522892,1061592
04.05.2022,ASSET MANAGEMENT HGF,KENT COUNTY COUNCIL - LASER,591.27,47B EAST DULWICH ROAD,GAS,5902523174,1000012926
04.05.2022,ASSET MANAGEMENT HGF,KENT COUNTY COUNCIL - LASER,"1,843.59",QUEENS ROAD 2 (BLOCK J),ELECTRICITY,5902523186,1000012926
04.05.2022,C&AS,DR HELGA MULLER,576.36,SFS MGMT & SUPPORT,LEGAL FEES & COURT COSTS,6102026336,INTERNATIONAL PAYMENT
04.05.2022,CENTRAL FUNCTIONS,LAMBERT SMITH HAMPTON GROUP LTD,"7,555.00",TECHNICAL SUPPORT,PROFESSIONAL FEES,5902523232,1000060045
04.05.2022,CENTRAL FUNCTIONS,LAMBERT SMITH HAMPTON GROUP LTD,"8,055.00",TECHNICAL SUPPORT,PROFESSIONAL FEES,5902523234,1000060045
04.05.2022,CHIEF EXECUTIVE'S OFFICE,BUREAU VAN DIJK ELECTRONIC PUBLISHING LTD,"11,575.20",BUSINESS SUPPORT,SUBSCRIPTIONS,5902523109,1000077874
04.05.2022,CHILDREN AND FAMILIES,REDACTED PERSONAL DATA,695.04,ADOPTION ALLOWANCES,PAYMENTS TO CARERS,REDACTED,REDACTED
04.05.2022,CHILDREN AND FAMILIES,REDACTED PERSONAL DATA,375.54,ADOPTION ALLOWANCES,PAYMENTS TO CARERS,REDACTED,REDACTED
04.05.2022,CHILDREN AND FAMILIES,REDACTED PERSONAL DATA,375.54,ADOPTION ALLOWANCES,PAYMENTS TO CARERS,REDACTED,REDACTED
04.05.2022,CHILDREN AND FAMILIES,REDACTED PERSONAL DATA,712.3,ADOPTION ALLOWANCES,PAYMENTS TO CARERS,REDACTED,REDACTED
04.05.2022,CHILDREN AND FAMILIES,REDACTED PERSONAL DATA,862,ADOPTION ALLOWANCES,PAYMENTS TO CARERS,REDACTED,REDACTED
04.05.2022,CHILDREN AND FAMILIES,REDACTED PERSONAL DATA,635.34,ADOPTION ALLOWANCES,PAYMENTS TO CARERS,REDACTED,REDACTED
04.05.2022,CHILDREN AND FAMILIES,REDACTED PERSONAL DATA,375.54,ADOPTION ALLOWANCES,PAYMENTS TO CARERS,REDACTED,REDACTED
04.05.2022,CHILDREN AND FAMILIES,REDACTED PERSONAL DATA,465.54,ADOPTION ALLOWANCES,PAYMENTS TO CARERS,REDACTED,REDACTED
04.05.2022,CHILDREN AND FAMILIES,REDACTED PERSONAL DATA,375.54,ADOPTION ALLOWANCES,PAYMENTS TO CARERS,REDACTED,REDACTED
04.05.2022,CHILDREN AND FAMILIES,REDACTED PERSONAL DATA,451.8,ADOPTION ALLOWANCES,PAYMENTS TO CARERS,REDACTED,REDACTED
04.05.2022,CHILDREN AND FAMILIES,REDACTED PERSONAL DATA,386,ADOPTION ALLOWANCES,PAYMENTS TO CARERS,REDACTED,REDACTED
04.05.2022,CHILDREN AND FAMILIES,REDACTED PERSONAL DATA,705.24,ADOPTION ALLOWANCES,PAYMENTS TO CARERS,REDACTED,REDACTED
04.05.2022,CHILDREN AND FAMILIES,REDACTED PERSONAL DATA,777.36,ADOPTION ALLOWANCES,PAYMENTS TO CARERS,REDACTED,REDACTED
04.05.2022,CHILDREN AND FAMILIES,REDACTED PERSONAL DATA,512.02,ADOPTION ALLOWANCES,PAYMENTS TO CARERS,REDACTED,REDACTED
04.05.2022,CHILDREN AND FAMILIES,REDACTED PERSONAL DATA,251.12,ADOPTION ALLOWANCES,PAYMENTS TO CARERS,REDACTED,REDACTED
04.05.2022,CHILDREN AND FAMILIES,REDACTED PERSONAL DATA,375.54,ADOPTION ALLOWANCES,PAYMENTS TO CARERS,REDACTED,REDACTED
04.05.2022,CHILDREN AND FAMILIES,REDACTED PERSONAL DATA,375.54,ADOPTION ALLOWANCES,PAYMENTS TO CARERS,REDACTED,REDACTED
04.05.2022,CHILDREN AND FAMILIES,REDACTED PERSONAL DATA,502,ADOPTION ALLOWANCES,PAYMENTS TO CARERS,REDACTED,REDACTED
04.05.2022,CHILDREN AND FAMILIES,REDACTED PERSONAL DATA,375.54,ADOPTION ALLOWANCES,PAYMENTS TO CARERS,REDACTED,REDACTED
04.05.2022,CHILDREN AND FAMILIES,REDACTED PERSONAL DATA,640.9,ADOPTION ALLOWANCES,PAYMENTS TO CARERS,REDACTED,REDACTED
04.05.2022,CHILDREN AND FAMILIES,REDACTED PERSONAL DATA,382.3,ADOPTION ALLOWANCES,PAYMENTS TO CARERS,REDACTED,REDACTED
04.05.2022,CHILDREN AND FAMILIES,REDACTED PERSONAL DATA,382.3,ADOPTION ALLOWANCES,PAYMENTS TO CARERS,REDACTED,REDACTED
04.05.2022,CHILDREN AND FAMILIES,REDACTED PERSONAL DATA,359.9,ADOPTION ALLOWANCES,PAYMENTS TO CARERS,REDACTED,REDACTED
04.05.2022,CHILDREN AND FAMILIES,REDACTED PERSONAL DATA,304.26,ADOPTION ALLOWANCES,PAYMENTS TO CARERS,REDACTED,REDACTED
04.05.2022,CHILDREN AND FAMILIES,REDACTED PERSONAL DATA,278.54,ADOPTION ALLOWANCES,PAYMENTS TO CARERS,REDACTED,REDACTED
04.05.2022,CHILDREN AND FAMILIES,REDACTED PERSONAL DATA,485.22,ADOPTION ALLOWANCES,PAYMENTS TO CARERS,REDACTED,REDACTED
04.05.2022,CHILDREN AND FAMILIES,REDACTED PERSONAL DATA,392.42,ADOPTION ALLOWANCES,PAYMENTS TO CARERS,REDACTED,REDACTED
04.05.2022,CHILDREN AND FAMILIES,REDACTED PERSONAL DATA,252.9,ADOPTION ALLOWANCES,PAYMENTS TO CARERS,REDACTED,REDACTED
04.05.2022,CHILDREN AND FAMILIES,REDACTED PERSONAL DATA,253.56,ADOPTION ALLOWANCES,PAYMENTS TO CARERS,REDACTED,REDACTED
04.05.2022,CHILDREN AND FAMILIES,REDACTED PERSONAL DATA,382.3,ADOPTION ALLOWANCES,PAYMENTS TO CARERS,REDACTED,REDACTED
04.05.2022,CHILDREN AND FAMILIES,REDACTED PERSONAL DATA,382.3,ADOPTION ALLOWANCES,PAYMENTS TO CARERS,REDACTED,REDACTED
04.05.2022,CHILDREN AND FAMILIES,REDACTED PERSONAL DATA,484.92,ADOPTION ALLOWANCES,PAYMENTS TO CARERS,REDACTED,REDACTED
04.05.2022,CHILDREN AND FAMILIES,REDACTED PERSONAL DATA,530,ADOPTION ALLOWANCES,PAYMENTS TO CARERS,REDACTED,REDACTED
04.05.2022,CHILDREN AND FAMILIES,REDACTED PERSONAL DATA,908,ADOPTION ALLOWANCES,PAYMENTS TO CARERS,REDACTED,REDACTED
04.05.2022,CHILDREN AND FAMILIES,REDACTED PERSONAL DATA,738.32,ADOPTION ALLOWANCES,PAYMENTS TO CARERS,REDACTED,REDACTED
04.05.2022,CHILDREN AND FAMILIES,REDACTED PERSONAL DATA,695.12,ADOPTION ALLOWANCES,PAYMENTS TO CARERS,REDACTED,REDACTED
04.05.2022,CHILDREN AND FAMILIES,REDACTED PERSONAL DATA,293.98,ADOPTION ALLOWANCES,PAYMENTS TO CARERS,REDACTED,REDACTED
04.05.2022,CHILDREN AND FAMILIES,REDACTED PERSONAL DATA,251.94,ADOPTION ALLOWANCES,PAYMENTS TO CARERS,REDACTED,REDACTED
04.05.2022,CHILDREN AND FAMILIES,REDACTED PERSONAL DATA,652.9,ADOPTION ALLOWANCES,PAYMENTS TO CARERS,REDACTED,REDACTED
04.05.2022,CHILDREN AND FAMILIES,REDACTED PERSONAL DATA,652.9,ADOPTION ALLOWANCES,PAYMENTS TO CARERS,REDACTED,REDACTED
04.05.2022,CHILDREN AND FAMILIES,REDACTED PERSONAL DATA,712.3,ADOPTION ALLOWANCES,PAYMENTS TO CARERS,REDACTED,REDACTED
04.05.2022,CHILDREN AND FAMILIES,REDACTED PERSONAL DATA,767.68,ADOPTION ALLOWANCES,PAYMENTS TO CARERS,REDACTED,REDACTED
04.05.2022,CHILDREN AND FAMILIES,REDACTED PERSONAL DATA,400.18,ADOPTION ALLOWANCES,PAYMENTS TO CARERS,REDACTED,REDACTED
04.05.2022,CHILDREN AND FAMILIES,REDACTED PERSONAL DATA,704,ADOPTION ALLOWANCES,PAYMENTS TO CARERS,REDACTED,REDACTED
04.05.2022,CHILDREN AND FAMILIES,REDACTED PERSONAL DATA,789.7,ADOPTION ALLOWANCES,PAYMENTS TO CARERS,REDACTED,REDACTED
04.05.2022,CHILDREN AND FAMILIES,REDACTED PERSONAL DATA,588.42,ADOPTION ALLOWANCES,PAYMENTS TO CARERS,REDACTED,REDACTED
04.05.2022,CHILDREN AND FAMILIES,REDACTED PERSONAL DATA,"1,053.20",ADOPTION ALLOWANCES,PAYMENTS TO CARERS,REDACTED,REDACTED
04.05.2022,CHILDREN AND FAMILIES,REDACTED PERSONAL DATA,386,ADOPTION ALLOWANCES,PAYMENTS TO CARERS,REDACTED,REDACTED
04.05.2022,CHILDREN AND FAMILIES,REDACTED PERSONAL DATA,618.6,ADOPTION ALLOWANCES,PAYMENTS TO CARERS,REDACTED,REDACTED
04.05.2022,CHILDREN AND FAMILIES,REDACTED PERSONAL DATA,682,ADOPTION ALLOWANCES,PAYMENTS TO CARERS,REDACTED,REDACTED
04.05.2022,CHILDREN AND FAMILIES,REDACTED PERSONAL DATA,276.1,ADOPTION ALLOWANCES,PAYMENTS TO CARERS,REDACTED,REDACTED
04.05.2022,CHILDREN AND FAMILIES,REDACTED PERSONAL DATA,268.62,ADOPTION ALLOWANCES,PAYMENTS TO CARERS,REDACTED,REDACTED
04.05.2022,CHILDREN AND FAMILIES,REDACTED PERSONAL DATA,288.82,ADOPTION ALLOWANCES,PAYMENTS TO CARERS,REDACTED,REDACTED
04.05.2022,CHILDREN AND FAMILIES,REDACTED PERSONAL DATA,288.92,ADOPTION ALLOWANCES,PAYMENTS TO CARERS,REDACTED,REDACTED
04.05.2022,CHILDREN AND FAMILIES,REDACTED PERSONAL DATA,635.34,ADOPTION ALLOWANCES,PAYMENTS TO CARERS,REDACTED,REDACTED
04.05.2022,CHILDREN AND FAMILIES,REDACTED PERSONAL DATA,682,ADOPTION ALLOWANCES,PAYMENTS TO CARERS,REDACTED,REDACTED
04.05.2022,CHILDREN AND FAMILIES,REDACTED PERSONAL DATA,682,ADOPTION ALLOWANCES,PAYMENTS TO CARERS,REDACTED,REDACTED
04.05.2022,CHILDREN AND FAMILIES,REDACTED PERSONAL DATA,682,ADOPTION ALLOWANCES,PAYMENTS TO CARERS,REDACTED,REDACTED
04.05.2022,CHILDREN AND FAMILIES,PARENTS AND CHILDREN TOGETHER,385,ADOPTION SUPP FUND,EXTERNAL AGENCIES AND BODIES,5902522992,1000068128
04.05.2022,CHILDREN AND FAMILIES,LIONCARE LIMITED,"4,810.10",CHILDREN�S RESID,RESIDENTIAL CARE,2103472173,1000065330
04.05.2022,CHILDREN AND FAMILIES,OWNLIFE RESIDENTIAL LTD,"11,800.00",CHILDREN�S RESID,RESIDENTIAL CARE,2103471877,1000085398
04.05.2022,CHILDREN AND FAMILIES,COMPASS CHILDREN'S HOMES KENT LTD,"-1,135.74",CHILDREN�S RESID,RESIDENTIAL CARE,2103471885,1000087062
04.05.2022,CHILDREN AND FAMILIES,COMPASS CHILDREN'S HOMES KENT LTD,450,CHILDREN�S RESID,RESIDENTIAL CARE,2103471873,1000087062
04.05.2022,CHILDREN AND FAMILIES,COMPASS CHILDREN'S HOMES KENT LTD,757.16,CHILDREN�S RESID,RESIDENTIAL CARE,2103471883,1000087062
04.05.2022,CHILDREN AND FAMILIES,COMPASS CHILDREN'S HOMES KENT LTD,"1,142.90",CHILDREN�S RESID,RESIDENTIAL CARE,2103471976,1000087062
04.05.2022,CHILDREN AND FAMILIES,COMPASS CHILDREN'S HOMES KENT LTD,"1,500.00",CHILDREN�S RESID,RESIDENTIAL CARE,2103471886,1000087062
04.05.2022,CHILDREN AND FAMILIES,COMPASS CHILDREN'S HOMES KENT LTD,"2,271.48",CHILDREN�S RESID,RESIDENTIAL CARE,2103471870,1000087062
04.05.2022,CHILDREN AND FAMILIES,COMPASS CHILDREN'S HOMES KENT LTD,"2,714.28",CHILDREN�S RESID,RESIDENTIAL CARE,2103471881,1000087062
04.05.2022,CHILDREN AND FAMILIES,COMPASS CHILDREN'S HOMES KENT LTD,"4,800.18",CHILDREN�S RESID,RESIDENTIAL CARE,2103471977,1000087062
04.05.2022,CHILDREN AND FAMILIES,COMPASS CHILDREN'S HOMES KENT LTD,"5,110.83",CHILDREN�S RESID,RESIDENTIAL CARE,2103471884,1000087062
04.05.2022,CHILDREN AND FAMILIES,COMPASS CHILDREN'S HOMES KENT LTD,"5,678.70",CHILDREN�S RESID,RESIDENTIAL CARE,2103471871,1000087062
04.05.2022,CHILDREN AND FAMILIES,COMPASS CHILDREN'S HOMES KENT LTD,"5,678.70",CHILDREN�S RESID,RESIDENTIAL CARE,2103471879,1000087062
04.05.2022,CHILDREN AND FAMILIES,COMPASS CHILDREN'S HOMES KENT LTD,"5,678.70",CHILDREN�S RESID,RESIDENTIAL CARE,2103471880,1000087062
04.05.2022,CHILDREN AND FAMILIES,COMPASS CHILDREN'S HOMES KENT LTD,"5,867.99",CHILDREN�S RESID,RESIDENTIAL CARE,2103471872,1000087062
04.05.2022,CHILDREN AND FAMILIES,COMPASS CHILDREN'S HOMES KENT LTD,"5,867.99",CHILDREN�S RESID,RESIDENTIAL CARE,2103471874,1000087062
04.05.2022,CHILDREN AND FAMILIES,COMPASS CHILDREN'S HOMES KENT LTD,"5,867.99",CHILDREN�S RESID,RESIDENTIAL CARE,2103471875,1000087062
04.05.2022,CHILDREN AND FAMILIES,COMPASS CHILDREN'S HOMES KENT LTD,"5,867.99",CHILDREN�S RESID,RESIDENTIAL CARE,2103471878,1000087062
04.05.2022,CHILDREN AND FAMILIES,COMPASS CHILDREN'S HOMES KENT LTD,"18,321.39",CHILDREN�S RESID,RESIDENTIAL CARE,2103471876,1000087062
04.05.2022,CHILDREN AND FAMILIES,REDACTED PERSONAL DATA,300,FOSTERING ALLOWANCES,ADDITIONAL PAYMENTS TO AGENCIES/CARERS,REDACTED,REDACTED
04.05.2022,CHILDREN AND FAMILIES,REDACTED PERSONAL DATA,300,FOSTERING ALLOWANCES,ADDITIONAL PAYMENTS TO AGENCIES/CARERS,REDACTED,REDACTED
04.05.2022,CHILDREN AND FAMILIES,REDACTED PERSONAL DATA,300,FOSTERING ALLOWANCES,ADDITIONAL PAYMENTS TO AGENCIES/CARERS,REDACTED,REDACTED
04.05.2022,CHILDREN AND FAMILIES,REDACTED PERSONAL DATA,300,FOSTERING ALLOWANCES,ADDITIONAL PAYMENTS TO AGENCIES/CARERS,REDACTED,REDACTED
04.05.2022,CHILDREN AND FAMILIES,REDACTED PERSONAL DATA,300,FOSTERING ALLOWANCES,OTHER PAYMENTS FOR CLIENTS,REDACTED,REDACTED
04.05.2022,CHILDREN AND FAMILIES,REDACTED PERSONAL DATA,"1,219.28",FOSTERING ALLOWANCES,OTHER PAYMENTS FOR CLIENTS,REDACTED,REDACTED
04.05.2022,CHILDREN AND FAMILIES,REDACTED PERSONAL DATA,594.57,FOSTERING ALLOWANCES,PAYMENTS TO CARERS,REDACTED,REDACTED
04.05.2022,CHILDREN AND FAMILIES,REDACTED PERSONAL DATA,672.28,FOSTERING ALLOWANCES,PAYMENTS TO CARERS,REDACTED,REDACTED
04.05.2022,CHILDREN AND FAMILIES,REDACTED PERSONAL DATA,918.57,FOSTERING ALLOWANCES,PAYMENTS TO CARERS,REDACTED,REDACTED
04.05.2022,CHILDREN AND FAMILIES,REDACTED PERSONAL DATA,920.57,FOSTERING ALLOWANCES,PAYMENTS TO CARERS,REDACTED,REDACTED
04.05.2022,CHILDREN AND FAMILIES,REDACTED PERSONAL DATA,918.57,FOSTERING ALLOWANCES,PAYMENTS TO CARERS,REDACTED,REDACTED
04.05.2022,CHILDREN AND FAMILIES,REDACTED PERSONAL DATA,976.57,FOSTERING ALLOWANCES,PAYMENTS TO CARERS,REDACTED,REDACTED
04.05.2022,CHILDREN AND FAMILIES,REDACTED PERSONAL DATA,"1,010.57",FOSTERING ALLOWANCES,PAYMENTS TO CARERS,REDACTED,REDACTED
04.05.2022,CHILDREN AND FAMILIES,REDACTED PERSONAL DATA,417.14,FOSTERING ALLOWANCES,PAYMENTS TO CARERS,REDACTED,REDACTED
04.05.2022,CHILDREN AND FAMILIES,REDACTED PERSONAL DATA,738,FOSTERING ALLOWANCES,PAYMENTS TO CARERS,REDACTED,REDACTED
04.05.2022,CHILDREN AND FAMILIES,REDACTED PERSONAL DATA,918.57,FOSTERING ALLOWANCES,PAYMENTS TO CARERS,REDACTED,REDACTED
04.05.2022,CHILDREN AND FAMILIES,REDACTED PERSONAL DATA,920.57,FOSTERING ALLOWANCES,PAYMENTS TO CARERS,REDACTED,REDACTED
04.05.2022,CHILDREN AND FAMILIES,REDACTED PERSONAL DATA,672.28,FOSTERING ALLOWANCES,PAYMENTS TO CARERS,REDACTED,REDACTED
04.05.2022,CHILDREN AND FAMILIES,REDACTED PERSONAL DATA,696.57,FOSTERING ALLOWANCES,PAYMENTS TO CARERS,REDACTED,REDACTED
04.05.2022,CHILDREN AND FAMILIES,REDACTED PERSONAL DATA,738,FOSTERING ALLOWANCES,PAYMENTS TO CARERS,REDACTED,REDACTED
04.05.2022,CHILDREN AND FAMILIES,REDACTED PERSONAL DATA,713.71,FOSTERING ALLOWANCES,PAYMENTS TO CARERS,REDACTED,REDACTED
04.05.2022,CHILDREN AND FAMILIES,REDACTED PERSONAL DATA,"1,632.00",FOSTERING ALLOWANCES,PAYMENTS TO CARERS,REDACTED,REDACTED
04.05.2022,CHILDREN AND FAMILIES,REDACTED PERSONAL DATA,738,FOSTERING ALLOWANCES,PAYMENTS TO CARERS,REDACTED,REDACTED
04.05.2022,CHILDREN AND FAMILIES,REDACTED PERSONAL DATA,913.42,FOSTERING ALLOWANCES,PAYMENTS TO CARERS,REDACTED,REDACTED
04.05.2022,CHILDREN AND FAMILIES,REDACTED PERSONAL DATA,373.71,FOSTERING ALLOWANCES,PAYMENTS TO CARERS,REDACTED,REDACTED
04.05.2022,CHILDREN AND FAMILIES,REDACTED PERSONAL DATA,920.57,FOSTERING ALLOWANCES,PAYMENTS TO CARERS,REDACTED,REDACTED
04.05.2022,CHILDREN AND FAMILIES,REDACTED PERSONAL DATA,920.57,FOSTERING ALLOWANCES,PAYMENTS TO CARERS,REDACTED,REDACTED
04.05.2022,CHILDREN AND FAMILIES,REDACTED PERSONAL DATA,918.57,FOSTERING ALLOWANCES,PAYMENTS TO CARERS,REDACTED,REDACTED
04.05.2022,CHILDREN AND FAMILIES,REDACTED PERSONAL DATA,918.57,FOSTERING ALLOWANCES,PAYMENTS TO CARERS,REDACTED,REDACTED
04.05.2022,CHILDREN AND FAMILIES,REDACTED PERSONAL DATA,918.57,FOSTERING ALLOWANCES,PAYMENTS TO CARERS,REDACTED,REDACTED
04.05.2022,CHILDREN AND FAMILIES,REDACTED PERSONAL DATA,918.57,FOSTERING ALLOWANCES,PAYMENTS TO CARERS,REDACTED,REDACTED
04.05.2022,CHILDREN AND FAMILIES,REDACTED PERSONAL DATA,"1,046.86",FOSTERING ALLOWANCES,PAYMENTS TO CARERS,REDACTED,REDACTED
04.05.2022,CHILDREN AND FAMILIES,REDACTED PERSONAL DATA,"1,046.86",FOSTERING ALLOWANCES,PAYMENTS TO CARERS,REDACTED,REDACTED
04.05.2022,CHILDREN AND FAMILIES,REDACTED PERSONAL DATA,"1,046.86",FOSTERING ALLOWANCES,PAYMENTS TO CARERS,REDACTED,REDACTED
04.05.2022,CHILDREN AND FAMILIES,REDACTED PERSONAL DATA,"1,010.57",FOSTERING ALLOWANCES,PAYMENTS TO CARERS,REDACTED,REDACTED
04.05.2022,CHILDREN AND FAMILIES,REDACTED PERSONAL DATA,920.57,FOSTERING ALLOWANCES,PAYMENTS TO CARERS,REDACTED,REDACTED
04.05.2022,CHILDREN AND FAMILIES,REDACTED PERSONAL DATA,383.86,FOSTERING ALLOWANCES,PAYMENTS TO CARERS,REDACTED,REDACTED
04.05.2022,CHILDREN AND FAMILIES,REDACTED PERSONAL DATA,660,FOSTERING ALLOWANCES,PAYMENTS TO CARERS,REDACTED,REDACTED
04.05.2022,CHILDREN AND FAMILIES,REDACTED PERSONAL DATA,672.28,FOSTERING ALLOWANCES,PAYMENTS TO CARERS,REDACTED,REDACTED
04.05.2022,CHILDREN AND FAMILIES,REDACTED PERSONAL DATA,764.28,FOSTERING ALLOWANCES,PAYMENTS TO CARERS,REDACTED,REDACTED
04.05.2022,CHILDREN AND FAMILIES,REDACTED PERSONAL DATA,920.57,FOSTERING ALLOWANCES,PAYMENTS TO CARERS,REDACTED,REDACTED
04.05.2022,CHILDREN AND FAMILIES,REDACTED PERSONAL DATA,"1,632.00",FOSTERING ALLOWANCES,PAYMENTS TO CARERS,REDACTED,REDACTED
04.05.2022,CHILDREN AND FAMILIES,REDACTED PERSONAL DATA,"1,632.00",FOSTERING ALLOWANCES,PAYMENTS TO CARERS,REDACTED,REDACTED
04.05.2022,CHILDREN AND FAMILIES,REDACTED PERSONAL DATA,"1,668.57",FOSTERING ALLOWANCES,PAYMENTS TO CARERS,REDACTED,REDACTED
04.05.2022,CHILDREN AND FAMILIES,REDACTED PERSONAL DATA,976.57,FOSTERING ALLOWANCES,PAYMENTS TO CARERS,REDACTED,REDACTED
04.05.2022,CHILDREN AND FAMILIES,REDACTED PERSONAL DATA,952.57,FOSTERING ALLOWANCES,PAYMENTS TO CARERS,REDACTED,REDACTED
04.05.2022,CHILDREN AND FAMILIES,REDACTED PERSONAL DATA,956.86,FOSTERING ALLOWANCES,PAYMENTS TO CARERS,REDACTED,REDACTED
04.05.2022,CHILDREN AND FAMILIES,REDACTED PERSONAL DATA,756,FOSTERING ALLOWANCES,PAYMENTS TO CARERS,REDACTED,REDACTED
04.05.2022,CHILDREN AND FAMILIES,REDACTED PERSONAL DATA,744,FOSTERING ALLOWANCES,PAYMENTS TO CARERS,REDACTED,REDACTED
04.05.2022,CHILDREN AND FAMILIES,REDACTED PERSONAL DATA,"1,166.00",FOSTERING ALLOWANCES,PAYMENTS TO CARERS,REDACTED,REDACTED
04.05.2022,CHILDREN AND FAMILIES,REDACTED PERSONAL DATA,650.86,FOSTERING ALLOWANCES,PAYMENTS TO CARERS,REDACTED,REDACTED
04.05.2022,CHILDREN AND FAMILIES,REDACTED PERSONAL DATA,886.57,FOSTERING ALLOWANCES,PAYMENTS TO CARERS,REDACTED,REDACTED
04.05.2022,CHILDREN AND FAMILIES,REDACTED PERSONAL DATA,672.28,FOSTERING ALLOWANCES,PAYMENTS TO CARERS,REDACTED,REDACTED
04.05.2022,CHILDREN AND FAMILIES,REDACTED PERSONAL DATA,764.28,FOSTERING ALLOWANCES,PAYMENTS TO CARERS,REDACTED,REDACTED
04.05.2022,CHILDREN AND FAMILIES,REDACTED PERSONAL DATA,"1,010.57",FOSTERING ALLOWANCES,PAYMENTS TO CARERS,REDACTED,REDACTED
04.05.2022,CHILDREN AND FAMILIES,REDACTED PERSONAL DATA,"1,734.28",FOSTERING ALLOWANCES,PAYMENTS TO CARERS,REDACTED,REDACTED
04.05.2022,CHILDREN AND FAMILIES,REDACTED PERSONAL DATA,918.57,FOSTERING ALLOWANCES,PAYMENTS TO CARERS,REDACTED,REDACTED
04.05.2022,CHILDREN AND FAMILIES,REDACTED PERSONAL DATA,299.43,FOSTERING ALLOWANCES,PAYMENTS TO CARERS,REDACTED,REDACTED
04.05.2022,CHILDREN AND FAMILIES,REDACTED PERSONAL DATA,756,FOSTERING ALLOWANCES,PAYMENTS TO CARERS,REDACTED,REDACTED
04.05.2022,CHILDREN AND FAMILIES,REDACTED PERSONAL DATA,696.57,FOSTERING ALLOWANCES,PAYMENTS TO CARERS,REDACTED,REDACTED
04.05.2022,CHILDREN AND FAMILIES,REDACTED PERSONAL DATA,672.28,FOSTERING ALLOWANCES,PAYMENTS TO CARERS,REDACTED,REDACTED
04.05.2022,CHILDREN AND FAMILIES,REDACTED PERSONAL DATA,764.28,FOSTERING ALLOWANCES,PAYMENTS TO CARERS,REDACTED,REDACTED
04.05.2022,CHILDREN AND FAMILIES,REDACTED PERSONAL DATA,350.29,FOSTERING ALLOWANCES,PAYMENTS TO CARERS,REDACTED,REDACTED
04.05.2022,CHILDREN AND FAMILIES,REDACTED PERSONAL DATA,918.57,FOSTERING ALLOWANCES,PAYMENTS TO CARERS,REDACTED,REDACTED
04.05.2022,CHILDREN AND FAMILIES,REDACTED PERSONAL DATA,"1,092.00",FOSTERING ALLOWANCES,PAYMENTS TO CARERS,REDACTED,REDACTED
04.05.2022,CHILDREN AND FAMILIES,REDACTED PERSONAL DATA,552.57,FOSTERING ALLOWANCES,PAYMENTS TO CARERS,REDACTED,REDACTED
04.05.2022,CHILDREN AND FAMILIES,REDACTED PERSONAL DATA,920.57,FOSTERING ALLOWANCES,PAYMENTS TO CARERS,REDACTED,REDACTED
04.05.2022,CHILDREN AND FAMILIES,REDACTED PERSONAL DATA,672.28,FOSTERING ALLOWANCES,PAYMENTS TO CARERS,REDACTED,REDACTED
04.05.2022,CHILDREN AND FAMILIES,REDACTED PERSONAL DATA,672.28,FOSTERING ALLOWANCES,PAYMENTS TO CARERS,REDACTED,REDACTED
04.05.2022,CHILDREN AND FAMILIES,REDACTED PERSONAL DATA,738,FOSTERING ALLOWANCES,PAYMENTS TO CARERS,REDACTED,REDACTED
04.05.2022,CHILDREN AND FAMILIES,REDACTED PERSONAL DATA,738,FOSTERING ALLOWANCES,PAYMENTS TO CARERS,REDACTED,REDACTED
04.05.2022,CHILDREN AND FAMILIES,REDACTED PERSONAL DATA,738,FOSTERING ALLOWANCES,PAYMENTS TO CARERS,REDACTED,REDACTED
04.05.2022,CHILDREN AND FAMILIES,REDACTED PERSONAL DATA,252.86,FOSTERING ALLOWANCES,PAYMENTS TO CARERS,REDACTED,REDACTED
04.05.2022,CHILDREN AND FAMILIES,REDACTED PERSONAL DATA,552.57,FOSTERING ALLOWANCES,PAYMENTS TO CARERS,REDACTED,REDACTED
04.05.2022,CHILDREN AND FAMILIES,REDACTED PERSONAL DATA,650.86,FOSTERING ALLOWANCES,PAYMENTS TO CARERS,REDACTED,REDACTED
04.05.2022,CHILDREN AND FAMILIES,REDACTED PERSONAL DATA,764.29,FOSTERING ALLOWANCES,PAYMENTS TO CARERS,REDACTED,REDACTED
04.05.2022,CHILDREN AND FAMILIES,REDACTED PERSONAL DATA,920.57,FOSTERING ALLOWANCES,PAYMENTS TO CARERS,REDACTED,REDACTED
04.05.2022,CHILDREN AND FAMILIES,REDACTED PERSONAL DATA,594.57,FOSTERING ALLOWANCES,PAYMENTS TO CARERS,REDACTED,REDACTED
04.05.2022,CHILDREN AND FAMILIES,REDACTED PERSONAL DATA,672.28,FOSTERING ALLOWANCES,PAYMENTS TO CARERS,REDACTED,REDACTED
04.05.2022,CHILDREN AND FAMILIES,REDACTED PERSONAL DATA,738,FOSTERING ALLOWANCES,PAYMENTS TO CARERS,REDACTED,REDACTED
04.05.2022,CHILDREN AND FAMILIES,REDACTED PERSONAL DATA,566.86,FOSTERING ALLOWANCES,PAYMENTS TO CARERS,REDACTED,REDACTED
04.05.2022,CHILDREN AND FAMILIES,REDACTED PERSONAL DATA,566.86,FOSTERING ALLOWANCES,PAYMENTS TO CARERS,REDACTED,REDACTED
04.05.2022,CHILDREN AND FAMILIES,REDACTED PERSONAL DATA,573.57,FOSTERING ALLOWANCES,PAYMENTS TO CARERS,REDACTED,REDACTED
04.05.2022,CHILDREN AND FAMILIES,REDACTED PERSONAL DATA,672.28,FOSTERING ALLOWANCES,PAYMENTS TO CARERS,REDACTED,REDACTED
04.05.2022,CHILDREN AND FAMILIES,REDACTED PERSONAL DATA,672.28,FOSTERING ALLOWANCES,PAYMENTS TO CARERS,REDACTED,REDACTED
04.05.2022,CHILDREN AND FAMILIES,REDACTED PERSONAL DATA,672.28,FOSTERING ALLOWANCES,PAYMENTS TO CARERS,REDACTED,REDACTED
04.05.2022,CHILDREN AND FAMILIES,REDACTED PERSONAL DATA,"1,118.57",FOSTERING ALLOWANCES,PAYMENTS TO CARERS,REDACTED,REDACTED
04.05.2022,CHILDREN AND FAMILIES,REDACTED PERSONAL DATA,552.57,FOSTERING ALLOWANCES,PAYMENTS TO CARERS,REDACTED,REDACTED
04.05.2022,CHILDREN AND FAMILIES,REDACTED PERSONAL DATA,594.57,FOSTERING ALLOWANCES,PAYMENTS TO CARERS,REDACTED,REDACTED
04.05.2022,CHILDREN AND FAMILIES,REDACTED PERSONAL DATA,672.28,FOSTERING ALLOWANCES,PAYMENTS TO CARERS,REDACTED,REDACTED
04.05.2022,CHILDREN AND FAMILIES,REDACTED PERSONAL DATA,672.28,FOSTERING ALLOWANCES,PAYMENTS TO CARERS,REDACTED,REDACTED
04.05.2022,CHILDREN AND FAMILIES,REDACTED PERSONAL DATA,672.28,FOSTERING ALLOWANCES,PAYMENTS TO CARERS,REDACTED,REDACTED
04.05.2022,CHILDREN AND FAMILIES,REDACTED PERSONAL DATA,809.14,FOSTERING ALLOWANCES,PAYMENTS TO CARERS,REDACTED,REDACTED
04.05.2022,CHILDREN AND FAMILIES,REDACTED PERSONAL DATA,918.57,FOSTERING ALLOWANCES,PAYMENTS TO CARERS,REDACTED,REDACTED
04.05.2022,CHILDREN AND FAMILIES,REDACTED PERSONAL DATA,738,FOSTERING ALLOWANCES,PAYMENTS TO CARERS,REDACTED,REDACTED
04.05.2022,CHILDREN AND FAMILIES,REDACTED PERSONAL DATA,672.28,FOSTERING ALLOWANCES,PAYMENTS TO CARERS,REDACTED,REDACTED
04.05.2022,CHILDREN AND FAMILIES,REDACTED PERSONAL DATA,650.86,FOSTERING ALLOWANCES,PAYMENTS TO CARERS,REDACTED,REDACTED
04.05.2022,CHILDREN AND FAMILIES,REDACTED PERSONAL DATA,650.86,FOSTERING ALLOWANCES,PAYMENTS TO CARERS,REDACTED,REDACTED
04.05.2022,CHILDREN AND FAMILIES,REDACTED PERSONAL DATA,812.28,FOSTERING ALLOWANCES,PAYMENTS TO CARERS,REDACTED,REDACTED
04.05.2022,CHILDREN AND FAMILIES,REDACTED PERSONAL DATA,812.28,FOSTERING ALLOWANCES,PAYMENTS TO CARERS,REDACTED,REDACTED
04.05.2022,CHILDREN AND FAMILIES,REDACTED PERSONAL DATA,650.86,FOSTERING ALLOWANCES,PAYMENTS TO CARERS,REDACTED,REDACTED
04.05.2022,CHILDREN AND FAMILIES,REDACTED PERSONAL DATA,918.57,FOSTERING ALLOWANCES,PAYMENTS TO CARERS,REDACTED,REDACTED
04.05.2022,CHILDREN AND FAMILIES,REDACTED PERSONAL DATA,566.86,FOSTERING ALLOWANCES,PAYMENTS TO CARERS,REDACTED,REDACTED
04.05.2022,CHILDREN AND FAMILIES,REDACTED PERSONAL DATA,918.57,FOSTERING ALLOWANCES,PAYMENTS TO CARERS,REDACTED,REDACTED
04.05.2022,CHILDREN AND FAMILIES,REDACTED PERSONAL DATA,920.57,FOSTERING ALLOWANCES,PAYMENTS TO CARERS,REDACTED,REDACTED
04.05.2022,CHILDREN AND FAMILIES,REDACTED PERSONAL DATA,"1,010.57",FOSTERING ALLOWANCES,PAYMENTS TO CARERS,REDACTED,REDACTED
04.05.2022,CHILDREN AND FAMILIES,REDACTED PERSONAL DATA,417.14,FOSTERING ALLOWANCES,PAYMENTS TO CARERS,REDACTED,REDACTED
04.05.2022,CHILDREN AND FAMILIES,REDACTED PERSONAL DATA,798.58,FOSTERING ALLOWANCES,PAYMENTS TO CARERS,REDACTED,REDACTED
04.05.2022,CHILDREN AND FAMILIES,REDACTED PERSONAL DATA,903.14,FOSTERING ALLOWANCES,PAYMENTS TO CARERS,REDACTED,REDACTED
04.05.2022,CHILDREN AND FAMILIES,REDACTED PERSONAL DATA,918.57,FOSTERING ALLOWANCES,PAYMENTS TO CARERS,REDACTED,REDACTED
04.05.2022,CHILDREN AND FAMILIES,REDACTED PERSONAL DATA,"1,010.57",FOSTERING ALLOWANCES,PAYMENTS TO CARERS,REDACTED,REDACTED
04.05.2022,CHILDREN AND FAMILIES,REDACTED PERSONAL DATA,672.28,FOSTERING ALLOWANCES,PAYMENTS TO CARERS,REDACTED,REDACTED
04.05.2022,CHILDREN AND FAMILIES,REDACTED PERSONAL DATA,417.14,FOSTERING ALLOWANCES,PAYMENTS TO CARERS,REDACTED,REDACTED
04.05.2022,CHILDREN AND FAMILIES,REDACTED PERSONAL DATA,812.28,FOSTERING ALLOWANCES,PAYMENTS TO CARERS,REDACTED,REDACTED
04.05.2022,CHILDREN AND FAMILIES,REDACTED PERSONAL DATA,269.14,FOSTERING ALLOWANCES,PAYMENTS TO CARERS,REDACTED,REDACTED
04.05.2022,CHILDREN AND FAMILIES,REDACTED PERSONAL DATA,756,FOSTERING ALLOWANCES,PAYMENTS TO CARERS,REDACTED,REDACTED
04.05.2022,CHILDREN AND FAMILIES,REDACTED PERSONAL DATA,756,FOSTERING ALLOWANCES,PAYMENTS TO CARERS,REDACTED,REDACTED
04.05.2022,CHILDREN AND FAMILIES,REDACTED PERSONAL DATA,756,FOSTERING ALLOWANCES,PAYMENTS TO CARERS,REDACTED,REDACTED
04.05.2022,CHILDREN AND FAMILIES,REDACTED PERSONAL DATA,918.57,FOSTERING ALLOWANCES,PAYMENTS TO CARERS,REDACTED,REDACTED
04.05.2022,CHILDREN AND FAMILIES,REDACTED PERSONAL DATA,"1,010.57",FOSTERING ALLOWANCES,PAYMENTS TO CARERS,REDACTED,REDACTED
04.05.2022,CHILDREN AND FAMILIES,REDACTED PERSONAL DATA,"1,632.00",FOSTERING ALLOWANCES,PAYMENTS TO CARERS,REDACTED,REDACTED
04.05.2022,CHILDREN AND FAMILIES,REDACTED PERSONAL DATA,738,FOSTERING ALLOWANCES,PAYMENTS TO CARERS,REDACTED,REDACTED
04.05.2022,CHILDREN AND FAMILIES,REDACTED PERSONAL DATA,920.86,FOSTERING ALLOWANCES,PAYMENTS TO CARERS,REDACTED,REDACTED
04.05.2022,CHILDREN AND FAMILIES,REDACTED PERSONAL DATA,"1,700.00",FOSTERING ALLOWANCES,PAYMENTS TO CARERS,REDACTED,REDACTED
04.05.2022,CHILDREN AND FAMILIES,REDACTED PERSONAL DATA,880.15,FOSTERING ALLOWANCES,PAYMENTS TO CARERS,REDACTED,REDACTED
04.05.2022,CHILDREN AND FAMILIES,REDACTED PERSONAL DATA,812.28,FOSTERING ALLOWANCES,PAYMENTS TO CARERS,REDACTED,REDACTED
04.05.2022,CHILDREN AND FAMILIES,REDACTED PERSONAL DATA,812.28,FOSTERING ALLOWANCES,PAYMENTS TO CARERS,REDACTED,REDACTED
04.05.2022,CHILDREN AND FAMILIES,REDACTED PERSONAL DATA,"1,713.10",FOSTERING ALLOWANCES,PAYMENTS TO CARERS,REDACTED,REDACTED
04.05.2022,CHILDREN AND FAMILIES,REDACTED PERSONAL DATA,886.57,FOSTERING ALLOWANCES,PAYMENTS TO CARERS,REDACTED,REDACTED
04.05.2022,CHILDREN AND FAMILIES,REDACTED PERSONAL DATA,"1,010.57",FOSTERING ALLOWANCES,PAYMENTS TO CARERS,REDACTED,REDACTED
04.05.2022,CHILDREN AND FAMILIES,REDACTED PERSONAL DATA,566.86,FOSTERING ALLOWANCES,PAYMENTS TO CARERS,REDACTED,REDACTED
04.05.2022,CHILDREN AND FAMILIES,REDACTED PERSONAL DATA,886.57,FOSTERING ALLOWANCES,PAYMENTS TO CARERS,REDACTED,REDACTED
04.05.2022,CHILDREN AND FAMILIES,REDACTED PERSONAL DATA,976.57,FOSTERING ALLOWANCES,PAYMENTS TO CARERS,REDACTED,REDACTED
04.05.2022,CHILDREN AND FAMILIES,REDACTED PERSONAL DATA,566.86,FOSTERING ALLOWANCES,PAYMENTS TO CARERS,REDACTED,REDACTED
04.05.2022,CHILDREN AND FAMILIES,REDACTED PERSONAL DATA,726,FOSTERING ALLOWANCES,PAYMENTS TO CARERS,REDACTED,REDACTED
04.05.2022,CHILDREN AND FAMILIES,REDACTED PERSONAL DATA,888.57,FOSTERING ALLOWANCES,PAYMENTS TO CARERS,REDACTED,REDACTED
04.05.2022,CHILDREN AND FAMILIES,REDACTED PERSONAL DATA,886.57,FOSTERING ALLOWANCES,PAYMENTS TO CARERS,REDACTED,REDACTED
04.05.2022,CHILDREN AND FAMILIES,REDACTED PERSONAL DATA,888.57,FOSTERING ALLOWANCES,PAYMENTS TO CARERS,REDACTED,REDACTED
04.05.2022,CHILDREN AND FAMILIES,REDACTED PERSONAL DATA,824,FOSTERING ALLOWANCES,PAYMENTS TO CARERS,REDACTED,REDACTED
04.05.2022,CHILDREN AND FAMILIES,REDACTED PERSONAL DATA,"1,070.16",FOSTERING ALLOWANCES,PAYMENTS TO CARERS,REDACTED,REDACTED
04.05.2022,CHILDREN AND FAMILIES,REDACTED PERSONAL DATA,976.57,FOSTERING ALLOWANCES,PAYMENTS TO CARERS,REDACTED,REDACTED
04.05.2022,CHILDREN AND FAMILIES,REDACTED PERSONAL DATA,348,FOSTERING ALLOWANCES,PAYMENTS TO CARERS,REDACTED,REDACTED
04.05.2022,CHILDREN AND FAMILIES,REDACTED PERSONAL DATA,"1,143.43",FOSTERING ALLOWANCES,PAYMENTS TO CARERS,REDACTED,REDACTED
04.05.2022,CHILDREN AND FAMILIES,REDACTED PERSONAL DATA,"1,143.43",FOSTERING ALLOWANCES,PAYMENTS TO CARERS,REDACTED,REDACTED
04.05.2022,CHILDREN AND FAMILIES,REDACTED PERSONAL DATA,650.86,FOSTERING ALLOWANCES,PAYMENTS TO CARERS,REDACTED,REDACTED
04.05.2022,CHILDREN AND FAMILIES,REDACTED PERSONAL DATA,776,FOSTERING ALLOWANCES,PAYMENTS TO CARERS,REDACTED,REDACTED
04.05.2022,CHILDREN AND FAMILIES,KASPER FOSTERING,"3,399.90",FRIENDS & FAMILY FOSTERING,EXTERNAL AGENCIES AND BODIES,2103472175,1000036628
04.05.2022,CHILDREN AND FAMILIES,KASPER FOSTERING,"4,490.70",FRIENDS & FAMILY FOSTERING,EXTERNAL AGENCIES AND BODIES,2103472174,1000036628
04.05.2022,CHILDREN AND FAMILIES,FOSTERING LONDON LTD,"4,928.40",FRIENDS & FAMILY FOSTERING,EXTERNAL AGENCIES AND BODIES,2103472176,1000077541
04.05.2022,CHILDREN AND FAMILIES,FOSTERING LONDON LTD,"8,080.00",FRIENDS & FAMILY FOSTERING,EXTERNAL AGENCIES AND BODIES,2103472178,1000077541
04.05.2022,CHILDREN AND FAMILIES,FAMILY FIRST FOSTERING LTD,"3,697.50",FRIENDS & FAMILY FOSTERING,EXTERNAL AGENCIES AND BODIES,2103472177,1000080631
04.05.2022,CHILDREN AND FAMILIES,REDACTED PERSONAL DATA,400,FRIENDS &FAMILY FOST,OTHER PAYMENTS FOR CLIENTS,REDACTED,REDACTED
04.05.2022,CHILDREN AND FAMILIES,REDACTED PERSONAL DATA,354,FRIENDS &FAMILY FOST,PAYMENTS TO CARERS,REDACTED,REDACTED
04.05.2022,CHILDREN AND FAMILIES,REDACTED PERSONAL DATA,650.86,FRIENDS &FAMILY FOST,PAYMENTS TO CARERS,REDACTED,REDACTED
04.05.2022,CHILDREN AND FAMILIES,REDACTED PERSONAL DATA,832,FRIENDS &FAMILY FOST,PAYMENTS TO CARERS,REDACTED,REDACTED
04.05.2022,CHILDREN AND FAMILIES,REDACTED PERSONAL DATA,732,FRIENDS &FAMILY FOST,PAYMENTS TO CARERS,REDACTED,REDACTED
04.05.2022,CHILDREN AND FAMILIES,REDACTED PERSONAL DATA,832,FRIENDS &FAMILY FOST,PAYMENTS TO CARERS,REDACTED,REDACTED
04.05.2022,CHILDREN AND FAMILIES,REDACTED PERSONAL DATA,832,FRIENDS &FAMILY FOST,PAYMENTS TO CARERS,REDACTED,REDACTED
04.05.2022,CHILDREN AND FAMILIES,REDACTED PERSONAL DATA,832,FRIENDS &FAMILY FOST,PAYMENTS TO CARERS,REDACTED,REDACTED
04.05.2022,CHILDREN AND FAMILIES,REDACTED PERSONAL DATA,920,FRIENDS &FAMILY FOST,PAYMENTS TO CARERS,REDACTED,REDACTED
04.05.2022,CHILDREN AND FAMILIES,REDACTED PERSONAL DATA,672.28,FRIENDS &FAMILY FOST,PAYMENTS TO CARERS,REDACTED,REDACTED
04.05.2022,CHILDREN AND FAMILIES,REDACTED PERSONAL DATA,920.57,FRIENDS &FAMILY FOST,PAYMENTS TO CARERS,REDACTED,REDACTED
04.05.2022,CHILDREN AND FAMILIES,REDACTED PERSONAL DATA,633.72,FRIENDS &FAMILY FOST,PAYMENTS TO CARERS,REDACTED,REDACTED
04.05.2022,CHILDREN AND FAMILIES,REDACTED PERSONAL DATA,650.86,FRIENDS &FAMILY FOST,PAYMENTS TO CARERS,REDACTED,REDACTED
04.05.2022,CHILDREN AND FAMILIES,REDACTED PERSONAL DATA,462,FRIENDS &FAMILY FOST,PAYMENTS TO CARERS,REDACTED,REDACTED
04.05.2022,CHILDREN AND FAMILIES,REDACTED PERSONAL DATA,662.28,FRIENDS &FAMILY FOST,PAYMENTS TO CARERS,REDACTED,REDACTED
04.05.2022,CHILDREN AND FAMILIES,REDACTED PERSONAL DATA,650.86,FRIENDS &FAMILY FOST,PAYMENTS TO CARERS,REDACTED,REDACTED
04.05.2022,CHILDREN AND FAMILIES,REDACTED PERSONAL DATA,650.86,FRIENDS &FAMILY FOST,PAYMENTS TO CARERS,REDACTED,REDACTED
04.05.2022,CHILDREN AND FAMILIES,REDACTED PERSONAL DATA,566.86,FRIENDS &FAMILY FOST,PAYMENTS TO CARERS,REDACTED,REDACTED
04.05.2022,CHILDREN AND FAMILIES,REDACTED PERSONAL DATA,650.86,FRIENDS &FAMILY FOST,PAYMENTS TO CARERS,REDACTED,REDACTED
04.05.2022,CHILDREN AND FAMILIES,REDACTED PERSONAL DATA,650.86,FRIENDS &FAMILY FOST,PAYMENTS TO CARERS,REDACTED,REDACTED
04.05.2022,CHILDREN AND FAMILIES,REDACTED PERSONAL DATA,732,FRIENDS &FAMILY FOST,PAYMENTS TO CARERS,REDACTED,REDACTED
04.05.2022,CHILDREN AND FAMILIES,REDACTED PERSONAL DATA,888.57,FRIENDS &FAMILY FOST,PAYMENTS TO CARERS,REDACTED,REDACTED
04.05.2022,CHILDREN AND FAMILIES,REDACTED PERSONAL DATA,830,FRIENDS &FAMILY FOST,PAYMENTS TO CARERS,REDACTED,REDACTED
04.05.2022,CHILDREN AND FAMILIES,REDACTED PERSONAL DATA,650.86,FRIENDS &FAMILY FOST,PAYMENTS TO CARERS,REDACTED,REDACTED
04.05.2022,CHILDREN AND FAMILIES,REDACTED PERSONAL DATA,650.86,FRIENDS &FAMILY FOST,PAYMENTS TO CARERS,REDACTED,REDACTED
04.05.2022,CHILDREN AND FAMILIES,REDACTED PERSONAL DATA,682,FRIENDS &FAMILY FOST,PAYMENTS TO CARERS,REDACTED,REDACTED
04.05.2022,CHILDREN AND FAMILIES,REDACTED PERSONAL DATA,650.86,FRIENDS &FAMILY FOST,PAYMENTS TO CARERS,REDACTED,REDACTED
04.05.2022,CHILDREN AND FAMILIES,REDACTED PERSONAL DATA,650.86,FRIENDS &FAMILY FOST,PAYMENTS TO CARERS,REDACTED,REDACTED
04.05.2022,CHILDREN AND FAMILIES,REDACTED PERSONAL DATA,824,FRIENDS &FAMILY FOST,PAYMENTS TO CARERS,REDACTED,REDACTED
04.05.2022,CHILDREN AND FAMILIES,REDACTED PERSONAL DATA,402,FRIENDS &FAMILY FOST,PAYMENTS TO CARERS,REDACTED,REDACTED
04.05.2022,CHILDREN AND FAMILIES,REDACTED PERSONAL DATA,470,FRIENDS &FAMILY FOST,PAYMENTS TO CARERS,REDACTED,REDACTED
04.05.2022,CHILDREN AND FAMILIES,REDACTED PERSONAL DATA,531.14,FRIENDS &FAMILY FOST,PAYMENTS TO CARERS,REDACTED,REDACTED
04.05.2022,CHILDREN AND FAMILIES,REDACTED PERSONAL DATA,776,FRIENDS &FAMILY FOST,PAYMENTS TO CARERS,REDACTED,REDACTED
04.05.2022,CHILDREN AND FAMILIES,REDACTED PERSONAL DATA,776,FRIENDS &FAMILY FOST,PAYMENTS TO CARERS,REDACTED,REDACTED
04.05.2022,CHILDREN AND FAMILIES,REDACTED PERSONAL DATA,888.57,FRIENDS &FAMILY FOST,PAYMENTS TO CARERS,REDACTED,REDACTED
04.05.2022,CHILDREN AND FAMILIES,REDACTED PERSONAL DATA,354,FRIENDS &FAMILY FOST,PAYMENTS TO CARERS,REDACTED,REDACTED
04.05.2022,CHILDREN AND FAMILIES,REDACTED PERSONAL DATA,402,FRIENDS &FAMILY FOST,PAYMENTS TO CARERS,REDACTED,REDACTED
04.05.2022,CHILDREN AND FAMILIES,REDACTED PERSONAL DATA,402,FRIENDS &FAMILY FOST,PAYMENTS TO CARERS,REDACTED,REDACTED
04.05.2022,CHILDREN AND FAMILIES,REDACTED PERSONAL DATA,650.86,FRIENDS &FAMILY FOST,PAYMENTS TO CARERS,REDACTED,REDACTED
04.05.2022,CHILDREN AND FAMILIES,REDACTED PERSONAL DATA,726,FRIENDS &FAMILY FOST,PAYMENTS TO CARERS,REDACTED,REDACTED
04.05.2022,CHILDREN AND FAMILIES,REDACTED PERSONAL DATA,402,FRIENDS &FAMILY FOST,PAYMENTS TO CARERS,REDACTED,REDACTED
04.05.2022,CHILDREN AND FAMILIES,REDACTED PERSONAL DATA,470,FRIENDS &FAMILY FOST,PAYMENTS TO CARERS,REDACTED,REDACTED
04.05.2022,CHILDREN AND FAMILIES,REDACTED PERSONAL DATA,402,FRIENDS &FAMILY FOST,PAYMENTS TO CARERS,REDACTED,REDACTED
04.05.2022,CHILDREN AND FAMILIES,REDACTED PERSONAL DATA,354,FRIENDS &FAMILY FOST,PAYMENTS TO CARERS,REDACTED,REDACTED
04.05.2022,CHILDREN AND FAMILIES,REDACTED PERSONAL DATA,470,FRIENDS &FAMILY FOST,PAYMENTS TO CARERS,REDACTED,REDACTED
04.05.2022,CHILDREN AND FAMILIES,REDACTED PERSONAL DATA,354,FRIENDS &FAMILY FOST,PAYMENTS TO CARERS,REDACTED,REDACTED
04.05.2022,CHILDREN AND FAMILIES,REDACTED PERSONAL DATA,402,FRIENDS &FAMILY FOST,PAYMENTS TO CARERS,REDACTED,REDACTED
04.05.2022,CHILDREN AND FAMILIES,REDACTED PERSONAL DATA,394,FRIENDS &FAMILY FOST,PAYMENTS TO CARERS,REDACTED,REDACTED
04.05.2022,CHILDREN AND FAMILIES,REDACTED PERSONAL DATA,394,FRIENDS &FAMILY FOST,PAYMENTS TO CARERS,REDACTED,REDACTED
04.05.2022,CHILDREN AND FAMILIES,REDACTED PERSONAL DATA,316,FRIENDS &FAMILY FOST,PAYMENTS TO CARERS,REDACTED,REDACTED
04.05.2022,CHILDREN AND FAMILIES,REDACTED PERSONAL DATA,402,FRIENDS &FAMILY FOST,PAYMENTS TO CARERS,REDACTED,REDACTED
04.05.2022,CHILDREN AND FAMILIES,REDACTED PERSONAL DATA,470,FRIENDS &FAMILY FOST,PAYMENTS TO CARERS,REDACTED,REDACTED
04.05.2022,CHILDREN AND FAMILIES,REDACTED PERSONAL DATA,394,FRIENDS &FAMILY FOST,PAYMENTS TO CARERS,REDACTED,REDACTED
04.05.2022,CHILDREN AND FAMILIES,REDACTED PERSONAL DATA,"1,058.56",FRIENDS &FAMILY FOST,PAYMENTS TO CARERS,REDACTED,REDACTED
04.05.2022,CHILDREN AND FAMILIES,REDACTED PERSONAL DATA,348,FRIENDS &FAMILY FOST,PAYMENTS TO CARERS,REDACTED,REDACTED
04.05.2022,CHILDREN AND FAMILIES,REDACTED PERSONAL DATA,394,FRIENDS &FAMILY FOST,PAYMENTS TO CARERS,REDACTED,REDACTED
04.05.2022,CHILDREN AND FAMILIES,REDACTED PERSONAL DATA,348,FRIENDS &FAMILY FOST,PAYMENTS TO CARERS,REDACTED,REDACTED
04.05.2022,CHILDREN AND FAMILIES,CONTACT PROFESSIONALS,268.27,SEMI-IND CARELEAVERS,EXTERNAL AGENCIES AND BODIES,2103472181,1000057263
04.05.2022,CHILDREN AND FAMILIES,ASPECTS CARE LTD,"4,156.80",SEMI-IND CARELEAVERS,EXTERNAL AGENCIES AND BODIES,2103472180,1000087615
04.05.2022,CHILDREN AND FAMILIES,REDACTED PERSONAL DATA,800,SEMI-IND LAC 16-17,OTHER PAYMENTS FOR CLIENTS,REDACTED,REDACTED
04.05.2022,CHILDREN AND FAMILIES,GARFIELD BRAITHWAITE,650,SFS MGMT & SUPPORT,LEGAL FEES & COURT COSTS,2103469572,1000067255
04.05.2022,CHILDREN AND FAMILIES,REDACTED PERSONAL DATA,388.04,SPECIAL GUARDIANSHIP,PAYMENTS TO CARERS,REDACTED,REDACTED
04.05.2022,CHILDREN AND FAMILIES,REDACTED PERSONAL DATA,342.45,SPECIAL GUARDIANSHIP,PAYMENTS TO CARERS,REDACTED,REDACTED
04.05.2022,CHILDREN AND FAMILIES,REDACTED PERSONAL DATA,389.34,SPECIAL GUARDIANSHIP,PAYMENTS TO CARERS,REDACTED,REDACTED
04.05.2022,CHILDREN AND FAMILIES,REDACTED PERSONAL DATA,356.15,SPECIAL GUARDIANSHIP,PAYMENTS TO CARERS,REDACTED,REDACTED
04.05.2022,CHILDREN AND FAMILIES,REDACTED PERSONAL DATA,403.04,SPECIAL GUARDIANSHIP,PAYMENTS TO CARERS,REDACTED,REDACTED
04.05.2022,CHILDREN AND FAMILIES,REDACTED PERSONAL DATA,525,SPECIAL GUARDIANSHIP,PAYMENTS TO CARERS,REDACTED,REDACTED
04.05.2022,CHILDREN AND FAMILIES,REDACTED PERSONAL DATA,341.15,SPECIAL GUARDIANSHIP,PAYMENTS TO CARERS,REDACTED,REDACTED
04.05.2022,CHILDREN AND FAMILIES,REDACTED PERSONAL DATA,338,SPECIAL GUARDIANSHIP,PAYMENTS TO CARERS,REDACTED,REDACTED
04.05.2022,CHILDREN AND FAMILIES,REDACTED PERSONAL DATA,338,SPECIAL GUARDIANSHIP,PAYMENTS TO CARERS,REDACTED,REDACTED
04.05.2022,CHILDREN AND FAMILIES,REDACTED PERSONAL DATA,472.71,SPECIAL GUARDIANSHIP,PAYMENTS TO CARERS,REDACTED,REDACTED
04.05.2022,CHILDREN AND FAMILIES,REDACTED PERSONAL DATA,472.71,SPECIAL GUARDIANSHIP,PAYMENTS TO CARERS,REDACTED,REDACTED
04.05.2022,CHILDREN AND FAMILIES,REDACTED PERSONAL DATA,600,STAYPUT- FOST CARERS,PAYMENTS TO CARERS,REDACTED,REDACTED
04.05.2022,CHILDREN AND FAMILIES,REDACTED PERSONAL DATA,600,STAYPUT- FOST CARERS,PAYMENTS TO CARERS,REDACTED,REDACTED
04.05.2022,CHILDREN AND FAMILIES,REDACTED PERSONAL DATA,600,STAYPUT- FOST CARERS,PAYMENTS TO CARERS,REDACTED,REDACTED
04.05.2022,CHILDREN AND FAMILIES,REDACTED PERSONAL DATA,600,STAYPUT- FOST CARERS,PAYMENTS TO CARERS,REDACTED,REDACTED
04.05.2022,CHILDREN AND FAMILIES,REDACTED PERSONAL DATA,600,STAYPUT- FOST CARERS,PAYMENTS TO CARERS,REDACTED,REDACTED
04.05.2022,CHILDREN AND FAMILIES,REDACTED PERSONAL DATA,600,STAYPUT- FOST CARERS,PAYMENTS TO CARERS,REDACTED,REDACTED
04.05.2022,CHILDREN AND FAMILIES,REDACTED PERSONAL DATA,600,STAYPUT- FOST CARERS,PAYMENTS TO CARERS,REDACTED,REDACTED
04.05.2022,CHILDREN AND FAMILIES,REDACTED PERSONAL DATA,600,STAYPUT- FOST CARERS,PAYMENTS TO CARERS,REDACTED,REDACTED
04.05.2022,CHILDREN AND FAMILIES,REDACTED PERSONAL DATA,600,STAYPUT- FOST CARERS,PAYMENTS TO CARERS,REDACTED,REDACTED
04.05.2022,CHILDREN AND FAMILIES,REDACTED PERSONAL DATA,600,STAYPUT- FOST CARERS,PAYMENTS TO CARERS,REDACTED,REDACTED
04.05.2022,CHILDREN AND FAMILIES,REDACTED PERSONAL DATA,600,STAYPUT- FOST CARERS,PAYMENTS TO CARERS,REDACTED,REDACTED
04.05.2022,CHILDREN AND FAMILIES,REDACTED PERSONAL DATA,600,STAYPUT- FOST CARERS,PAYMENTS TO CARERS,REDACTED,REDACTED
04.05.2022,CHILDREN AND FAMILIES,REDACTED PERSONAL DATA,600,STAYPUT- FOST CARERS,PAYMENTS TO CARERS,REDACTED,REDACTED
04.05.2022,CHILDREN AND FAMILIES,REDACTED PERSONAL DATA,600,STAYPUT- FOST CARERS,PAYMENTS TO CARERS,REDACTED,REDACTED
04.05.2022,CHILDREN AND FAMILIES,REDACTED PERSONAL DATA,600,STAYPUT- FOST CARERS,PAYMENTS TO CARERS,REDACTED,REDACTED
04.05.2022,CHILDREN AND FAMILIES,REDACTED PERSONAL DATA,600,STAYPUT- FOST CARERS,PAYMENTS TO CARERS,REDACTED,REDACTED
04.05.2022,CHILDREN AND FAMILIES,REDACTED PERSONAL DATA,600,STAYPUT- FOST CARERS,PAYMENTS TO CARERS,REDACTED,REDACTED
04.05.2022,CHILDREN AND FAMILIES,REDACTED PERSONAL DATA,852,STAYPUT- FOST CARERS,PAYMENTS TO CARERS,REDACTED,REDACTED
04.05.2022,CHILDREN AND FAMILIES,REDACTED PERSONAL DATA,600,STAYPUT- FOST CARERS,PAYMENTS TO CARERS,REDACTED,REDACTED
04.05.2022,CHILDREN AND FAMILIES,REDACTED PERSONAL DATA,"3,514.28",STAYPUT- FOST CARERS,PAYMENTS TO CARERS,REDACTED,REDACTED
04.05.2022,CHILDREN AND FAMILIES,REDACTED PERSONAL DATA,600,STAYPUT- FOST CARERS,PAYMENTS TO CARERS,REDACTED,REDACTED
04.05.2022,CHILDREN AND FAMILIES,REDACTED PERSONAL DATA,600,STAYPUT- FOST CARERS,PAYMENTS TO CARERS,REDACTED,REDACTED
04.05.2022,CHILDREN AND FAMILIES,REDACTED PERSONAL DATA,600,STAYPUT- FOST CARERS,PAYMENTS TO CARERS,REDACTED,REDACTED
04.05.2022,CHILDREN AND FAMILIES,REDACTED PERSONAL DATA,656,STAYPUT- FOST CARERS,PAYMENTS TO CARERS,REDACTED,REDACTED
04.05.2022,CHILDREN AND FAMILIES,REDACTED PERSONAL DATA,600,STAYPUT- FOST CARERS,PAYMENTS TO CARERS,REDACTED,REDACTED
04.05.2022,CHILDREN AND FAMILIES,REDACTED PERSONAL DATA,"12,471.43",STAYPUT- FOST CARERS,PAYMENTS TO CARERS,REDACTED,REDACTED
04.05.2022,CHILDREN AND FAMILIES,REDACTED PERSONAL DATA,600,STAYPUT- FOST CARERS,PAYMENTS TO CARERS,REDACTED,REDACTED
04.05.2022,CHILDREN AND FAMILIES,REDACTED PERSONAL DATA,600,STAYPUT- FOST CARERS,PAYMENTS TO CARERS,REDACTED,REDACTED
04.05.2022,CHILDREN AND FAMILIES,REDACTED PERSONAL DATA,600,STAYPUT- FOST CARERS,PAYMENTS TO CARERS,REDACTED,REDACTED
04.05.2022,CHILDREN AND FAMILIES,REDACTED PERSONAL DATA,600,STAYPUT- FOST CARERS,PAYMENTS TO CARERS,REDACTED,REDACTED
04.05.2022,CHILDREN AND FAMILIES,REDACTED PERSONAL DATA,265.4,STAYPUT- FOST CARERS,PAYMENTS TO CARERS,REDACTED,REDACTED
04.05.2022,CHILDREN AND FAMILIES,REDACTED PERSONAL DATA,832,STAYPUT- FOST CARERS,PAYMENTS TO CARERS,REDACTED,REDACTED
04.05.2022,CHILDREN AND FAMILIES,REDACTED PERSONAL DATA,600,STAYPUT- FOST CARERS,PAYMENTS TO CARERS,REDACTED,REDACTED
04.05.2022,CHILDREN AND FAMILIES,REDACTED PERSONAL DATA,600,STAYPUT- FOST CARERS,PAYMENTS TO CARERS,REDACTED,REDACTED
04.05.2022,CHILDREN AND FAMILIES,REDACTED PERSONAL DATA,600,STAYPUT- FOST CARERS,PAYMENTS TO CARERS,REDACTED,REDACTED
04.05.2022,CHILDREN AND FAMILIES,REDACTED PERSONAL DATA,600,STAYPUT- FOST CARERS,PAYMENTS TO CARERS,REDACTED,REDACTED
04.05.2022,CHILDREN AND FAMILIES,REDACTED PERSONAL DATA,600,STAYPUT- FOST CARERS,PAYMENTS TO CARERS,REDACTED,REDACTED
04.05.2022,CHILDREN AND FAMILIES,REDACTED PERSONAL DATA,600,STAYPUT- FOST CARERS,PAYMENTS TO CARERS,REDACTED,REDACTED
04.05.2022,CHILDREN AND FAMILIES,REDACTED PERSONAL DATA,656,STAYPUT- FOST CARERS,PAYMENTS TO CARERS,REDACTED,REDACTED
04.05.2022,CHILDREN AND FAMILIES,REDACTED PERSONAL DATA,471.43,STAYPUT- FOST CARERS,PAYMENTS TO CARERS,REDACTED,REDACTED
04.05.2022,CHILDREN AND FAMILIES,REDACTED PERSONAL DATA,900,STAYPUT- FOST CARERS,PAYMENTS TO CARERS,REDACTED,REDACTED
04.05.2022,CHILDREN AND FAMILIES,REDACTED PERSONAL DATA,900,STAYPUT- FOST CARERS,PAYMENTS TO CARERS,REDACTED,REDACTED
04.05.2022,CHILDREN AND FAMILIES,REDACTED PERSONAL DATA,600,STAYPUT- FOST CARERS,PAYMENTS TO CARERS,REDACTED,REDACTED
04.05.2022,CHILDREN AND FAMILIES,REDACTED PERSONAL DATA,600,STAYPUT- FOST CARERS,PAYMENTS TO CARERS,REDACTED,REDACTED
04.05.2022,CHILDREN AND FAMILIES,REDACTED PERSONAL DATA,600,STAYPUT- FOST CARERS,PAYMENTS TO CARERS,REDACTED,REDACTED
04.05.2022,CHILDREN AND FAMILIES,REDACTED PERSONAL DATA,600,STAYPUT- FOST CARERS,PAYMENTS TO CARERS,REDACTED,REDACTED
04.05.2022,CHILDREN AND FAMILIES,REDACTED PERSONAL DATA,600,STAYPUT- FOST CARERS,PAYMENTS TO CARERS,REDACTED,REDACTED
04.05.2022,CHILDREN AND FAMILIES,OWNLIFE LTD,"2,700.00",UASC CARELEAVERS,EXTERNAL AGENCIES AND BODIES,2103472182,1000056219
04.05.2022,CLIMATE CHANGE,SHARED FUTURE COMMUNITY INTEREST COMPANY,"7,089.00",CLIMATE CHANGE,CONSULTANTS SERVICES,5902523151,1000087072
04.05.2022,CLIMATE CHANGE,SHARED FUTURE COMMUNITY INTEREST COMPANY,"15,141.00",CLIMATE CHANGE,CONSULTANTS SERVICES,5902523151,1000087072
04.05.2022,COMMUNITIES,LONDON CARE LTD,396.46,NO RECOURSE TO PUBLIC FUNDS,HOMECARE - C&V,2103472371,1000003398
04.05.2022,COMMUNITIES,LONDON CARE LTD,911.66,NO RECOURSE TO PUBLIC FUNDS,HOMECARE - C&V,2103471834,1000003398
04.05.2022,COMMUNITIES,LONDON CARE LTD,"1,004.67",NO RECOURSE TO PUBLIC FUNDS,HOMECARE - C&V,2103472370,1000003398
04.05.2022,COMMUNITIES,LONDON CARE LTD,"1,281.11",NO RECOURSE TO PUBLIC FUNDS,HOMECARE - C&V,2103471868,1000003398
04.05.2022,COMMUNITIES,LONDON CARE LTD,"1,351.71",NO RECOURSE TO PUBLIC FUNDS,HOMECARE - C&V,2103471758,1000003398
04.05.2022,COMMUNITIES,THAMES HOMECARE SERVICE LTD,431.78,NO RECOURSE TO PUBLIC FUNDS,HOMECARE - C&V,2103472082,1000079295
04.05.2022,COMMUNITIES,ST GEORGES HEALTHCARE LTD,"1,110.00",PHARMACY SM (INSTEAD OF ADULT SM S75),OTHER CONTRACTORS,5902523229,1000072195
04.05.2022,COMMUNITIES,AAM PHARMA LTD T/A A R CHEMIST,404,PHARMACY SM (INSTEAD OF ADULT SM S75),OTHER CONTRACTORS,5902523217,1000072623
04.05.2022,COMMUNITIES,DAY LEWIS - CAMBERWELL,496,PHARMACY SM (INSTEAD OF ADULT SM S75),OTHER CONTRACTORS,5902523220,1000072891
04.05.2022,COMMUNITIES,QRYSTAL LTD,404,PHARMACY SM (INSTEAD OF ADULT SM S75),OTHER CONTRACTORS,5902523227,1000072892
04.05.2022,COMMUNITIES,DAY LEWIS PHARMACY (PECKHAM HIGH STREET),900,PHARMACY SM (INSTEAD OF ADULT SM S75),OTHER CONTRACTORS,5902523221,1000078621
04.05.2022,COMMUNITIES,K.S.C. 1T LTD,"1,216.00",PHARMACY SM (INSTEAD OF ADULT SM S75),OTHER CONTRACTORS,5902523225,1000081458
04.05.2022,COMMUNITIES,KALEIDOSCOPE PROJECT,"2,300.00",TIER 4 SERVICES,OTHER CONTRACTORS,5902523158,1000083325
04.05.2022,COMMUNITIES,KALEIDOSCOPE PROJECT,"4,830.00",TIER 4 SERVICES,OTHER CONTRACTORS,5902523236,1000083325
04.05.2022,CUSTOMER EXPERIENCE,PARK RETAIL LTD,"1,470.00",CUSTOMER SUPPORT,COMPENSATION,5902523172,1000053528
04.05.2022,CUSTOMER EXPERIENCE,KENT COUNTY COUNCIL - LASER,"3,270.39",CUSTOMER SUPPORT,ELECTRICITY,5902523184,1000012926
04.05.2022,CUSTOMER EXPERIENCE HGF,ACCESS INDEPENDENT LTD,"1,893.25",BLUE BADGES,PROFESSIONAL FEES,5902523093,1000059141
04.05.2022,CUSTOMER EXPERIENCE HGF,IMPERIAL COLLEGE PROJECTS LTD,312,CORONER'S,PROFESSIONAL FEES,5902523090,1000080106
04.05.2022,CUSTOMER EXPERIENCE HGF,IMPERIAL COLLEGE PROJECTS LTD,336,CORONER'S,PROFESSIONAL FEES,5902523098,1000080106
04.05.2022,CUSTOMER EXPERIENCE HGF,IMPERIAL COLLEGE PROJECTS LTD,408,CORONER'S,PROFESSIONAL FEES,5902523092,1000080106
04.05.2022,CUSTOMER EXPERIENCE HGF,IMPERIAL COLLEGE PROJECTS LTD,408,CORONER'S,PROFESSIONAL FEES,5902523096,1000080106
04.05.2022,CUSTOMER EXPERIENCE HGF,IMPERIAL COLLEGE PROJECTS LTD,540,CORONER'S,PROFESSIONAL FEES,5902523094,1000080106
04.05.2022,CUSTOMER EXPERIENCE HGF,NRC PATHOLOGY SERVICES LIMITED,360,CORONER'S,PROFESSIONAL FEES,5902523176,1000085798
04.05.2022,CUSTOMER EXPERIENCE HGF,NRC PATHOLOGY SERVICES LIMITED,360,CORONER'S,PROFESSIONAL FEES,5902523180,1000085798
04.05.2022,CUSTOMER EXPERIENCE HGF,OT GROUP LIMITED,357.31,CORONER'S,STATIONERY,5902523095,1000087285
04.05.2022,DSG,ALBION PRIMARY SCHOOL,"1,189.00",TEACHERS PAY GRANT,SCHOOLS CAPITATION,2103472650,5001000000
04.05.2022,DSG,ALFRED SALTER PRIMARY SCHOOL,862,TEACHERS PAY GRANT,SCHOOLS CAPITATION,2103472676,5001000005
04.05.2022,DSG,BELLENDEN PRIMARY SCHOOL,676,TEACHERS PAY GRANT,SCHOOLS CAPITATION,2103472651,5001000007
04.05.2022,DSG,BESSEMER GRANGE PRIMARY SCHOOL,"1,748.00",TEACHERS PAY GRANT,SCHOOLS CAPITATION,2103472695,5001000009
04.05.2022,DSG,BRUNSWICK PARK PRIMARY SCHOOL,746,TEACHERS PAY GRANT,SCHOOLS CAPITATION,2103472696,5001000013
04.05.2022,DSG,CAMELOT PRIMARY SCHOOL,"1,049.00",TEACHERS PAY GRANT,SCHOOLS CAPITATION,2103472652,5001000014
04.05.2022,DSG,CHARLOTTE  SHARMAN PRIMARY SCHOOL,490,TEACHERS PAY GRANT,SCHOOLS CAPITATION,2103472673,5001000016
04.05.2022,DSG,COBOURG PRIMARY SCHOOL,653,TEACHERS PAY GRANT,SCHOOLS CAPITATION,2103472653,5001000021
04.05.2022,DSG,COMBER GROVE PRIMARY SCHOOL,396,TEACHERS PAY GRANT,SCHOOLS CAPITATION,2103472654,5001000022
04.05.2022,DSG,CRAWFORD PRIMARY SCHOOL,583,TEACHERS PAY GRANT,SCHOOLS CAPITATION,2103472655,5001000024
04.05.2022,DSG,DOG KENNEL HILL PRIMARY SCHOOL,629,TEACHERS PAY GRANT,SCHOOLS CAPITATION,2103472656,5001000025
04.05.2022,DSG,GOODRICH PRIMARY SCHOOL,"1,399.00",TEACHERS PAY GRANT,SCHOOLS CAPITATION,2103472657,5001000028
04.05.2022,DSG,GRANGE PRIMARY SCHOOL,513,TEACHERS PAY GRANT,SCHOOLS CAPITATION,2103472658,5001000029
04.05.2022,DSG,ENGLISH MARTYRS RC PRIMARY SCHOOL,606,TEACHERS PAY GRANT,SCHOOLS CAPITATION,2103472678,5001000030
04.05.2022,DSG,PHOENIX PRIMARY SCHOOL,723,TEACHERS PAY GRANT,SCHOOLS CAPITATION,2103472674,5001000032
04.05.2022,DSG,FRIARS PRIMARY (FOUNDATION) SCHOOL,303,TEACHERS PAY GRANT,SCHOOLS CAPITATION,2103472693,5001000033
04.05.2022,DSG,HEBER PRIMARY SCHOOL,839,TEACHERS PAY GRANT,SCHOOLS CAPITATION,2103472659,5001000035
04.05.2022,DSG,ILDERTON PRIMARY SCHOOL,350,TEACHERS PAY GRANT,SCHOOLS CAPITATION,2103472660,5001000037
04.05.2022,DSG,IVYDALE PRIMARY SCHOOL,"1,026.00",TEACHERS PAY GRANT,SCHOOLS CAPITATION,2103472661,5001000038
04.05.2022,DSG,JOHN RUSKIN PRIMARY SCHOOL,"1,608.00",TEACHERS PAY GRANT,SCHOOLS CAPITATION,2103472662,5001000040
04.05.2022,DSG,KEYWORTH PRIMARY SCHOOL,956,TEACHERS PAY GRANT,SCHOOLS CAPITATION,2103472663,5001000041
04.05.2022,DSG,KINTORE WAY CHILDRENS CENTRE,"4,452.00",TEACHERS PAY GRANT,SCHOOLS CAPITATION,2103472645,5001000047
04.05.2022,DSG,MICHAEL FARADAY PRIMARY SCHOOL,"1,119.00",TEACHERS PAY GRANT,SCHOOLS CAPITATION,2103472664,5001000048
04.05.2022,DSG,NELL GWYNN NURSERY SCHOOL,"2,821.00",TEACHERS PAY GRANT,SCHOOLS CAPITATION,2103472648,5001000049
04.05.2022,DSG,OLIVER GOLDSMITH PRIMARY SCHOOL,862,TEACHERS PAY GRANT,SCHOOLS CAPITATION,2103472677,5001000051
04.05.2022,DSG,PETER HILLS CE SCHOOL,373,TEACHERS PAY GRANT,SCHOOLS CAPITATION,2103472686,5001000053
04.05.2022,DSG,PILGRIM'S WAY PRIMARY SCHOOL,443,TEACHERS PAY GRANT,SCHOOLS CAPITATION,2103472675,5001000054
04.05.2022,DSG,RIVERSIDE PRIMARY SCHOOL,373,TEACHERS PAY GRANT,SCHOOLS CAPITATION,2103472665,5001000056
04.05.2022,DSG,ROBERT BROWNING PRIMARY SCHOOL,513,TEACHERS PAY GRANT,SCHOOLS CAPITATION,2103472666,5001000057
04.05.2022,DSG,ROTHERHITHE PRIMARY SCHOOL,746,TEACHERS PAY GRANT,SCHOOLS CAPITATION,2103472667,5001000058
04.05.2022,DSG,RYE OAK PRIMARY SCHOOL,"1,445.00",TEACHERS PAY GRANT,SCHOOLS CAPITATION,2103472697,5001000059
04.05.2022,DSG,SNOWSFIELDS PRIMARY SCHOOL,443,TEACHERS PAY GRANT,SCHOOLS CAPITATION,2103472668,5001000061
04.05.2022,DSG,SOUTHWARK PARK PRIMARY SCHOOL,979,TEACHERS PAY GRANT,SCHOOLS CAPITATION,2103472669,5001000062
04.05.2022,DSG,ST ANTHONYS RC SCHOOL,699,TEACHERS PAY GRANT,SCHOOLS CAPITATION,2103472692,5001000064
04.05.2022,DSG,ST FRANCESCA CABRINI PRIMARY SCHOOL,443,TEACHERS PAY GRANT,SCHOOLS CAPITATION,2103472691,5001000065
04.05.2022,DSG,ST FRANCIS'S RC PRIMARY SCHOOL,513,TEACHERS PAY GRANT,SCHOOLS CAPITATION,2103472680,5001000067
04.05.2022,DSG,ST JAMES THE GREAT RC SCHOOL,653,TEACHERS PAY GRANT,SCHOOLS CAPITATION,2103472679,5001000071
04.05.2022,DSG,THE ST THOMAS THE APOSTLE COLLEGE,"8,380.00",TEACHERS PAY GRANT,SCHOOLS CAPITATION,2103472694,5001000074
04.05.2022,DSG,ST JOHNS RC PRIMARY SCHOOL,536,TEACHERS PAY GRANT,SCHOOLS CAPITATION,2103472689,5001000075
04.05.2022,DSG,ST JOSEPHS CATHOLIC SCHOOL,443,TEACHERS PAY GRANT,SCHOOLS CAPITATION,2103472685,5001000076
04.05.2022,DSG,ST JOSEPHS RC PRIMARY SCHOOL,699,TEACHERS PAY GRANT,SCHOOLS CAPITATION,2103472683,5001000077
04.05.2022,DSG,ST JOSEPHS CATHOLIC PRIMARY SCHOOL,559,TEACHERS PAY GRANT,SCHOOLS CAPITATION,2103472684,5001000078
04.05.2022,DSG,ST PETERS CE SCHOOL,466,TEACHERS PAY GRANT,SCHOOLS CAPITATION,2103472687,5001000083
04.05.2022,DSG,ST SAVIOURS & ST OLAVES SCHOOL,"4,537.00",TEACHERS PAY GRANT,SCHOOLS CAPITATION,2103472690,5001000084
04.05.2022,DSG,ANN BERNADT NURSERY SCHOOL,"2,331.00",TEACHERS PAY GRANT,SCHOOLS CAPITATION,2103472646,5001000085
04.05.2022,DSG,CATHEDRAL SCHOOL OF ST SAVIOUR & MARY,303,TEACHERS PAY GRANT,SCHOOLS CAPITATION,2103472688,5001000088
04.05.2022,DSG,THE GROVE CHILDRENS CENTRE,"2,331.00",TEACHERS PAY GRANT,SCHOOLS CAPITATION,2103472649,5001000090
04.05.2022,DSG,TOWER BRIDGE PRIMARY SCHOOL,326,TEACHERS PAY GRANT,SCHOOLS CAPITATION,2103472670,5001000095
04.05.2022,DSG,DULWICH WOOD CHILDRENS CENTRE,"2,331.00",TEACHERS PAY GRANT,SCHOOLS CAPITATION,2103472647,5001000099
04.05.2022,DSG,PROSPERO RECRUITMENT LTD,647,VIRTUAL SCHOOL PP,EXTERNAL AGENCIES AND BODIES,5902523149,1000082492
04.05.2022,DSG,PROSPERO RECRUITMENT LTD,"2,745.00",VIRTUAL SCHOOL PP,EXTERNAL AGENCIES AND BODIES,5902523150,1000082492
04.05.2022,DSG,PROSPERO RECRUITMENT LTD,"4,145.50",VIRTUAL SCHOOL PP,EXTERNAL AGENCIES AND BODIES,5902523149,1000082492
04.05.2022,EDUCATION,PYLON DESIGN CONSULTANTS LTD,600,SCHOOLS HR TRADED SERVICES,RECHARGE FROM EDUCATION,5902522925,1000040083
04.05.2022,ENVIRONMENT AND LEISURE,FIELDTURF,"129,411.37",CAPITAL PS (LEIS),WORKS,6102026338,INTERNATIONAL PAYMENT
04.05.2022,ENVIRONMENT AND LEISURE,FIELDTURF,"58,275.32",CAPITAL PS (LEIS),WORKS,6102026337,INTERNATIONAL PAYMENT
04.05.2022,ENVIRONMENT AND LEISURE,BANKSIDE OPEN SPACES TRUST,"2,316.13",CAPITAL PS (LEISURE),CAPITAL GRANTS,5902523178,1000018290
04.05.2022,ENVIRONMENT AND LEISURE,SLATTER CRICKET & PLAY LTD,"8,378.00",CAPITAL PS (LEISURE),FURNITURE & FITTINGS ACQUISITION,5902523182,1000088330
04.05.2022,ENVIRONMENT AND LEISURE,WF EDUCATION GROUP LIMITED,"1,794.00",CAPITAL PS (LEISURE),"PLANT, MACHINERY & EQUIPMENT ACQUISITION",5902523157,1000086286
04.05.2022,ENVIRONMENT DIRECTORATE,ACCESS HIRE NATIONWIDE LTD,257.86,COMMERCIAL VEH CTRL A/C,HIRED VEHICLES,5902523200,1000048527
04.05.2022,ENVIRONMENT DIRECTORATE,ACCESS HIRE NATIONWIDE LTD,"1,289.29",COMMERCIAL VEH CTRL A/C,HIRED VEHICLES,5902523199,1000048527
04.05.2022,ENVIRONMENT DIRECTORATE,LEX AUTOLEASE,"19,188.35",COMMERCIAL VEH CTRL A/C,HIRED VEHICLES,5902523192,1000069462
04.05.2022,ENVIRONMENT DIRECTORATE,LEEDS COMMERCIAL LIMITED T/A LC VEHICLE HIRE,945,COMMERCIAL VEH CTRL A/C,HIRED VEHICLES,5902523238,1000082730
04.05.2022,ENVIRONMENT DIRECTORATE,LEEDS COMMERCIAL LIMITED T/A LC VEHICLE HIRE,945,COMMERCIAL VEH CTRL A/C,HIRED VEHICLES,5902523239,1000082730
04.05.2022,ENVIRONMENT DIRECTORATE,JBW ENFORCEMENT AGENTS,279,COMMERCIAL VEH CTRL A/C,PARKING CHARGES,5902523196,1000080454
04.05.2022,ENVIRONMENT DIRECTORATE,DAWSONGROUP VANS LTD,300.08,COMMERCIAL VEH CTRL A/C,VEHICLE REPAIRS & MAINTENANCE,5902523035,1000082230
04.05.2022,ENVIRONMENT DIRECTORATE,DAWSONGROUP VANS LTD,300.08,COMMERCIAL VEH CTRL A/C,VEHICLE REPAIRS & MAINTENANCE,5902523036,1000082230
04.05.2022,ENVIRONMENT DIRECTORATE,DAWSONGROUP VANS LTD,300.08,COMMERCIAL VEH CTRL A/C,VEHICLE REPAIRS & MAINTENANCE,5902523037,1000082230
04.05.2022,ENVIRONMENT DIRECTORATE,DAWSONGROUP VANS LTD,300.08,COMMERCIAL VEH CTRL A/C,VEHICLE REPAIRS & MAINTENANCE,5902523038,1000082230
04.05.2022,ENVIRONMENT DIRECTORATE,DAWSONGROUP VANS LTD,300.08,COMMERCIAL VEH CTRL A/C,VEHICLE REPAIRS & MAINTENANCE,5902523039,1000082230
04.05.2022,ENVIRONMENT DIRECTORATE,LEEDS COMMERCIAL LIMITED T/A LC VEHICLE HIRE,"2,625.00",COMMERCIAL VEH CTRL A/C,VEHICLE REPAIRS & MAINTENANCE,5902523242,1000082730
04.05.2022,ENVIRONMENT DIRECTORATE,LEEDS COMMERCIAL LIMITED T/A LC VEHICLE HIRE,"2,730.00",COMMERCIAL VEH CTRL A/C,VEHICLE REPAIRS & MAINTENANCE,5902523241,1000082730
04.05.2022,ENVIRONMENT DIRECTORATE,DUNDALK MOTORS LONDON,318.09,COMMERCIAL VEH CTRL A/C,VEHICLE REPAIRS & MAINTENANCE,5902523065,1000084820
04.05.2022,ENVIRONMENT DIRECTORATE,WORKING ON WELLBEING LTD,750,EH & TS MANAGER,MEDICAL / HEALTH & SAFETY SERVICES,5902523146,1000077251
04.05.2022,ENVIRONMENT DIRECTORATE,SPALDINGS (UK) LTD,405,GROUNDS MAINTENANCE - GENERAL,MATERIALS,5902523213,1907384
04.05.2022,ENVIRONMENT DIRECTORATE,CROMWELL POLYTHENE LTD,"1,306.20",STREET CLEANING-GENERAL,MATERIALS,5902523130,1000021159
04.05.2022,F & C S EXCLUDING CORPORATE BUDGETS,DSI BILLING SERVICES LTD,"7,887.39",ADMINISTRATIVE SUPPORT,POSTAGES,5902523202,1000058640
04.05.2022,F & C S EXCLUDING CORPORATE BUDGETS,CIPFA BUSINESS LTD,"6,560.00",FINANCE DIRECTOR,BOOKS & PUBLICATIONS,5902523177,1000024688
04.05.2022,F & C S EXCLUDING CORPORATE BUDGETS,TACO Q LTD,"3,224.00",INCOME MANAGEMENT,OFFICE EXPENSES,2103472819,1000088364
04.05.2022,F & C S EXCLUDING CORPORATE BUDGETS,EXPERIAN DATA QUALITY,"14,627.60",INCOME MANAGEMENT,SOFTWARE,5902523104,1000070958
04.05.2022,F & C S EXCLUDING CORPORATE BUDGETS,SHARPE PRITCHARD LLP,313,LEGAL CORP.CHARGES,SOLICITORS FRAMEWORK LEGAL SERVICES,5902523155,1790085
04.05.2022,F & C S EXCLUDING CORPORATE BUDGETS,BUDGET CARPETS,258.33,SESS,OTHER PAYMENTS FOR CLIENTS,5902523076,11319076
04.05.2022,FINANCE & GOVERNANCE,STAFFINO,"1,425.00",ADMINISTRATION SUPPORT,SOFTWARE,6102026339,INTERNATIONAL PAYMENT
04.05.2022,HOUSING,OCO LIMITED,"152,061.75",PAYMENTS CONTROL ACCOUNT - OCO,I-WORLD CONTRACTORS HOLDING ACCOUNT,5902523112,1006066
04.05.2022,HOUSING,SILK & MACKMAN SERVICES LTD,"318,396.19",PAYMENTS CONTROL ACCOUNT SILK & MACKMAN,I-WORLD CONTRACTORS HOLDING ACCOUNT,5902523170,1000035282
04.05.2022,HOUSING,SMITH & BYFORD LTD,"130,701.25",SMITH AND BYFORD,I-WORLD CONTRACTORS HOLDING ACCOUNT,5902523113,11212119
04.05.2022,HOUSING GENERAL FUND,ASTRAL PS LTD,"10,874.50",CAPITAL PS (HOUSING GF),CAPITAL GRANTS,5902523183,1000073720
04.05.2022,HOUSING GENERAL FUND,DAVID MILES & PARTNERS LTD,"10,605.00",CAPITAL PS (REGEN),CONSTRUCTION,5902523085,1000001119
04.05.2022,HOUSING HRA,POTTER RAPER LTD,"4,144.00",CAPITAL PS (HRA),CONSTRUCTION,5902523102,1009369
04.05.2022,HOUSING HRA,CRS DRAWING AND DESIGN LTD,"33,360.00",CAPITAL PS (HRA),CONSTRUCTION,5902523194,1000085835
04.05.2022,HOUSING HRA,ASD INSTALLATION LTD,580,CAPITAL PS (HRA),CONSTRUCTION,5902523231,1000088358
04.05.2022,HOUSING HRA,ASD INSTALLATION LTD,"6,338.93",CAPITAL PS (HRA),CONSTRUCTION,5902523228,1000088358
04.05.2022,HOUSING HRA,CALFORD SEADEN LLP,"-8,582.73",CAPITAL PS (HRA),CONSTRUCTION FEES  - EXTERNAL,5902521300,1061592
04.05.2022,HOUSING HRA,CALFORD SEADEN LLP,"-2,966.32",CAPITAL PS (HRA),CONSTRUCTION FEES  - EXTERNAL,5902521299,1061592
04.05.2022,HOUSING HRA,CALFORD SEADEN LLP,"-1,180.80",CAPITAL PS (HRA),CONSTRUCTION FEES  - EXTERNAL,5902521298,1061592
04.05.2022,HOUSING HRA,CALFORD SEADEN LLP,"1,960.00",CAPITAL PS (HRA),CONSTRUCTION FEES  - EXTERNAL,5902523078,1061592
04.05.2022,HOUSING HRA,CALFORD SEADEN LLP,"2,176.58",CAPITAL PS (HRA),CONSTRUCTION FEES  - EXTERNAL,5902522970,1061592
04.05.2022,HOUSING HRA,CALFORD SEADEN LLP,"8,820.00",CAPITAL PS (HRA),CONSTRUCTION FEES  - EXTERNAL,5902523010,1061592
04.05.2022,HOUSING HRA,HOARE LEA LLP,"3,250.00",CAPITAL PS (HRA),CONSTRUCTION FEES  - EXTERNAL,5902523087,1000056233
04.05.2022,HOUSING HRA,SILVER DCC LTD,"1,550.00",CAPITAL PS (HRA),CONSTRUCTION FEES  - EXTERNAL,5902523100,1000087546
04.05.2022,HOUSING HRA,GEOTECHNICAL CONSULTING GROUP,"7,375.00",CAPITAL PS (HRA),CONSTRUCTION FEES - ARCHITECT,5902523064,1000058814
04.05.2022,HOUSING HRA,CALFORD SEADEN LLP,"2,646.00",CAPITAL PS (HRA),CONSTRUCTION FEES - EMPLOYERS AGENT,5902523120,1061592
04.05.2022,HOUSING HRA,ROBINSON LOW FRANCIS LLP,985,CAPITAL PS (HRA),CONSTRUCTION FEES - EMPLOYERS AGENT,5902523240,1000025405
04.05.2022,HOUSING HRA,RIDGE & PARTNERS LLP,"2,500.00",CAPITAL PS (HRA),CONSTRUCTION FEES - EMPLOYERS AGENT,5902523208,1000042536
04.05.2022,HOUSING HRA,RIDGE & PARTNERS LLP,"2,500.00",CAPITAL PS (HRA),CONSTRUCTION FEES - EMPLOYERS AGENT,5902523214,1000042536
04.05.2022,HOUSING HRA,SHARPE PRITCHARD LLP,"1,827.00",CAPITAL PS (HRA),CONSTRUCTION FEES - LEGAL,5902523042,1790085
04.05.2022,HOUSING HRA,GUILDMORE LTD,"83,835.18",CAPITAL PS (HRA),CONSTRUCTION MAIN CONTRACT -CERTIFICATED,2103472641,3000002150
04.05.2022,HOUSING HRA,GUILDMORE LTD,"134,144.85",CAPITAL PS (HRA),CONSTRUCTION MAIN CONTRACT -CERTIFICATED,2103472640,3000002150
04.05.2022,HOUSING HRA,BRITISH GAS TRADING LTD,340.61,CAPITAL PS (HRA),CONSTRUCTION SITE COSTS,5902523051,1000055977
04.05.2022,HOUSING HRA,BRITISH GAS TRADING LTD,355.48,CAPITAL PS (HRA),CONSTRUCTION SITE COSTS,5902523060,1000055977
04.05.2022,HOUSING HRA,BRITISH GAS TRADING LTD,414.79,CAPITAL PS (HRA),CONSTRUCTION SITE COSTS,5902523052,1000055977
04.05.2022,HOUSING HRA,STAFFINO,"1,092.50",HOME OWNERSHIP,SOFTWARE,6102026339,INTERNATIONAL PAYMENT
04.05.2022,HR & OT,PSYCHOLOGICAL CONSULTANCY LTD,256.25,OCCUPATIONAL ASSESSMENT,OTHER EMPLOYEE EXPENSES,5902523049,1000086472
04.05.2022,HR & OT,WORKING ON WELLBEING LTD,"9,874.50",OPTIMA HEALTH,MEDICAL / HEALTH & SAFETY SERVICES,5902523224,1000077251
04.05.2022,LEISURE DIRECTORATE,KEN MCCALLA,600,ARTS PROJECT,CONSULTANTS SERVICES,5902523119,1000088311
04.05.2022,LEISURE DIRECTORATE,GRAEME EVELYN,300,ARTS PROJECT,CONSULTANTS SERVICES,5902523118,1000088329
04.05.2022,LEISURE DIRECTORATE,SOUNDCAMP CIC,"3,779.20",CULTURAL CELEBRATIONS FUND,GRANTS,5902523163,1000084948
04.05.2022,LEISURE DIRECTORATE,DEVINIAT ADEDIBU,750,CULTURAL CELEBRATIONS FUND,PROFESSIONAL FEES,5902523131,1000088349
04.05.2022,LEISURE DIRECTORATE,2CQR LTD C/O LYNGSOE SYSTEMS LTD,"33,000.00",DAMILOLA TAYLOR CENTRE,SUBSCRIPTIONS,5902523168,1000083086
04.05.2022,LEISURE DIRECTORATE,THE STOCKROOM ARCHIVE MANAGEMENT LTD,"8,810.65",HERITAGE,OTHER CONTRACTORS,5902523165,1000079579
04.05.2022,LEISURE DIRECTORATE,CASTLE WATER LTD,318.33,SDM BUDGET,WATER,5902523123,1000078867
04.05.2022,LEISURE DIRECTORATE,CASTLE WATER LTD,"1,443.61",SDM BUDGET,WATER,5902523124,1000078867
04.05.2022,LEISURE DIRECTORATE,ASKEWS & HOLTS LIBRARY SERVICES LTD,"3,121.43",STOCK SERVICES,BOOKS & PUBLICATIONS,5902523175,1494168
04.05.2022,NEW BUILD,SHARPE PRITCHARD LLP,560,DEVELOPMENT DELIVERY,PROFESSIONAL FEES,5902523188,1790085
04.05.2022,RESIDENT SERVICES,REDACTED PERSONAL DATA,980,TA PLACEMENTS,EXTERNAL AGENCIES AND BODIES,REDACTED,REDACTED
04.05.2022,RESIDENT SERVICES,REDACTED PERSONAL DATA,"1,085.00",TA PLACEMENTS,EXTERNAL AGENCIES AND BODIES,REDACTED,REDACTED
04.05.2022,RESIDENT SERVICES,REDACTED PERSONAL DATA,"1,085.00",TA PLACEMENTS,EXTERNAL AGENCIES AND BODIES,REDACTED,REDACTED
04.05.2022,RESIDENT SERVICES HGF,DSG RETAIL LTD,572.49,COVID-19 SUPPORT,EXTERNAL AGENCIES AND BODIES,5902523144,1000060952
04.05.2022,RESIDENT SERVICES HGF,PROPERTYPLACEBOOK LTD,"5,177.00",COVID-19 SUPPORT,EXTERNAL AGENCIES AND BODIES,5902523237,1000077817
04.05.2022,RESIDENT SERVICES HGF,DARYOUSH AMINI,"1,541.92",HOMELESS PROJECTS,GRANTS,5902523072,1000088305
04.05.2022,RESIDENT SERVICES HGF,RENT CONNECT HOUSING LTD,"11,198.60",NIGHTLY TA (NSC),EXTERNAL AGENCIES AND BODIES,5902523137,1000074815
04.05.2022,RESIDENT SERVICES HGF,MX ESTATES LTD,"25,140.00",NIGHTLY TA (NSC),EXTERNAL AGENCIES AND BODIES,5902523156,1000083639
04.05.2022,RESIDENT SERVICES HGF,LONDON CLAPHAM SOUTH LTD,930,RAPID REHOUSING,EXTERNAL AGENCIES AND BODIES,5902523069,1000087760
05.05.2022,ADULT SOCIAL CARE,PHEBDAN HEALTHCARE SERVICES LIMITED,"2,613.50",LD LTS 18-64,SUPPORTED LIVING,2103473244,1000087033
05.05.2022,ADULT SOCIAL CARE,CONTACT PROFESSIONALS,252.56,SPECIALIST CARE,SECTION 17 PAYMENTS TO AGENCIES/CARERS,2103473124,1000057263
05.05.2022,ADULT SOCIAL CARE,CONTACT PROFESSIONALS,252.56,SPECIALIST CARE,SECTION 17 PAYMENTS TO AGENCIES/CARERS,2103473190,1000057263
05.05.2022,ADULT SOCIAL CARE,CONTACT PROFESSIONALS,270.6,SPECIALIST CARE,SECTION 17 PAYMENTS TO AGENCIES/CARERS,2103473098,1000057263
05.05.2022,ADULT SOCIAL CARE,CONTACT PROFESSIONALS,306.68,SPECIALIST CARE,SECTION 17 PAYMENTS TO AGENCIES/CARERS,2103473188,1000057263
05.05.2022,ADULT SOCIAL CARE,CONTACT PROFESSIONALS,360.8,SPECIALIST CARE,SECTION 17 PAYMENTS TO AGENCIES/CARERS,2103473044,1000057263
05.05.2022,ADULT SOCIAL CARE,CONTACT PROFESSIONALS,360.8,SPECIALIST CARE,SECTION 17 PAYMENTS TO AGENCIES/CARERS,2103473174,1000057263
05.05.2022,ADULT SOCIAL CARE,CONTACT PROFESSIONALS,414.92,SPECIALIST CARE,SECTION 17 PAYMENTS TO AGENCIES/CARERS,2103473140,1000057263
05.05.2022,ADULT SOCIAL CARE,CONTACT PROFESSIONALS,432.96,SPECIALIST CARE,SECTION 17 PAYMENTS TO AGENCIES/CARERS,2103473144,1000057263
05.05.2022,ADULT SOCIAL CARE,UNIQUE PERSONNEL (UK) LTD,252.42,SPECIALIST CARE,SECTION 17 PAYMENTS TO AGENCIES/CARERS,2103473080,1000075451
05.05.2022,ADULT SOCIAL CARE,UNIQUE PERSONNEL (UK) LTD,270.45,SPECIALIST CARE,SECTION 17 PAYMENTS TO AGENCIES/CARERS,2103473058,1000075451
05.05.2022,ADULT SOCIAL CARE,UNIQUE PERSONNEL (UK) LTD,270.45,SPECIALIST CARE,SECTION 17 PAYMENTS TO AGENCIES/CARERS,2103473060,1000075451
05.05.2022,ADULT SOCIAL CARE,UNIQUE PERSONNEL (UK) LTD,288.48,SPECIALIST CARE,SECTION 17 PAYMENTS TO AGENCIES/CARERS,2103473066,1000075451
05.05.2022,ADULT SOCIAL CARE,UNIQUE PERSONNEL (UK) LTD,288.48,SPECIALIST CARE,SECTION 17 PAYMENTS TO AGENCIES/CARERS,2103473082,1000075451
05.05.2022,ADULT SOCIAL CARE,UNIQUE PERSONNEL (UK) LTD,288.48,SPECIALIST CARE,SECTION 17 PAYMENTS TO AGENCIES/CARERS,2103473084,1000075451
05.05.2022,ADULT SOCIAL CARE,UNIQUE PERSONNEL (UK) LTD,288.48,SPECIALIST CARE,SECTION 17 PAYMENTS TO AGENCIES/CARERS,2103473112,1000075451
05.05.2022,ADULT SOCIAL CARE,UNIQUE PERSONNEL (UK) LTD,288.48,SPECIALIST CARE,SECTION 17 PAYMENTS TO AGENCIES/CARERS,2103473114,1000075451
05.05.2022,ADULT SOCIAL CARE,UNIQUE PERSONNEL (UK) LTD,306.52,SPECIALIST CARE,SECTION 17 PAYMENTS TO AGENCIES/CARERS,2103473032,1000075451
05.05.2022,ADULT SOCIAL CARE,UNIQUE PERSONNEL (UK) LTD,360.6,SPECIALIST CARE,SECTION 17 PAYMENTS TO AGENCIES/CARERS,2103473062,1000075451
05.05.2022,ADULT SOCIAL CARE,UNIQUE PERSONNEL (UK) LTD,432.72,SPECIALIST CARE,SECTION 17 PAYMENTS TO AGENCIES/CARERS,2103473054,1000075451
05.05.2022,ADULT SOCIAL CARE,UNIQUE PERSONNEL (UK) LTD,432.72,SPECIALIST CARE,SECTION 17 PAYMENTS TO AGENCIES/CARERS,2103473110,1000075451
05.05.2022,ADULT SOCIAL CARE,UNIQUE PERSONNEL (UK) LTD,486.81,SPECIALIST CARE,SECTION 17 PAYMENTS TO AGENCIES/CARERS,2103473068,1000075451
05.05.2022,ADULT SOCIAL CARE,UNIQUE PERSONNEL (UK) LTD,721.2,SPECIALIST CARE,SECTION 17 PAYMENTS TO AGENCIES/CARERS,2103473050,1000075451
05.05.2022,ADULT SOCIAL CARE,UNIQUE PERSONNEL (UK) LTD,784.31,SPECIALIST CARE,SECTION 17 PAYMENTS TO AGENCIES/CARERS,2103473064,1000075451
05.05.2022,ADULT SOCIAL CARE,UNIQUE PERSONNEL (UK) LTD,802.34,SPECIALIST CARE,SECTION 17 PAYMENTS TO AGENCIES/CARERS,2103473070,1000075451
05.05.2022,ADULT SOCIAL CARE,WE ARE BEAMS LTD,"1,960.00",SPECIALIST CARE,SECTION 17 PAYMENTS TO AGENCIES/CARERS,2103473200,1000083431
05.05.2022,ADULT SOCIAL CARE,DE VERE CARE PARTNERSHIP LTD,280,SPECIALIST CARE,SECTION 17 PAYMENTS TO AGENCIES/CARERS,2103473048,1000086901
05.05.2022,ADULT SOCIAL CARE,DE VERE CARE PARTNERSHIP LTD,280,SPECIALIST CARE,SECTION 17 PAYMENTS TO AGENCIES/CARERS,2103473132,1000086901
05.05.2022,ADULT SOCIAL CARE,DE VERE CARE PARTNERSHIP LTD,280,SPECIALIST CARE,SECTION 17 PAYMENTS TO AGENCIES/CARERS,2103473134,1000086901
05.05.2022,ADULT SOCIAL CARE,DE VERE CARE PARTNERSHIP LTD,280,SPECIALIST CARE,SECTION 17 PAYMENTS TO AGENCIES/CARERS,2103473136,1000086901
05.05.2022,ADULT SOCIAL CARE,DE VERE CARE PARTNERSHIP LTD,280,SPECIALIST CARE,SECTION 17 PAYMENTS TO AGENCIES/CARERS,2103473206,1000086901
05.05.2022,ADULT SOCIAL CARE,DE VERE CARE PARTNERSHIP LTD,420,SPECIALIST CARE,SECTION 17 PAYMENTS TO AGENCIES/CARERS,2103473138,1000086901
05.05.2022,ASSET MANAGEMENT,EXACTLY TECH LTD,"8,400.00",DIRECTOR OF ASSET MANAGEMENT,SOFTWARE,5902523260,1000083655
05.05.2022,ASSET MANAGEMENT,EXACTLY TECH LTD,"9,000.00",DIRECTOR OF ASSET MANAGEMENT,SOFTWARE,5902523257,1000083655
05.05.2022,ASSET MANAGEMENT,LONDON FIRE BRIGADE,352,ENG CONTRACTS (NORTH),LIFTS,5902522896,1000083629
05.05.2022,ASSET MANAGEMENT,LONDON FIRE BRIGADE,352,ENG CONTRACTS (NORTH),LIFTS,5902523132,1000083629
05.05.2022,ASSET MANAGEMENT,STABILIS ASSOCIATES LTD,"9,152.00",REPAIRS OPERATIONS,PROFESSIONAL FEES,5902523271,1000082512
05.05.2022,ASSET MANAGEMENT HGF,KENT COUNTY COUNCIL - LASER,"-2,856.20",160 TOOLEY ST.,GAS,5902523398,1000012926
05.05.2022,ASSET MANAGEMENT HGF,KENT COUNTY COUNCIL - LASER,"3,083.90",160 TOOLEY ST.,GAS,5902523393,1000012926
05.05.2022,ASSET MANAGEMENT HGF,KENT COUNTY COUNCIL - LASER,"4,137.67",160 TOOLEY ST.,GAS,5902523394,1000012926
05.05.2022,ASSET MANAGEMENT HGF,KENT COUNTY COUNCIL - LASER,"4,369.61",160 TOOLEY ST.,GAS,5902523392,1000012926
05.05.2022,ASSET MANAGEMENT HGF,KENT COUNTY COUNCIL - LASER,"5,847.27",160 TOOLEY ST.,GAS,5902523400,1000012926
05.05.2022,ASSET MANAGEMENT HGF,KENT COUNTY COUNCIL - LASER,"1,265.26",BOURNEMOUTH GROVE,ELECTRICITY,5902523270,1000012926
05.05.2022,CENTRAL FUNCTIONS,PARTNERSHIP MEDIA GROUP,345,HOME OWNERSHIP,TRAINING,5902522712,1000050132
05.05.2022,CENTRAL FUNCTIONS,1ST ACE SECURITY LTD,"36,169.20",LEDBURY ESTATE,SECURITY SERVICES,5902522834,1000006992
05.05.2022,CHIEF EXECUTIVE,METIS CONSULTANTS LIMITED,"1,332.66",CAPITAL PS (REGEN),CAPITAL GRANTS,5902523297,1000086330
05.05.2022,CHIEF EXECUTIVE'S OFFICE,MUHAMMAD RAZA,"2,000.00",ELEPHANT & CASTLE,GRANTS,5902522972,1000085454
05.05.2022,CHIEF EXECUTIVE'S OFFICE,REDACTED PERSONAL DATA,"2,000.00",ELEPHANT & CASTLE,GRANTS,REDACTED,REDACTED
05.05.2022,CHIEF EXECUTIVE'S OFFICE,REDACTED PERSONAL DATA,"2,000.00",ELEPHANT & CASTLE,GRANTS,REDACTED,REDACTED
05.05.2022,CHILDREN AND ADULT,CULLINAN STUDIO LTD,"32,676.49",CAPITAL PS (EDUCATION),CONSTRUCTION FEES - ARCHITECT,5902523360,1000087576
05.05.2022,CHILDREN AND FAMILIES,KENT COUNTY COUNCIL - LASER,797.75,CENTRAL SUPPORT,GAS,5902523400,1000012926
05.05.2022,CHILDREN AND FAMILIES,COMPASS CHILDRENS HOMES LTD,"16,695.67",CHILDREN�S RESID,RESIDENTIAL CARE,2103473210,1000086507
05.05.2022,CHILDREN AND FAMILIES,NEGOTIATORS FAMILY CENTRE LIMITED,300,CONTACT SERVICE,OTHER PAYMENTS FOR CLIENTS,5902523328,1000075672
05.05.2022,CHILDREN AND FAMILIES,BLERINA TAHIRAJ-PRITCHARD,"1,233.33",FAMILY GROUP CONF�S,PROFESSIONAL FEES,5902523417,1000083304
05.05.2022,CHILDREN AND FAMILIES,HERA SOCIAL CARE LTD,314.17,FAMILY GROUP CONF�S,PROFESSIONAL FEES,5902523421,1000084935
05.05.2022,CHILDREN AND FAMILIES,REDACTED PERSONAL DATA,300,FOSTERING ALLOWANCES,PAYMENTS TO CARERS,REDACTED,REDACTED
05.05.2022,CHILDREN AND FAMILIES,REDACTED PERSONAL DATA,"-2,614.28",FOSTERING ALLOWANCES,PAYMENTS TO CARERS,REDACTED,REDACTED
05.05.2022,CHILDREN AND FAMILIES,REDACTED PERSONAL DATA,"-2,614.28",FOSTERING ALLOWANCES,PAYMENTS TO CARERS,REDACTED,REDACTED
05.05.2022,CHILDREN AND FAMILIES,REDACTED PERSONAL DATA,"5,171.13",FOSTERING ALLOWANCES,PAYMENTS TO CARERS,REDACTED,REDACTED
05.05.2022,CHILDREN AND FAMILIES,FAMILY FOSTERING LTD,"4,281.90",FRIENDS & FAMILY FOSTERING,EXTERNAL AGENCIES AND BODIES,2103473215,1000075179
05.05.2022,CHILDREN AND FAMILIES,DIVERSITY FOSTER CARE LTD,"3,976.16",FRIENDS & FAMILY FOSTERING,EXTERNAL AGENCIES AND BODIES,2103473212,1000081399
05.05.2022,CHILDREN AND FAMILIES,DIVERSITY FOSTER CARE LTD,"3,976.16",FRIENDS & FAMILY FOSTERING,EXTERNAL AGENCIES AND BODIES,2103473214,1000081399
05.05.2022,CHILDREN AND FAMILIES,SILVER LINING FOSTERING LTD,"3,321.43",FRIENDS & FAMILY FOSTERING,EXTERNAL AGENCIES AND BODIES,2103473216,1000087318
05.05.2022,CHILDREN AND FAMILIES,REDACTED PERSONAL DATA,-300,FRIENDS &FAMILY FOST,PAYMENTS TO CARERS,REDACTED,REDACTED
05.05.2022,CHILDREN AND FAMILIES,KENT COUNTY COUNCIL - LASER,276.11,MGMT & PARENTING,ELECTRICITY,5902523401,1000012926
05.05.2022,CHILDREN AND FAMILIES,KENT COUNTY COUNCIL - LASER,"1,019.94",MGMT & PARENTING,ELECTRICITY,5902523397,1000012926
05.05.2022,CHILDREN AND FAMILIES,ELLIOT LEIGH TLC LTD,-899.99,SEMI-IND CARELEAVERS,COSTS RECOVERED,2103473248,1000079022
05.05.2022,CHILDREN AND FAMILIES,ELLIOT LEIGH TLC LTD,-700,SEMI-IND CARELEAVERS,COSTS RECOVERED,2103473249,1000079022
05.05.2022,CHILDREN AND FAMILIES,NETPEX LTD CORPORATE SERVICES,"2,464.26",SEMI-IND CARELEAVERS,EXTERNAL AGENCIES AND BODIES,2103473229,1000076073
05.05.2022,CHILDREN AND FAMILIES,NETPEX LTD CORPORATE SERVICES,"2,571.42",SEMI-IND CARELEAVERS,EXTERNAL AGENCIES AND BODIES,2103473232,1000076073
05.05.2022,CHILDREN AND FAMILIES,NETPEX LTD CORPORATE SERVICES,"2,678.70",SEMI-IND CARELEAVERS,EXTERNAL AGENCIES AND BODIES,2103473243,1000076073
05.05.2022,CHILDREN AND FAMILIES,NETPEX LTD CORPORATE SERVICES,"2,704.26",SEMI-IND CARELEAVERS,EXTERNAL AGENCIES AND BODIES,2103473231,1000076073
05.05.2022,CHILDREN AND FAMILIES,ELLIOT LEIGH TLC LTD,"1,924.20",SEMI-IND CARELEAVERS,EXTERNAL AGENCIES AND BODIES,2103473240,1000079022
05.05.2022,CHILDREN AND FAMILIES,ELLIOT LEIGH TLC LTD,"1,950.00",SEMI-IND CARELEAVERS,EXTERNAL AGENCIES AND BODIES,2103473234,1000079022
05.05.2022,CHILDREN AND FAMILIES,ELLIOT LEIGH TLC LTD,"2,808.30",SEMI-IND CARELEAVERS,EXTERNAL AGENCIES AND BODIES,2103473233,1000079022
05.05.2022,CHILDREN AND FAMILIES,ELLIOT LEIGH TLC LTD,"3,258.90",SEMI-IND CARELEAVERS,EXTERNAL AGENCIES AND BODIES,2103473241,1000079022
05.05.2022,CHILDREN AND FAMILIES,FRESHVIEW ESTATES LTD,"1,510.27",SEMI-IND CARELEAVERS,EXTERNAL AGENCIES AND BODIES,5902523404,1000081189
05.05.2022,CHILDREN AND FAMILIES,FRESHVIEW ESTATES LTD,"1,984.95",SEMI-IND CARELEAVERS,EXTERNAL AGENCIES AND BODIES,5902523406,1000081189
05.05.2022,CHILDREN AND FAMILIES,FRESHVIEW ESTATES LTD,"2,216.16",SEMI-IND CARELEAVERS,EXTERNAL AGENCIES AND BODIES,5902523408,1000081189
05.05.2022,CHILDREN AND FAMILIES,SYDNEY CARE LTD,"9,642.85",SEMI-IND CARELEAVERS,EXTERNAL AGENCIES AND BODIES,2103473230,1000081598
05.05.2022,CHILDREN AND FAMILIES,TRANSFORMING LIVES COMPANY LTD,"3,619.20",SEMI-IND CARELEAVERS,EXTERNAL AGENCIES AND BODIES,2103473228,1000083352
05.05.2022,CHILDREN AND FAMILIES,TRANSFORMING LIVES COMPANY LTD,"4,015.50",SEMI-IND CARELEAVERS,EXTERNAL AGENCIES AND BODIES,2103473242,1000083352
05.05.2022,CHILDREN AND FAMILIES,SYDNEY CARE LTD,"1,028.57",SEMI-IND LAC 16-17,EXTERNAL AGENCIES AND BODIES,2103473222,1000081598
05.05.2022,CHILDREN AND FAMILIES,SYDNEY CARE LTD,"7,367.14",SEMI-IND LAC 16-17,EXTERNAL AGENCIES AND BODIES,2103473221,1000081598
05.05.2022,CHILDREN AND FAMILIES,DREAMFO HOUSING LTD,"3,561.30",SEMI-IND LAC 16-17,EXTERNAL AGENCIES AND BODIES,2103473218,1000087273
05.05.2022,CHILDREN AND FAMILIES,DREAMFO HOUSING LTD,"5,671.21",SEMI-IND LAC 16-17,EXTERNAL AGENCIES AND BODIES,2103473223,1000087273
05.05.2022,CHILDREN AND FAMILIES,BLOCKCHAIN CARE SOLUTIONS UK LTD,"3,580.00",SEMI-IND LAC 16-17,EXTERNAL AGENCIES AND BODIES,2103473217,1000087564
05.05.2022,CHILDREN AND FAMILIES,SYDNEY CARE LTD,257.14,SEMI-IND LAC 16-17,OTHER PAYMENTS FOR CLIENTS,2103473227,1000081598
05.05.2022,CHILDREN AND FAMILIES,REDACTED PERSONAL DATA,300,SEMI-IND LAC 16-17,OTHER PAYMENTS FOR CLIENTS,REDACTED,REDACTED
05.05.2022,CHILDREN AND FAMILIES,ARC COMMUNITY TRUSTEES,650,SPECIAL GUARDIANSHIP,PAYMENTS TO CARERS,5902523419,1000046206
05.05.2022,CHILDREN AND FAMILIES,NETPEX LTD CORPORATE SERVICES,"2,100.00",UASC CARELEAVERS,EXTERNAL AGENCIES AND BODIES,2103473236,1000076073
05.05.2022,CHILDREN AND FAMILIES,ELLIOT LEIGH TLC LTD,"1,658.40",UASC CARELEAVERS,EXTERNAL AGENCIES AND BODIES,2103473238,1000079022
05.05.2022,CHILDREN AND FAMILIES,ELLIOT LEIGH TLC LTD,"1,671.30",UASC CARELEAVERS,EXTERNAL AGENCIES AND BODIES,2103473237,1000079022
05.05.2022,CHILDREN AND FAMILIES,ELLIOT LEIGH TLC LTD,"2,347.80",UASC CARELEAVERS,EXTERNAL AGENCIES AND BODIES,2103473239,1000079022
05.05.2022,CHILDREN AND FAMILIES,ZED SW LTD,500,UASC CARELEAVERS,EXTERNAL AGENCIES AND BODIES,5902523337,1000087466
05.05.2022,CHILDREN AND FAMILIES,DREAMFO HOUSING LTD,"3,171.30",UASC LAC 16-17,EXTERNAL AGENCIES AND BODIES,2103473219,1000087273
05.05.2022,CHILDREN AND FAMILIES,DREAMFO HOUSING LTD,"3,171.30",UASC LAC 16-17,EXTERNAL AGENCIES AND BODIES,2103473225,1000087273
05.05.2022,CHILDREN AND FAMILIES,DREAMFO HOUSING LTD,300,UASC LAC 16-17,OTHER PAYMENTS FOR CLIENTS,2103473220,1000087273
05.05.2022,CHILDREN AND FAMILIES,DREAMFO HOUSING LTD,300,UASC LAC 16-17,OTHER PAYMENTS FOR CLIENTS,2103473226,1000087273
05.05.2022,CUSTOMER EXPERIENCE,PARK RETAIL LTD,"1,960.00",COMPLAINTS,OFFICE EXPENSES,5902522501,1000053528
05.05.2022,CUSTOMER EXPERIENCE,PARK RETAIL LTD,"1,960.00",COMPLAINTS,OFFICE EXPENSES,5902522598,1000053528
05.05.2022,CUSTOMER EXPERIENCE,PARK RETAIL LTD,509,PECKHAM MSSP,OFFICE EXPENSES,5902522799,1000053528
05.05.2022,CUSTOMER EXPERIENCE,OPEN COMMUNITIES LTD,"1,105.00",S & A INCOME,DISCRETIONARY FLEXIBLE FEES & INCOME,5902523281,1000065800
05.05.2022,CUSTOMER EXPERIENCE HGF,VALTECH LTD,339.3,BLUE BADGES,MATERIALS,5902522906,1000082245
05.05.2022,CUSTOMER EXPERIENCE HGF,PROFESSOR  S AL-SARRAJ,500,CORONER'S,PROFESSIONAL FEES,5902523387,1000043051
05.05.2022,CUSTOMER EXPERIENCE HGF,SG PATH LTD,415.8,CORONER'S,PROFESSIONAL FEES,5902523376,1000077883
05.05.2022,CUSTOMER EXPERIENCE HGF,SG PATH LTD,415.8,CORONER'S,PROFESSIONAL FEES,5902523377,1000077883
05.05.2022,CUSTOMER EXPERIENCE HGF,SG PATH LTD,415.8,CORONER'S,PROFESSIONAL FEES,5902523381,1000077883
05.05.2022,CUSTOMER EXPERIENCE HGF,IMPERIAL COLLEGE PROJECTS LTD,336,CORONER'S,PROFESSIONAL FEES,5902523433,1000080106
05.05.2022,CUSTOMER EXPERIENCE HGF,IMPERIAL COLLEGE PROJECTS LTD,336,CORONER'S,PROFESSIONAL FEES,5902523435,1000080106
05.05.2022,CUSTOMER EXPERIENCE HGF,IMPERIAL COLLEGE PROJECTS LTD,388,CORONER'S,PROFESSIONAL FEES,5902523436,1000080106
05.05.2022,CUSTOMER EXPERIENCE HGF,IMPERIAL COLLEGE PROJECTS LTD,504,CORONER'S,PROFESSIONAL FEES,5902523437,1000080106
05.05.2022,DSG,LAMBETH ACADEMY,812.85,AC & FREE - MSTREAM,STATEMENTED FEES,2103472951,1000053869
05.05.2022,DSG,CHEAM ACADEMIES NETWORK,"2,334.00",AC & FREE - MSTREAM,STATEMENTED FEES,2103472858,1000086652
05.05.2022,DSG,CHEAM ACADEMIES NETWORK,"5,666.00",AC & FREE - MSTREAM,STATEMENTED FEES,2103472857,1000086652
05.05.2022,DSG,BOBBY MOORE ACADEMY,"3,700.00",AC & FREE - MSTREAM,STATEMENTED FEES,2103472836,1000088225
05.05.2022,DSG,BOBBY MOORE ACADEMY,"5,180.00",AC & FREE - MSTREAM,STATEMENTED FEES,2103472834,1000088225
05.05.2022,DSG,BOBBY MOORE ACADEMY,"7,400.00",AC & FREE - MSTREAM,STATEMENTED FEES,2103472835,1000088225
05.05.2022,DSG,CASTLEDON SCHOOL ACADEMY TRUST,"5,914.26",AC & FREE - SPECIAL,STATEMENTED FEES,2103472934,1000077736
05.05.2022,DSG,ROOTS AND SHOOTS,"2,024.75",AP & HOSPITAL SCHLS,STATEMENTED FEES,2103472905,1000037582
05.05.2022,DSG,ROOTS AND SHOOTS,"3,354.00",AP & HOSPITAL SCHLS,STATEMENTED FEES,2103472911,1000037582
05.05.2022,DSG,ROOTS AND SHOOTS,"3,768.38",AP & HOSPITAL SCHLS,STATEMENTED FEES,2103472912,1000037582
05.05.2022,DSG,ROOTS AND SHOOTS,"4,093.84",AP & HOSPITAL SCHLS,STATEMENTED FEES,2103472907,1000037582
05.05.2022,DSG,ROOTS AND SHOOTS,"4,183.28",AP & HOSPITAL SCHLS,STATEMENTED FEES,2103472910,1000037582
05.05.2022,DSG,ROOTS AND SHOOTS,"4,338.75",AP & HOSPITAL SCHLS,STATEMENTED FEES,2103472903,1000037582
05.05.2022,DSG,ROOTS AND SHOOTS,"4,463.75",AP & HOSPITAL SCHLS,STATEMENTED FEES,2103472904,1000037582
05.05.2022,DSG,ROOTS AND SHOOTS,"5,045.27",AP & HOSPITAL SCHLS,STATEMENTED FEES,2103472909,1000037582
05.05.2022,DSG,ROOTS AND SHOOTS,"5,287.75",AP & HOSPITAL SCHLS,STATEMENTED FEES,2103472906,1000037582
05.05.2022,DSG,ROOTS AND SHOOTS,"5,822.38",AP & HOSPITAL SCHLS,STATEMENTED FEES,2103472913,1000037582
05.05.2022,DSG,ROOTS AND SHOOTS,"6,898.13",AP & HOSPITAL SCHLS,STATEMENTED FEES,2103472908,1000037582
05.05.2022,DSG,NATIONAL TEACHING & ADVISORY SERVICE,780,AP & HOSPITAL SCHLS,STATEMENTED FEES,2103472958,1000075313
05.05.2022,DSG,LOVE ABA LTD,750,AP & HOSPITAL SCHLS,STATEMENTED FEES,2103472914,1000079474
05.05.2022,DSG,ASPIRE JC LTD,"6,000.00",AP & HOSPITAL SCHLS,STATEMENTED FEES,2103473004,1000083919
05.05.2022,DSG,COMPASS CHILDRENS HOMES LTD,"4,285.80",AP & HOSPITAL SCHLS,STATEMENTED FEES,2103472859,1000086507
05.05.2022,DSG,EMBRACE & ENCOURAGE EDUCATION,"1,920.00",AP & HOSPITAL SCHLS,STATEMENTED FEES,2103472848,1000088228
05.05.2022,DSG,CLASSROOM TEACHERS LTD,600,AP & HOSPITAL SCHLS,STATEMENTED FEES,2103472824,1000088248
05.05.2022,DSG,CLASSROOM TEACHERS LTD,750,AP & HOSPITAL SCHLS,STATEMENTED FEES,2103472820,1000088248
05.05.2022,DSG,CLASSROOM TEACHERS LTD,750,AP & HOSPITAL SCHLS,STATEMENTED FEES,2103472821,1000088248
05.05.2022,DSG,CLASSROOM TEACHERS LTD,750,AP & HOSPITAL SCHLS,STATEMENTED FEES,2103472822,1000088248
05.05.2022,DSG,CLASSROOM TEACHERS LTD,750,AP & HOSPITAL SCHLS,STATEMENTED FEES,2103472823,1000088248
05.05.2022,DSG,CLASSROOM TEACHERS LTD,750,AP & HOSPITAL SCHLS,STATEMENTED FEES,2103472825,1000088248
05.05.2022,DSG,CLASSROOM TEACHERS LTD,750,AP & HOSPITAL SCHLS,STATEMENTED FEES,2103472826,1000088248
05.05.2022,DSG,CLASSROOM TEACHERS LTD,750,AP & HOSPITAL SCHLS,STATEMENTED FEES,2103472827,1000088248
05.05.2022,DSG,CLASSROOM TEACHERS LTD,750,AP & HOSPITAL SCHLS,STATEMENTED FEES,2103472828,1000088248
05.05.2022,DSG,CLASSROOM TEACHERS LTD,750,AP & HOSPITAL SCHLS,STATEMENTED FEES,2103472829,1000088248
05.05.2022,DSG,CHERRY GARDEN SCHOOL,"94,444.00",CHERRY GARDEN PRIMARY SCHOOL,HIGH NEEDS - BASE FUNDING,5902523306,5001000020
05.05.2022,DSG,CHERRY GARDEN SCHOOL,"200,294.00",CHERRY GARDEN PRIMARY SCHOOL,HIGH NEEDS - TOP UP FUNDING,5902523305,5001000020
05.05.2022,DSG,ALBION PRIMARY SCHOOL,"6,343.75",COVID-19 SCHOOLS GRANTS,SCHOOLS CAPITATION,2103472751,5001000000
05.05.2022,DSG,ALFRED SALTER PRIMARY SCHOOL,"4,531.25",COVID-19 SCHOOLS GRANTS,SCHOOLS CAPITATION,2103472779,5001000005
05.05.2022,DSG,BELLENDEN PRIMARY SCHOOL,"3,262.50",COVID-19 SCHOOLS GRANTS,SCHOOLS CAPITATION,2103472752,5001000007
05.05.2022,DSG,BEORMUND PRIMARY SCHOOL,"1,885.00",COVID-19 SCHOOLS GRANTS,SCHOOLS CAPITATION,2103472813,5001000008
05.05.2022,DSG,BESSEMER GRANGE PRIMARY SCHOOL,"3,153.75",COVID-19 SCHOOLS GRANTS,SCHOOLS CAPITATION,2103472781,5001000009
05.05.2022,DSG,BETHLEM & MAUDSLEY HOSPITAL SCHOOL,"1,500.00",COVID-19 SCHOOLS GRANTS,SCHOOLS CAPITATION,2103472818,5001000010
05.05.2022,DSG,BOUCHER C OF E PRIMARY SCHOOL,"2,247.50",COVID-19 SCHOOLS GRANTS,SCHOOLS CAPITATION,2103472783,5001000011
05.05.2022,DSG,BRUNSWICK PARK PRIMARY SCHOOL,"6,849.75",COVID-19 SCHOOLS GRANTS,SCHOOLS CAPITATION,2103472782,5001000013
05.05.2022,DSG,CAMELOT PRIMARY SCHOOL,"7,467.50",COVID-19 SCHOOLS GRANTS,SCHOOLS CAPITATION,2103472753,5001000014
05.05.2022,DSG,CHARLOTTE  SHARMAN PRIMARY SCHOOL,"2,628.25",COVID-19 SCHOOLS GRANTS,SCHOOLS CAPITATION,2103472808,5001000016
05.05.2022,DSG,ST JOSEPHS RC JUNIOR  SCHOOL,"2,827.50",COVID-19 SCHOOLS GRANTS,SCHOOLS CAPITATION,2103472805,5001000017
05.05.2022,DSG,ST JOSEPHS CATHOLIC INFANTS SCHOOL,"1,703.75",COVID-19 SCHOOLS GRANTS,SCHOOLS CAPITATION,2103472806,5001000018
05.05.2022,DSG,ST JUDES CHURCH OF ENGLAND PRIMARY,"1,341.25",COVID-19 SCHOOLS GRANTS,SCHOOLS CAPITATION,2103472795,5001000019
05.05.2022,DSG,CHERRY GARDEN SCHOOL,"3,262.50",COVID-19 SCHOOLS GRANTS,SCHOOLS CAPITATION,2103472815,5001000020
05.05.2022,DSG,COBOURG PRIMARY SCHOOL,"3,480.00",COVID-19 SCHOOLS GRANTS,SCHOOLS CAPITATION,2103472754,5001000021
05.05.2022,DSG,COMBER GROVE PRIMARY SCHOOL,"3,153.75",COVID-19 SCHOOLS GRANTS,SCHOOLS CAPITATION,2103472755,5001000022
05.05.2022,DSG,CRAMPTON PRIMARY SCHOOL,"2,030.00",COVID-19 SCHOOLS GRANTS,SCHOOLS CAPITATION,2103472756,5001000023
05.05.2022,DSG,CRAWFORD PRIMARY SCHOOL,"6,996.25",COVID-19 SCHOOLS GRANTS,SCHOOLS CAPITATION,2103472757,5001000024
05.05.2022,DSG,DOG KENNEL HILL PRIMARY SCHOOL,"3,407.50",COVID-19 SCHOOLS GRANTS,SCHOOLS CAPITATION,2103472758,5001000025
05.05.2022,DSG,DULWICH VILLAGE CE INFANTS SCHOOL,652.5,COVID-19 SCHOOLS GRANTS,SCHOOLS CAPITATION,2103472784,5001000027
05.05.2022,DSG,GOODRICH PRIMARY SCHOOL,"4,386.25",COVID-19 SCHOOLS GRANTS,SCHOOLS CAPITATION,2103472759,5001000028
05.05.2022,DSG,GRANGE PRIMARY SCHOOL,"6,343.75",COVID-19 SCHOOLS GRANTS,SCHOOLS CAPITATION,2103472760,5001000029
05.05.2022,DSG,ENGLISH MARTYRS RC PRIMARY SCHOOL,"3,770.00",COVID-19 SCHOOLS GRANTS,SCHOOLS CAPITATION,2103472785,5001000030
05.05.2022,DSG,EVELINA HOSPITAL SCHOOL,"1,500.00",COVID-19 SCHOOLS GRANTS,SCHOOLS CAPITATION,2103472817,5001000031
05.05.2022,DSG,PHOENIX PRIMARY SCHOOL,"7,540.00",COVID-19 SCHOOLS GRANTS,SCHOOLS CAPITATION,2103472777,5001000032
05.05.2022,DSG,FRIARS PRIMARY (FOUNDATION) SCHOOL,"2,247.50",COVID-19 SCHOOLS GRANTS,SCHOOLS CAPITATION,2103472807,5001000033
05.05.2022,DSG,HEBER PRIMARY SCHOOL,"1,993.75",COVID-19 SCHOOLS GRANTS,SCHOOLS CAPITATION,2103472761,5001000035
05.05.2022,DSG,HOLLYDALE PRIMARY SCHOOL,"2,646.25",COVID-19 SCHOOLS GRANTS,SCHOOLS CAPITATION,2103472762,5001000036
05.05.2022,DSG,ILDERTON PRIMARY SCHOOL,"4,821.25",COVID-19 SCHOOLS GRANTS,SCHOOLS CAPITATION,2103472763,5001000037
05.05.2022,DSG,IVYDALE PRIMARY SCHOOL,"3,153.75",COVID-19 SCHOOLS GRANTS,SCHOOLS CAPITATION,2103472764,5001000038
05.05.2022,DSG,JOHN RUSKIN PRIMARY SCHOOL,"7,363.00",COVID-19 SCHOOLS GRANTS,SCHOOLS CAPITATION,2103472765,5001000040
05.05.2022,DSG,KEYWORTH PRIMARY SCHOOL,"4,821.25",COVID-19 SCHOOLS GRANTS,SCHOOLS CAPITATION,2103472766,5001000041
05.05.2022,DSG,DULWICH WOOD PRIMARY SCHOOL,"3,443.75",COVID-19 SCHOOLS GRANTS,SCHOOLS CAPITATION,2103472767,5001000042
05.05.2022,DSG,HAYMERLE SCHOOL,"2,682.50",COVID-19 SCHOOLS GRANTS,SCHOOLS CAPITATION,2103472812,5001000045
05.05.2022,DSG,HIGHSHORE SCHOOL,"3,552.50",COVID-19 SCHOOLS GRANTS,SCHOOLS CAPITATION,2103472811,5001000046
05.05.2022,DSG,MICHAEL FARADAY PRIMARY SCHOOL,"5,002.50",COVID-19 SCHOOLS GRANTS,SCHOOLS CAPITATION,2103472768,5001000048
05.05.2022,DSG,NOTRE DAME RC GIRLS SCHOOL,"9,388.75",COVID-19 SCHOOLS GRANTS,SCHOOLS CAPITATION,2103472810,5001000050
05.05.2022,DSG,OLIVER GOLDSMITH PRIMARY SCHOOL,"6,235.00",COVID-19 SCHOOLS GRANTS,SCHOOLS CAPITATION,2103472780,5001000051
05.05.2022,DSG,PETER HILLS CE SCHOOL,"2,102.50",COVID-19 SCHOOLS GRANTS,SCHOOLS CAPITATION,2103472797,5001000053
05.05.2022,DSG,PILGRIM'S WAY PRIMARY SCHOOL,"3,226.25",COVID-19 SCHOOLS GRANTS,SCHOOLS CAPITATION,2103472778,5001000054
05.05.2022,DSG,RIVERSIDE PRIMARY SCHOOL,"4,785.00",COVID-19 SCHOOLS GRANTS,SCHOOLS CAPITATION,2103472769,5001000056
05.05.2022,DSG,ROBERT BROWNING PRIMARY SCHOOL,"2,900.00",COVID-19 SCHOOLS GRANTS,SCHOOLS CAPITATION,2103472770,5001000057
05.05.2022,DSG,ROTHERHITHE PRIMARY SCHOOL,"5,582.50",COVID-19 SCHOOLS GRANTS,SCHOOLS CAPITATION,2103472771,5001000058
05.05.2022,DSG,RYE OAK PRIMARY SCHOOL,"6,029.75",COVID-19 SCHOOLS GRANTS,SCHOOLS CAPITATION,2103472801,5001000059
05.05.2022,DSG,SNOWSFIELDS PRIMARY SCHOOL,"2,877.00",COVID-19 SCHOOLS GRANTS,SCHOOLS CAPITATION,2103472772,5001000061
05.05.2022,DSG,SOUTHWARK PARK PRIMARY SCHOOL,"4,857.50",COVID-19 SCHOOLS GRANTS,SCHOOLS CAPITATION,2103472773,5001000062
05.05.2022,DSG,ST ANTHONYS RC SCHOOL,"2,537.50",COVID-19 SCHOOLS GRANTS,SCHOOLS CAPITATION,2103472804,5001000064
05.05.2022,DSG,ST FRANCESCA CABRINI PRIMARY SCHOOL,"3,335.00",COVID-19 SCHOOLS GRANTS,SCHOOLS CAPITATION,2103472803,5001000065
05.05.2022,DSG,ST FRANCIS'S RC PRIMARY SCHOOL,"4,748.75",COVID-19 SCHOOLS GRANTS,SCHOOLS CAPITATION,2103472787,5001000067
05.05.2022,DSG,ST GEORGES RC SCHOOL,"1,595.00",COVID-19 SCHOOLS GRANTS,SCHOOLS CAPITATION,2103472789,5001000068
05.05.2022,DSG,ST GEORGES CE SCHOOL,"3,335.00",COVID-19 SCHOOLS GRANTS,SCHOOLS CAPITATION,2103472788,5001000069
05.05.2022,DSG,ST JAMES THE GREAT RC SCHOOL,"3,045.00",COVID-19 SCHOOLS GRANTS,SCHOOLS CAPITATION,2103472786,5001000071
05.05.2022,DSG,ST JOHNS & ST CLEMENTS CE SCHOOL,"2,677.50",COVID-19 SCHOOLS GRANTS,SCHOOLS CAPITATION,2103472791,5001000073
05.05.2022,DSG,THE ST THOMAS THE APOSTLE COLLEGE,"12,107.50",COVID-19 SCHOOLS GRANTS,SCHOOLS CAPITATION,2103472809,5001000074
05.05.2022,DSG,ST JOHNS RC PRIMARY SCHOOL,"2,646.25",COVID-19 SCHOOLS GRANTS,SCHOOLS CAPITATION,2103472800,5001000075
05.05.2022,DSG,ST JOSEPHS CATHOLIC SCHOOL,"2,682.50",COVID-19 SCHOOLS GRANTS,SCHOOLS CAPITATION,2103472794,5001000076
05.05.2022,DSG,ST JOSEPHS RC PRIMARY SCHOOL,"2,791.25",COVID-19 SCHOOLS GRANTS,SCHOOLS CAPITATION,2103472792,5001000077
05.05.2022,DSG,ST JOSEPHS CATHOLIC PRIMARY SCHOOL,"2,138.75",COVID-19 SCHOOLS GRANTS,SCHOOLS CAPITATION,2103472793,5001000078
05.05.2022,DSG,ST MARY MAGDALENE CE SCHOOL,"1,993.75",COVID-19 SCHOOLS GRANTS,SCHOOLS CAPITATION,2103472796,5001000080
05.05.2022,DSG,ST PETERS CE SCHOOL,"2,718.75",COVID-19 SCHOOLS GRANTS,SCHOOLS CAPITATION,2103472798,5001000083
05.05.2022,DSG,ST SAVIOURS & ST OLAVES SCHOOL,"9,570.00",COVID-19 SCHOOLS GRANTS,SCHOOLS CAPITATION,2103472802,5001000084
05.05.2022,DSG,CATHEDRAL SCHOOL OF ST SAVIOUR & MARY,"1,595.00",COVID-19 SCHOOLS GRANTS,SCHOOLS CAPITATION,2103472799,5001000088
05.05.2022,DSG,TOWER BRIDGE PRIMARY SCHOOL,"3,951.25",COVID-19 SCHOOLS GRANTS,SCHOOLS CAPITATION,2103472774,5001000095
05.05.2022,DSG,TOWNSEND PRIMARY SCHOOL,"3,008.75",COVID-19 SCHOOLS GRANTS,SCHOOLS CAPITATION,2103472775,5001000096
05.05.2022,DSG,TUKE SCHOOL,"3,045.00",COVID-19 SCHOOLS GRANTS,SCHOOLS CAPITATION,2103472814,5001000097
05.05.2022,DSG,VICTORY SCHOOL,"2,030.00",COVID-19 SCHOOLS GRANTS,SCHOOLS CAPITATION,2103472776,5001000098
05.05.2022,DSG,SOUTHWARK INCLUSIVE LEARNING SERVICE,"3,081.25",COVID-19 SCHOOLS GRANTS,SCHOOLS CAPITATION,2103472816,5001000105
05.05.2022,DSG,EVELINA HOSPITAL SCHOOL,"150,792.00",EVELINA HOSPITAL SCHOOL,HIGH NEEDS - BASE FUNDING,5902523307,5001000031
05.05.2022,DSG,ROCKINGHAM COMMUNITY NURSERY,"1,012.00",EY SENDIF,STATEMENTED FEES,2103472985,1095826
05.05.2022,DSG,HALFMOON MONTESSORI NURSERY,"1,012.00",EY SENDIF,STATEMENTED FEES,2103472983,11219161
05.05.2022,DSG,HALFMOON MONTESSORI NURSERY,"2,024.00",EY SENDIF,STATEMENTED FEES,2103472984,11219161
05.05.2022,DSG,PEOPLES ASSOCIATION YOUTH VISION & NGOZI NURSERIES,"1,012.00",EY SENDIF,STATEMENTED FEES,2103473002,1000031047
05.05.2022,DSG,PEOPLES ASSOCIATION YOUTH VISION & NGOZI NURSERIES,"1,012.00",EY SENDIF,STATEMENTED FEES,2103473003,1000031047
05.05.2022,DSG,VICTORY IN COMMUNITY RESOURCE CENTRE,333,EY SENDIF,STATEMENTED FEES,2103472989,1000058383
05.05.2022,DSG,VICTORY IN COMMUNITY RESOURCE CENTRE,"1,012.00",EY SENDIF,STATEMENTED FEES,2103472986,1000058383
05.05.2022,DSG,VICTORY IN COMMUNITY RESOURCE CENTRE,"1,012.00",EY SENDIF,STATEMENTED FEES,2103472987,1000058383
05.05.2022,DSG,VICTORY IN COMMUNITY RESOURCE CENTRE,"1,012.00",EY SENDIF,STATEMENTED FEES,2103472988,1000058383
05.05.2022,DSG,DOG KENNEL HILL PRIMARY SCHOOL,"1,012.00",EY SENDIF,STATEMENTED FEES,2103472990,5001000025
05.05.2022,DSG,NELL GWYNN NURSERY SCHOOL,980.86,EY SENDIF,STATEMENTED FEES,2103472995,5001000049
05.05.2022,DSG,NELL GWYNN NURSERY SCHOOL,"1,012.00",EY SENDIF,STATEMENTED FEES,2103472991,5001000049
05.05.2022,DSG,NELL GWYNN NURSERY SCHOOL,"1,012.00",EY SENDIF,STATEMENTED FEES,2103472992,5001000049
05.05.2022,DSG,NELL GWYNN NURSERY SCHOOL,"1,012.00",EY SENDIF,STATEMENTED FEES,2103472993,5001000049
05.05.2022,DSG,NELL GWYNN NURSERY SCHOOL,"1,012.00",EY SENDIF,STATEMENTED FEES,2103472994,5001000049
05.05.2022,DSG,SOUTHWARK PARK PRIMARY SCHOOL,"1,012.00",EY SENDIF,STATEMENTED FEES,2103473001,5001000062
05.05.2022,DSG,ST JOSEPHS CATHOLIC SCHOOL,500,EY SENDIF,STATEMENTED FEES,2103472996,5001000076
05.05.2022,DSG,ST JOSEPHS CATHOLIC SCHOOL,500,EY SENDIF,STATEMENTED FEES,2103472997,5001000076
05.05.2022,DSG,ST JOSEPHS CATHOLIC SCHOOL,500,EY SENDIF,STATEMENTED FEES,2103472998,5001000076
05.05.2022,DSG,ST JOSEPHS CATHOLIC SCHOOL,500,EY SENDIF,STATEMENTED FEES,2103472999,5001000076
05.05.2022,DSG,ST JOSEPHS CATHOLIC SCHOOL,"1,012.00",EY SENDIF,STATEMENTED FEES,2103473000,5001000076
05.05.2022,DSG,THE GROVE CHILDRENS CENTRE,"1,012.00",EY SENDIF,STATEMENTED FEES,2103472975,5001000090
05.05.2022,DSG,THE GROVE CHILDRENS CENTRE,"1,012.00",EY SENDIF,STATEMENTED FEES,2103472976,5001000090
05.05.2022,DSG,THE GROVE CHILDRENS CENTRE,"1,012.00",EY SENDIF,STATEMENTED FEES,2103472977,5001000090
05.05.2022,DSG,THE GROVE CHILDRENS CENTRE,"1,012.00",EY SENDIF,STATEMENTED FEES,2103472978,5001000090
05.05.2022,DSG,THE GROVE CHILDRENS CENTRE,"1,012.00",EY SENDIF,STATEMENTED FEES,2103472980,5001000090
05.05.2022,DSG,THE GROVE CHILDRENS CENTRE,"1,012.00",EY SENDIF,STATEMENTED FEES,2103472982,5001000090
05.05.2022,DSG,THE GROVE CHILDRENS CENTRE,"1,120.98",EY SENDIF,STATEMENTED FEES,2103472979,5001000090
05.05.2022,DSG,THE GROVE CHILDRENS CENTRE,"2,024.00",EY SENDIF,STATEMENTED FEES,2103472981,5001000090
05.05.2022,DSG,CHRIST THE KING SIXTH FORM COLLEGE,563.05,FURTHER EDUCATION,STATEMENTED FEES,2103472968,1000025935
05.05.2022,DSG,CHRIST THE KING SIXTH FORM COLLEGE,"1,407.13",FURTHER EDUCATION,STATEMENTED FEES,2103472970,1000025935
05.05.2022,DSG,CHRIST THE KING SIXTH FORM COLLEGE,"1,876.08",FURTHER EDUCATION,STATEMENTED FEES,2103472969,1000025935
05.05.2022,DSG,CHRIST THE KING SIXTH FORM COLLEGE,"1,969.23",FURTHER EDUCATION,STATEMENTED FEES,2103472971,1000025935
05.05.2022,DSG,CHRIST THE KING SIXTH FORM COLLEGE,"2,625.64",FURTHER EDUCATION,STATEMENTED FEES,2103472966,1000025935
05.05.2022,DSG,CHRIST THE KING SIXTH FORM COLLEGE,"2,683.38",FURTHER EDUCATION,STATEMENTED FEES,2103472964,1000025935
05.05.2022,DSG,CHRIST THE KING SIXTH FORM COLLEGE,"2,880.23",FURTHER EDUCATION,STATEMENTED FEES,2103472965,1000025935
05.05.2022,DSG,CHRIST THE KING SIXTH FORM COLLEGE,"4,030.77",FURTHER EDUCATION,STATEMENTED FEES,2103472963,1000025935
05.05.2022,DSG,CHRIST THE KING SIXTH FORM COLLEGE,"4,126.98",FURTHER EDUCATION,STATEMENTED FEES,2103472967,1000025935
05.05.2022,DSG,ST FRANCIS XAVIER SIXTH FORM COLLEGE,"2,972.94",FURTHER EDUCATION,STATEMENTED FEES,2103472845,1000049251
05.05.2022,DSG,ST FRANCIS XAVIER SIXTH FORM COLLEGE,"4,080.76",FURTHER EDUCATION,STATEMENTED FEES,2103472844,1000049251
05.05.2022,DSG,ST FRANCIS XAVIER SIXTH FORM COLLEGE,"4,137.16",FURTHER EDUCATION,STATEMENTED FEES,2103472843,1000049251
05.05.2022,DSG,ST FRANCIS XAVIER SIXTH FORM COLLEGE,"4,280.64",FURTHER EDUCATION,STATEMENTED FEES,2103472847,1000049251
05.05.2022,DSG,ST FRANCIS XAVIER SIXTH FORM COLLEGE,"4,550.88",FURTHER EDUCATION,STATEMENTED FEES,2103472846,1000049251
05.05.2022,DSG,ST FRANCIS XAVIER SIXTH FORM COLLEGE,"5,945.88",FURTHER EDUCATION,STATEMENTED FEES,2103472838,1000049251
05.05.2022,DSG,ST FRANCIS XAVIER SIXTH FORM COLLEGE,"8,161.52",FURTHER EDUCATION,STATEMENTED FEES,2103472840,1000049251
05.05.2022,DSG,ST FRANCIS XAVIER SIXTH FORM COLLEGE,"8,274.32",FURTHER EDUCATION,STATEMENTED FEES,2103472841,1000049251
05.05.2022,DSG,ST FRANCIS XAVIER SIXTH FORM COLLEGE,"8,561.28",FURTHER EDUCATION,STATEMENTED FEES,2103472842,1000049251
05.05.2022,DSG,ST FRANCIS XAVIER SIXTH FORM COLLEGE,"9,101.76",FURTHER EDUCATION,STATEMENTED FEES,2103472839,1000049251
05.05.2022,DSG,SOUTH THAMES COLLEGE,"2,666.67",FURTHER EDUCATION,STATEMENTED FEES,2103472851,1000068274
05.05.2022,DSG,SOUTH THAMES COLLEGE,"2,666.67",FURTHER EDUCATION,STATEMENTED FEES,2103472852,1000068274
05.05.2022,DSG,UNITED COLLEGES GROUP,"1,261.12",FURTHER EDUCATION,STATEMENTED FEES,2103472926,1000071817
05.05.2022,DSG,UNITED COLLEGES GROUP,"2,522.24",FURTHER EDUCATION,STATEMENTED FEES,2103472916,1000071817
05.05.2022,DSG,UNITED COLLEGES GROUP,"2,771.33",FURTHER EDUCATION,STATEMENTED FEES,2103472922,1000071817
05.05.2022,DSG,UNITED COLLEGES GROUP,"2,771.33",FURTHER EDUCATION,STATEMENTED FEES,2103472925,1000071817
05.05.2022,DSG,UNITED COLLEGES GROUP,"2,871.33",FURTHER EDUCATION,STATEMENTED FEES,2103472923,1000071817
05.05.2022,DSG,UNITED COLLEGES GROUP,"4,809.81",FURTHER EDUCATION,STATEMENTED FEES,2103472927,1000071817
05.05.2022,DSG,UNITED COLLEGES GROUP,"5,542.67",FURTHER EDUCATION,STATEMENTED FEES,2103472920,1000071817
05.05.2022,DSG,UNITED COLLEGES GROUP,"5,542.67",FURTHER EDUCATION,STATEMENTED FEES,2103472921,1000071817
05.05.2022,DSG,UNITED COLLEGES GROUP,"5,651.33",FURTHER EDUCATION,STATEMENTED FEES,2103472924,1000071817
05.05.2022,DSG,UNITED COLLEGES GROUP,"5,742.67",FURTHER EDUCATION,STATEMENTED FEES,2103472919,1000071817
05.05.2022,DSG,UNITED COLLEGES GROUP,"9,619.63",FURTHER EDUCATION,STATEMENTED FEES,2103472917,1000071817
05.05.2022,DSG,UNITED COLLEGES GROUP,"11,302.67",FURTHER EDUCATION,STATEMENTED FEES,2103472918,1000071817
05.05.2022,DSG,BIG CREATIVE TRAINING LTD,"6,534.50",FURTHER EDUCATION,STATEMENTED FEES,2103472831,1000077371
05.05.2022,DSG,BIG CREATIVE TRAINING LTD,"6,574.00",FURTHER EDUCATION,STATEMENTED FEES,2103472830,1000077371
05.05.2022,DSG,NEW CITY COLLEGE,"8,484.11",FURTHER EDUCATION,STATEMENTED FEES,2103472856,1000080741
05.05.2022,DSG,HAYMERLE SCHOOL,"81,019.00",HAYMERLE PRIMARY SCHOOL,HIGH NEEDS - BASE FUNDING,5902523309,5001000045
05.05.2022,DSG,HAYMERLE SCHOOL,"138,895.00",HAYMERLE PRIMARY SCHOOL,HIGH NEEDS - TOP UP FUNDING,5902523308,5001000045
05.05.2022,DSG,HIGHSHORE SCHOOL,"163,981.00",HIGHSHORE,HIGH NEEDS - BASE FUNDING,5902523311,5001000046
05.05.2022,DSG,HIGHSHORE SCHOOL,"219,822.00",HIGHSHORE,HIGH NEEDS - TOP UP FUNDING,5902523310,5001000046
05.05.2022,DSG,BROADLANDS HALL LIMITED,685,INDEP MAINSTREAM,STATEMENTED FEES,2103472929,1000084303
05.05.2022,DSG,BROADLANDS HALL LIMITED,"2,055.00",INDEP MAINSTREAM,STATEMENTED FEES,2103472930,1000084303
05.05.2022,DSG,BROADLANDS HALL LIMITED,"3,425.00",INDEP MAINSTREAM,STATEMENTED FEES,2103472931,1000084303
05.05.2022,DSG,ALPHA PLUS GROUP LIMITED,"5,756.34",INDEP MAINSTREAM,STATEMENTED FEES,2103472832,1000088249
05.05.2022,DSG,ALPHA PLUS GROUP LIMITED,"5,756.34",INDEP MAINSTREAM,STATEMENTED FEES,2103472833,1000088249
05.05.2022,DSG,BETHLEM & MAUDSLEY HOSPITAL SCHOOL,"233,924.00",MAUDSLEY & BETHLEM,HIGH NEEDS - BASE FUNDING,5902523304,5001000010
05.05.2022,DSG,CHAILEY HERITAGE FOUNDATION,"26,154.00",NMSS/ INDEP SPECIAL,STATEMENTED FEES,2103472950,1000045082
05.05.2022,DSG,THE CALDECOTT FOUNDATION,"17,550.00",NMSS/ INDEP SPECIAL,STATEMENTED FEES,2103472928,1000074757
05.05.2022,DSG,THE SOUTHOVER PARTNERSHIP,"9,101.50",NMSS/ INDEP SPECIAL,STATEMENTED FEES,2103472932,1000081808
05.05.2022,DSG,ESLAND NORTH LTD,"3,428.57",NMSS/ INDEP SPECIAL,STATEMENTED FEES,2103472860,1000084018
05.05.2022,DSG,KS EDUCATION LIMITED,"20,162.63",NMSS/ INDEP SPECIAL,STATEMENTED FEES,2103472850,1000087847
05.05.2022,DSG,THE BOSCO CENTRE,"1,719.00",NON MAINTAINED EY,STATEMENTED FEES,2103472938,1000046317
05.05.2022,DSG,THE BOSCO CENTRE,"2,601.00",NON MAINTAINED EY,STATEMENTED FEES,2103472936,1000046317
05.05.2022,DSG,THE BOSCO CENTRE,"2,604.00",NON MAINTAINED EY,STATEMENTED FEES,2103472941,1000046317
05.05.2022,DSG,THE BOSCO CENTRE,"2,737.50",NON MAINTAINED EY,STATEMENTED FEES,2103472937,1000046317
05.05.2022,DSG,THE BOSCO CENTRE,"2,812.50",NON MAINTAINED EY,STATEMENTED FEES,2103472943,1000046317
05.05.2022,DSG,THE BOSCO CENTRE,"3,312.75",NON MAINTAINED EY,STATEMENTED FEES,2103472942,1000046317
05.05.2022,DSG,THE BOSCO CENTRE,"3,979.50",NON MAINTAINED EY,STATEMENTED FEES,2103472946,1000046317
05.05.2022,DSG,THE BOSCO CENTRE,"4,907.25",NON MAINTAINED EY,STATEMENTED FEES,2103472947,1000046317
05.05.2022,DSG,THE BOSCO CENTRE,"4,918.50",NON MAINTAINED EY,STATEMENTED FEES,2103472935,1000046317
05.05.2022,DSG,THE BOSCO CENTRE,"5,161.88",NON MAINTAINED EY,STATEMENTED FEES,2103472940,1000046317
05.05.2022,DSG,THE BOSCO CENTRE,"5,532.00",NON MAINTAINED EY,STATEMENTED FEES,2103472939,1000046317
05.05.2022,DSG,THE BOSCO CENTRE,"5,532.00",NON MAINTAINED EY,STATEMENTED FEES,2103472948,1000046317
05.05.2022,DSG,THE BOSCO CENTRE,"5,661.00",NON MAINTAINED EY,STATEMENTED FEES,2103472944,1000046317
05.05.2022,DSG,THE BOSCO CENTRE,"5,683.50",NON MAINTAINED EY,STATEMENTED FEES,2103472949,1000046317
05.05.2022,DSG,THE BOSCO CENTRE,"5,803.50",NON MAINTAINED EY,STATEMENTED FEES,2103472945,1000046317
05.05.2022,DSG,KENDER PRIMARY SCHOOL,"5,476.92",OTHER LA MAINSTREAM,STATEMENTED FEES,2103472849,1000017238
05.05.2022,DSG,DEPTFORD PARK PRIMARY SCHOOL,"3,543.86",OTHER LA MAINSTREAM,STATEMENTED FEES,2103472855,1000026286
05.05.2022,DSG,DEPTFORD GREEN SCHOOL,"2,625.64",OTHER LA MAINSTREAM,STATEMENTED FEES,2103472933,1000073657
05.05.2022,DSG,THOMAS TALLIS SCHOOL,"5,303.79",OTHER LA MAINSTREAM,STATEMENTED FEES,2103472972,1000073703
05.05.2022,DSG,THOMAS TALLIS SCHOOL,"5,303.80",OTHER LA MAINSTREAM,STATEMENTED FEES,2103472973,1000073703
05.05.2022,DSG,HENRY FAWCETT PRIMARY SCHOOL,"3,876.92",OTHER LA MAINSTREAM,STATEMENTED FEES,2103472961,1000077120
05.05.2022,DSG,ST JAMES HATCHAM CE PRIMARY SCHOOL,"3,938.46",OTHER LA MAINSTREAM,STATEMENTED FEES,2103472974,1000080746
05.05.2022,DSG,ARCHBISHOP SUMNER CHURCH OF ENGLAND,"2,584.61",OTHER LA MAINSTREAM,STATEMENTED FEES,2103472854,1000086013
05.05.2022,DSG,ARCHBISHOP SUMNER CHURCH OF ENGLAND,"2,584.62",OTHER LA MAINSTREAM,STATEMENTED FEES,2103472853,1000086013
05.05.2022,DSG,ST BERNADETTE CATHOLIC JUNIOR SCHOOL,"4,058.58",OTHER LA MAINSTREAM,STATEMENTED FEES,2103472956,1000086879
05.05.2022,DSG,ST BERNADETTE CATHOLIC JUNIOR SCHOOL,"8,265.03",OTHER LA MAINSTREAM,STATEMENTED FEES,2103472955,1000086879
05.05.2022,DSG,GREENVALE SCHOOL,"9,156.92",OTHER LA SPECIAL,STATEMENTED FEES,2103472957,1000047086
05.05.2022,DSG,MARJORIE MCCLURE SCHOOL,"7,194.00",OTHER LA SPECIAL,STATEMENTED FEES,2103472960,1000049215
05.05.2022,DSG,SOUTHWARK INCLUSIVE LEARNING SERVICE,"107,871.00",SILS,HIGH NEEDS - BASE FUNDING,5902523315,5001000105
05.05.2022,DSG,SOUTHWARK INCLUSIVE LEARNING SERVICE,"125,129.00",SILS,HIGH NEEDS - TOP UP FUNDING,5902523314,5001000105
05.05.2022,DSG,NASH COLLEGE,"10,761.31",SPECIALIST POST-16,STATEMENTED FEES,2103472952,1000062581
05.05.2022,DSG,NASH COLLEGE,"11,415.66",SPECIALIST POST-16,STATEMENTED FEES,2103472954,1000062581
05.05.2022,DSG,NASH COLLEGE,"15,676.61",SPECIALIST POST-16,STATEMENTED FEES,2103472953,1000062581
05.05.2022,DSG,ORCHARD HILL COLLEGE,"4,978.74",SPECIALIST POST-16,STATEMENTED FEES,2103472862,1000070978
05.05.2022,DSG,ORCHARD HILL COLLEGE,"9,818.55",SPECIALIST POST-16,STATEMENTED FEES,2103472867,1000070978
05.05.2022,DSG,ORCHARD HILL COLLEGE,"9,957.48",SPECIALIST POST-16,STATEMENTED FEES,2103472861,1000070978
05.05.2022,DSG,ORCHARD HILL COLLEGE,"10,662.01",SPECIALIST POST-16,STATEMENTED FEES,2103472898,1000070978
05.05.2022,DSG,ORCHARD HILL COLLEGE,"11,463.46",SPECIALIST POST-16,STATEMENTED FEES,2103472874,1000070978
05.05.2022,DSG,ORCHARD HILL COLLEGE,"11,662.39",SPECIALIST POST-16,STATEMENTED FEES,2103472891,1000070978
05.05.2022,DSG,ORCHARD HILL COLLEGE,"11,662.39",SPECIALIST POST-16,STATEMENTED FEES,2103472893,1000070978
05.05.2022,DSG,ORCHARD HILL COLLEGE,"11,791.98",SPECIALIST POST-16,STATEMENTED FEES,2103472889,1000070978
05.05.2022,DSG,ORCHARD HILL COLLEGE,"11,815.99",SPECIALIST POST-16,STATEMENTED FEES,2103472890,1000070978
05.05.2022,DSG,ORCHARD HILL COLLEGE,"11,866.39",SPECIALIST POST-16,STATEMENTED FEES,2103472897,1000070978
05.05.2022,DSG,ORCHARD HILL COLLEGE,"11,866.40",SPECIALIST POST-16,STATEMENTED FEES,2103472899,1000070978
05.05.2022,DSG,ORCHARD HILL COLLEGE,"11,919.19",SPECIALIST POST-16,STATEMENTED FEES,2103472876,1000070978
05.05.2022,DSG,ORCHARD HILL COLLEGE,"11,950.64",SPECIALIST POST-16,STATEMENTED FEES,2103472882,1000070978
05.05.2022,DSG,ORCHARD HILL COLLEGE,"11,950.65",SPECIALIST POST-16,STATEMENTED FEES,2103472884,1000070978
05.05.2022,DSG,ORCHARD HILL COLLEGE,"12,104.25",SPECIALIST POST-16,STATEMENTED FEES,2103472866,1000070978
05.05.2022,DSG,ORCHARD HILL COLLEGE,"12,201.32",SPECIALIST POST-16,STATEMENTED FEES,2103472864,1000070978
05.05.2022,DSG,ORCHARD HILL COLLEGE,"13,095.19",SPECIALIST POST-16,STATEMENTED FEES,2103472892,1000070978
05.05.2022,DSG,ORCHARD HILL COLLEGE,"13,334.91",SPECIALIST POST-16,STATEMENTED FEES,2103472870,1000070978
05.05.2022,DSG,ORCHARD HILL COLLEGE,"13,431.45",SPECIALIST POST-16,STATEMENTED FEES,2103472863,1000070978
05.05.2022,DSG,ORCHARD HILL COLLEGE,"13,632.78",SPECIALIST POST-16,STATEMENTED FEES,2103472873,1000070978
05.05.2022,DSG,ORCHARD HILL COLLEGE,"14,274.91",SPECIALIST POST-16,STATEMENTED FEES,2103472869,1000070978
05.05.2022,DSG,ORCHARD HILL COLLEGE,"14,559.64",SPECIALIST POST-16,STATEMENTED FEES,2103472902,1000070978
05.05.2022,DSG,ORCHARD HILL COLLEGE,"14,568.78",SPECIALIST POST-16,STATEMENTED FEES,2103472896,1000070978
05.05.2022,DSG,ORCHARD HILL COLLEGE,"15,839.03",SPECIALIST POST-16,STATEMENTED FEES,2103472868,1000070978
05.05.2022,DSG,ORCHARD HILL COLLEGE,"16,037.89",SPECIALIST POST-16,STATEMENTED FEES,2103472877,1000070978
05.05.2022,DSG,ORCHARD HILL COLLEGE,"16,387.93",SPECIALIST POST-16,STATEMENTED FEES,2103472895,1000070978
05.05.2022,DSG,ORCHARD HILL COLLEGE,"16,410.50",SPECIALIST POST-16,STATEMENTED FEES,2103472894,1000070978
05.05.2022,DSG,ORCHARD HILL COLLEGE,"16,491.23",SPECIALIST POST-16,STATEMENTED FEES,2103472886,1000070978
05.05.2022,DSG,ORCHARD HILL COLLEGE,"16,672.56",SPECIALIST POST-16,STATEMENTED FEES,2103472878,1000070978
05.05.2022,DSG,ORCHARD HILL COLLEGE,"16,826.16",SPECIALIST POST-16,STATEMENTED FEES,2103472885,1000070978
05.05.2022,DSG,ORCHARD HILL COLLEGE,"16,826.16",SPECIALIST POST-16,STATEMENTED FEES,2103472900,1000070978
05.05.2022,DSG,ORCHARD HILL COLLEGE,"16,853.89",SPECIALIST POST-16,STATEMENTED FEES,2103472875,1000070978
05.05.2022,DSG,ORCHARD HILL COLLEGE,"16,898.40",SPECIALIST POST-16,STATEMENTED FEES,2103472880,1000070978
05.05.2022,DSG,ORCHARD HILL COLLEGE,"17,052.82",SPECIALIST POST-16,STATEMENTED FEES,2103472901,1000070978
05.05.2022,DSG,ORCHARD HILL COLLEGE,"17,057.06",SPECIALIST POST-16,STATEMENTED FEES,2103472881,1000070978
05.05.2022,DSG,ORCHARD HILL COLLEGE,"17,128.46",SPECIALIST POST-16,STATEMENTED FEES,2103472887,1000070978
05.05.2022,DSG,ORCHARD HILL COLLEGE,"17,133.36",SPECIALIST POST-16,STATEMENTED FEES,2103472883,1000070978
05.05.2022,DSG,ORCHARD HILL COLLEGE,"17,211.49",SPECIALIST POST-16,STATEMENTED FEES,2103472872,1000070978
05.05.2022,DSG,ORCHARD HILL COLLEGE,"17,901.36",SPECIALIST POST-16,STATEMENTED FEES,2103472888,1000070978
05.05.2022,DSG,ORCHARD HILL COLLEGE,"18,127.20",SPECIALIST POST-16,STATEMENTED FEES,2103472865,1000070978
05.05.2022,DSG,ORCHARD HILL COLLEGE,"21,371.81",SPECIALIST POST-16,STATEMENTED FEES,2103472879,1000070978
05.05.2022,DSG,ORCHARD HILL COLLEGE,"21,560.60",SPECIALIST POST-16,STATEMENTED FEES,2103472871,1000070978
05.05.2022,DSG,ORCHARD HILL COLLEGE ACADEMY TRUST,"8,666.67",SPECIALIST POST-16,STATEMENTED FEES,2103472959,1000081716
05.05.2022,DSG,ROYAL SOCIETY FOR BLIND CHILDREN,"11,918.62",SPECIALIST POST-16,STATEMENTED FEES,2103472962,1000087497
05.05.2022,DSG,GV GROUP (GATE VENTURES) LTD,390,SUMMERHOUSE,CATERING MATERIALS & SUPPLIES,5902523446,1000086643
05.05.2022,DSG,SALTCO LTD T/A KELLY EXECUTIVE,"1,840.00",SUMMERHOUSE,HIRED VEHICLES,5902523458,1000000548
05.05.2022,DSG,TUKE SCHOOL,"100,000.00",TUKE SCHOOL,HIGH NEEDS - BASE FUNDING,5902523313,5001000097
05.05.2022,DSG,TUKE SCHOOL,"201,718.00",TUKE SCHOOL,HIGH NEEDS - TOP UP FUNDING,5902523312,5001000097
05.05.2022,EDUCATION,TRAIN FIRST AID,980,EY & PUPIL TRACKING,TRAINING,5902523282,1000085617
05.05.2022,EDUCATION,REBECCA BAXTER,"3,750.00",LEA MUSIC SERVICE(310) - 5018566,CONSULTANTS SERVICES,5902523276,1000088353
05.05.2022,ENVIRONMENT AND LEISURE,SMOKESYGNALS,408.68,ARTS PROJECT,CONSULTANTS SERVICES,6102026550,INTERNATIONAL PAYMENT
05.05.2022,ENVIRONMENT AND LEISURE,THE PLAY INSPECTION COMPANY LTD,300,CAPITAL PS (LEISURE),CONSTRUCTION FEES,5902523179,1000072456
05.05.2022,ENVIRONMENT AND LEISURE,SITE ENGINEERING SURVEYS LTD,300,CAPITAL PS (LEISURE),CONSTRUCTION FEES  - EXTERNAL,5902522994,1000004916
05.05.2022,ENVIRONMENT AND LEISURE,INTO SERVICES LONDON LTD,"5,000.00",CAPITAL PS (LEISURE),CONSTRUCTION SITE COSTS,5902522755,1000059328
05.05.2022,ENVIRONMENT AND LEISURE,WF EDUCATION GROUP LIMITED,"2,093.00",CAPITAL PS (LEISURE),"PLANT, MACHINERY & EQUIPMENT ACQUISITION",5902522698,1000086286
05.05.2022,ENVIRONMENT DIRECTORATE,GRADKO INTERNATIONAL LTD,312.85,ENVIRONMENTAL PROTECTION,EQUIPMENT PURCHASE & REPAIR,5902523416,1000068330
05.05.2022,ENVIRONMENT DIRECTORATE,NAL LTD,779.88,PUBLIC LIGHTING,MATERIALS,5902523322,1000063814
05.05.2022,ENVIRONMENT DIRECTORATE,NAL LTD,"1,167.93",PUBLIC LIGHTING,MATERIALS,5902523322,1000063814
05.05.2022,ENVIRONMENT DIRECTORATE,ELLIOT ENVIRONMENTAL LTD,400,STREET CLEANING-GENERAL,OTHER CONTRACTORS,5902523261,1000047392
05.05.2022,F & C S EXCLUDING CORPORATE BUDGETS,RSM RISK ASSURANCE SERVICES LLP,"35,378.12",FINANCE DIRECTOR,PROFESSIONAL FEES,5902523273,1000079897
05.05.2022,HOUSING GENERAL FUND,DACS LTD,"5,435.60",CAPITAL PS (HOUSING GF),CAPITAL GRANTS,5902523375,1000079747
05.05.2022,HOUSING GENERAL FUND,DACS LTD,"6,425.62",CAPITAL PS (HOUSING GF),CAPITAL GRANTS,5902523452,1000079747
05.05.2022,HOUSING GENERAL FUND,DACS LTD,"6,714.92",CAPITAL PS (HOUSING GF),CAPITAL GRANTS,5902523447,1000079747
05.05.2022,HOUSING GENERAL FUND,DAVID MILES & PARTNERS LTD,"5,265.00",CAPITAL PS (REGEN),CONSTRUCTION MAIN CONTRACT,5902523414,1000001119
05.05.2022,HOUSING GENERAL FUND,DAVID MILES & PARTNERS LTD,"7,452.00",CAPITAL PS (REGEN),CONSTRUCTION MAIN CONTRACT,5902523427,1000001119
05.05.2022,HOUSING GENERAL FUND,DAVID MILES & PARTNERS LTD,"14,256.00",CAPITAL PS (REGEN),CONSTRUCTION MAIN CONTRACT,5902523426,1000001119
05.05.2022,HOUSING HRA,CALFORD SEADEN LLP,772.24,CAPITAL PS (HRA),CONSTRUCTION FEES  - EXTERNAL,5902523262,1061592
05.05.2022,HOUSING HRA,CALFORD SEADEN LLP,"3,832.36",CAPITAL PS (HRA),CONSTRUCTION FEES  - EXTERNAL,5902523259,1061592
05.05.2022,HOUSING HRA,SILVER DCC LTD,"1,550.00",CAPITAL PS (HRA),CONSTRUCTION FEES  - EXTERNAL,5902523101,1000087546
05.05.2022,HOUSING HRA,SILVER DCC LTD,"2,445.94",CAPITAL PS (HRA),CONSTRUCTION FEES  - EXTERNAL,5902523108,1000087546
05.05.2022,HOUSING HRA,BRISAC GONZALEZ LTD,"27,428.40",CAPITAL PS (HRA),CONSTRUCTION FEES - ARCHITECT,5902523253,1000087687
05.05.2022,HOUSING HRA,BAILY  GARNER LLP,"3,388.86",CAPITAL PS (HRA),CONSTRUCTION FEES - EMPLOYERS AGENT,5902523403,1000663
05.05.2022,HOUSING HRA,MAX FORDHAM LLP,"14,300.00",CAPITAL PS (REGEN),CONSTRUCTION FEES  - EXTERNAL,5902523267,1000082810
05.05.2022,HOUSING HRA,MARTIN ARNOLD LTD,"4,558.26",CAPITAL PS (REGEN),CONSTRUCTION FEES - ENGINEER,5902523286,1000076993
05.05.2022,LEISURE DIRECTORATE,KENT COUNTY COUNCIL - LASER,708.55,ACCOMMODATION,ELECTRICITY,5902523361,1000012926
05.05.2022,LEISURE DIRECTORATE,CASTLE WATER LTD,505.41,BURGESS SPORTS CENTRE,WATER,5902523429,1000078867
05.05.2022,LEISURE DIRECTORATE,TELESHORE UK LTD,455,CREMATORIUM,MATERIALS,5902522908,1000075290
05.05.2022,LEISURE DIRECTORATE,CASTLE WATER LTD,348.37,DULWICH AREA TEAM,WATER,5902523424,1000078867
05.05.2022,LEISURE DIRECTORATE,INSPIRE AT ST PETER'S,"3,000.00",GRANTS COMMISSIONING,GRANTS,5902523430,1000041565
05.05.2022,LEISURE DIRECTORATE,KANOPY,"10,000.00",STOCK SERVICES,SUBSCRIPTIONS,5902523434,1000082832
05.05.2022,PLANNING AND TRANSPORT,MONSON ENGINEERING LTD,"2,000.00",CHARGEABLE BUILDING CONTROL,PROFESSIONAL FEES,5902523354,1000077622
05.05.2022,PLANNING AND TRANSPORT,THE DIGITAL ACCESSIBILITY CENTRE LIMITED,"3,375.00",DIGITAL TRANSFORMATION TEAM,CONSULTANTS SERVICES,5902523346,1000087877
05.05.2022,PLANNING AND TRANSPORT,OUR HUT,"2,991.00",PECKHAM TOWNSCAPE HERITAGE INITIATIVE,CONSULTANTS SERVICES,5902523256,1000078640
05.05.2022,PUBLIC HEALTH,IMPERIAL COLLEGE LONDON,"3,284.00",COVID-19 TEST & TRACE SUPPORT GRANT,PROFESSIONAL FEES,5902523351,1000041205
05.05.2022,REGENERATION,PINSENT MASONS LLP,"2,327.20",CANADA WATER,PAYMENTS FOR LEGAL SERVICES,5902523127,1000046862
05.05.2022,RESIDENT SERVICES,VIBRANT ENERGY MATTERS LTD,439.2,ENERGY MANAGEMENT,PROFESSIONAL FEES,5902523294,1000068154
05.05.2022,RESIDENT SERVICES,BRITISH GAS,"5,210.12",EXTRA CARE,ELECTRICITY,5902523405,1000054825
05.05.2022,RESIDENT SERVICES,GALA TENT LIMITED,"4,731.35",GREAT ESTATES,FURNITURE PURCHASE & REPAIR,5902523420,1000058127
05.05.2022,RESIDENT SERVICES,CASTLE WATER LTD,281.9,NORTHCOTT HOUSE,WATER,5902522889,1000078867
05.05.2022,RESIDENT SERVICES,EXTREME ENVIRONMENTAL SERVICES LTD,295,TA ESTATE VOIDS,PREMISES CLEANING,5902523413,1000023922
05.05.2022,RESIDENT SERVICES,EXTREME ENVIRONMENTAL SERVICES LTD,295,TA ESTATE VOIDS,PREMISES CLEANING,5902523415,1000023922
05.05.2022,RESIDENT SERVICES HGF,PRIME FRONTIER PROPERTIES,"1,587.96",HOMELESS PROJECTS,GRANTS,5902522447,1000082643
05.05.2022,RESIDENT SERVICES HGF,HEAVEN ESTATE AGENT LTD,"2,476.92",HOMELESS PROJECTS,GRANTS,5902523280,1000085311
05.05.2022,RESIDENT SERVICES HGF,DAN THOMAS & CO,"1,730.76",HOMELESS PROJECTS,GRANTS,5902523275,1000088335
05.05.2022,RESIDENT SERVICES HGF,SHUTTLEWORTH (UK) LTD,"26,919.00",NIGHTLY TA (NSC),EXTERNAL AGENCIES AND BODIES,5902523349,1000056468
05.05.2022,RESIDENT SERVICES HGF,CROWN HOUSING LTD,"5,363.00",NIGHTLY TA (NSC),EXTERNAL AGENCIES AND BODIES,5902523254,1000075070
05.05.2022,RESIDENT SERVICES HGF,APEX HOUSING SOLUTIONS LTD,"2,800.00",NIGHTLY TA (NSC),EXTERNAL AGENCIES AND BODIES,5902522938,1000079786
05.05.2022,RESIDENT SERVICES HGF,SOUTHWARK LAW CENTRE,324,RAPID REHOUSING,PROFESSIONAL FEES,5902523255,1981325
05.05.2022,SBS OPERATIONS,IFC CERTIFICATION LTD,750,SBS COMMUNAL REPAIRS,PROFESSIONAL FEES,5902523395,1000088298
05.05.2022,SBS OPERATIONS,IFC CERTIFICATION LTD,850,SBS COMMUNAL REPAIRS,PROFESSIONAL FEES,5902523395,1000088298
05.05.2022,SBS SUPPORT,TOTALMOBILE LTD,"8,000.00",ICT & COMMUNICATIONS,SOFTWARE,5902522830,1000085502
05.05.2022,SBS SUPPORT,AGBW - QS LIMITED,"1,900.00",REORGANISATION COSTS,PROFESSIONAL FEES,5902522826,1000087604
05.05.2022,SBS SUPPORT,SKYLIGHT SERVICES (UK) LIMITED,343,SBS - HOLDING ACCOUNT,OTHER CONTRACTORS,5902523391,1000087622
05.05.2022,STRATEGIC FINANCING BUDGETS,COMENSURA LTD,"699,700.40",AGENCY RECOVERY,AGENCY STAFF,5902523358,1000051261
06.05.2022,ADULT SOCIAL CARE,DERWENT RESIDENTIAL CARE LTD,459,APPOINTEESHIPS,OTHER PAYMENTS FOR CLIENTS,5902523601,1000069967
06.05.2022,ADULT SOCIAL CARE,DERWENT RESIDENTIAL CARE LTD,459,APPOINTEESHIPS,OTHER PAYMENTS FOR CLIENTS,5902523605,1000069967
06.05.2022,ADULT SOCIAL CARE,DERWENT RESIDENTIAL CARE LTD,459,APPOINTEESHIPS,OTHER PAYMENTS FOR CLIENTS,5902523610,1000069967
06.05.2022,ADULT SOCIAL CARE,DEAN JONES FUNERAL SERVICE LTD,"6,556.00",APPOINTEESHIPS,OTHER PAYMENTS FOR CLIENTS,2103468554,1000088337
06.05.2022,ADULT SOCIAL CARE,REDACTED PERSONAL DATA,279.85,APPOINTEESHIPS,OTHER PAYMENTS FOR CLIENTS,REDACTED,REDACTED
06.05.2022,ADULT SOCIAL CARE,REDACTED PERSONAL DATA,909,DISCHARGE TO ACCESS,PAYMENTS TO CLIENTS (DIRECT PAYMENTS),REDACTED,REDACTED
06.05.2022,ADULT SOCIAL CARE,MEDEQUIP ASSISTIVE TECHNOLOGY LTD,"3,884.89",ICES CONTRACT,EQUIPMENT PURCHASE & REPAIR,5902523597,1000062775
06.05.2022,ADULT SOCIAL CARE,MEDEQUIP ASSISTIVE TECHNOLOGY LTD,"209,573.60",ICES CONTRACT,EQUIPMENT PURCHASE & REPAIR,5902523594,1000062775
06.05.2022,ADULT SOCIAL CARE,THE NEW SHOOTS,300,LD LTS 18-64,DAYCARE,2103474569,1000073970
06.05.2022,ADULT SOCIAL CARE,PEOPLEPLUS ILS,-769.8,LD LTS 18-64,DISCRETIONARY FLEXIBLE FEES & INCOME,2103474125,1000061886
06.05.2022,ADULT SOCIAL CARE,PEOPLEPLUS ILS,-461.12,LD LTS 18-64,DISCRETIONARY FLEXIBLE FEES & INCOME,2103474159,1000061886
06.05.2022,ADULT SOCIAL CARE,PEOPLEPLUS ILS,-381.12,LD LTS 18-64,DISCRETIONARY FLEXIBLE FEES & INCOME,2103473482,1000061886
06.05.2022,ADULT SOCIAL CARE,PEOPLEPLUS ILS,-277.84,LD LTS 18-64,DISCRETIONARY FLEXIBLE FEES & INCOME,2103473699,1000061886
06.05.2022,ADULT SOCIAL CARE,PEOPLEPLUS ILS,-277.8,LD LTS 18-64,DISCRETIONARY FLEXIBLE FEES & INCOME,2103473689,1000061886
06.05.2022,ADULT SOCIAL CARE,REDACTED PERSONAL DATA,-277.84,LD LTS 18-64,DISCRETIONARY FLEXIBLE FEES & INCOME,REDACTED,REDACTED
06.05.2022,ADULT SOCIAL CARE,REDACTED PERSONAL DATA,-277.8,LD LTS 18-64,DISCRETIONARY FLEXIBLE FEES & INCOME,REDACTED,REDACTED
06.05.2022,ADULT SOCIAL CARE,REDACTED PERSONAL DATA,-271.44,LD LTS 18-64,DISCRETIONARY FLEXIBLE FEES & INCOME,REDACTED,REDACTED
06.05.2022,ADULT SOCIAL CARE,REDACTED PERSONAL DATA,-277.84,LD LTS 18-64,DISCRETIONARY FLEXIBLE FEES & INCOME,REDACTED,REDACTED
06.05.2022,ADULT SOCIAL CARE,REDACTED PERSONAL DATA,"-1,679.49",LD LTS 18-64,DISCRETIONARY FLEXIBLE FEES & INCOME,REDACTED,REDACTED
06.05.2022,ADULT SOCIAL CARE,PEOPLEPLUS ILS,-669.54,LD LTS 18-64,PAYMENTS TO CLIENTS (DIRECT PAYMENTS),2103473566,1000061886
06.05.2022,ADULT SOCIAL CARE,PEOPLEPLUS ILS,260,LD LTS 18-64,PAYMENTS TO CLIENTS (DIRECT PAYMENTS),2103473554,1000061886
06.05.2022,ADULT SOCIAL CARE,PEOPLEPLUS ILS,280,LD LTS 18-64,PAYMENTS TO CLIENTS (DIRECT PAYMENTS),2103473660,1000061886
06.05.2022,ADULT SOCIAL CARE,PEOPLEPLUS ILS,303,LD LTS 18-64,PAYMENTS TO CLIENTS (DIRECT PAYMENTS),2103473535,1000061886
06.05.2022,ADULT SOCIAL CARE,PEOPLEPLUS ILS,303,LD LTS 18-64,PAYMENTS TO CLIENTS (DIRECT PAYMENTS),2103473617,1000061886
06.05.2022,ADULT SOCIAL CARE,PEOPLEPLUS ILS,315.8,LD LTS 18-64,PAYMENTS TO CLIENTS (DIRECT PAYMENTS),2103474042,1000061886
06.05.2022,ADULT SOCIAL CARE,PEOPLEPLUS ILS,340,LD LTS 18-64,PAYMENTS TO CLIENTS (DIRECT PAYMENTS),2103473986,1000061886
06.05.2022,ADULT SOCIAL CARE,PEOPLEPLUS ILS,343.32,LD LTS 18-64,PAYMENTS TO CLIENTS (DIRECT PAYMENTS),2103473509,1000061886
06.05.2022,ADULT SOCIAL CARE,PEOPLEPLUS ILS,351,LD LTS 18-64,PAYMENTS TO CLIENTS (DIRECT PAYMENTS),2103473892,1000061886
06.05.2022,ADULT SOCIAL CARE,PEOPLEPLUS ILS,363.6,LD LTS 18-64,PAYMENTS TO CLIENTS (DIRECT PAYMENTS),2103473529,1000061886
06.05.2022,ADULT SOCIAL CARE,PEOPLEPLUS ILS,366,LD LTS 18-64,PAYMENTS TO CLIENTS (DIRECT PAYMENTS),2103473990,1000061886
06.05.2022,ADULT SOCIAL CARE,PEOPLEPLUS ILS,375.2,LD LTS 18-64,PAYMENTS TO CLIENTS (DIRECT PAYMENTS),2103473598,1000061886
06.05.2022,ADULT SOCIAL CARE,PEOPLEPLUS ILS,385.6,LD LTS 18-64,PAYMENTS TO CLIENTS (DIRECT PAYMENTS),2103473559,1000061886
06.05.2022,ADULT SOCIAL CARE,PEOPLEPLUS ILS,388,LD LTS 18-64,PAYMENTS TO CLIENTS (DIRECT PAYMENTS),2103473503,1000061886
06.05.2022,ADULT SOCIAL CARE,PEOPLEPLUS ILS,411.6,LD LTS 18-64,PAYMENTS TO CLIENTS (DIRECT PAYMENTS),2103473523,1000061886
06.05.2022,ADULT SOCIAL CARE,PEOPLEPLUS ILS,411.6,LD LTS 18-64,PAYMENTS TO CLIENTS (DIRECT PAYMENTS),2103473845,1000061886
06.05.2022,ADULT SOCIAL CARE,PEOPLEPLUS ILS,424.2,LD LTS 18-64,PAYMENTS TO CLIENTS (DIRECT PAYMENTS),2103473623,1000061886
06.05.2022,ADULT SOCIAL CARE,PEOPLEPLUS ILS,447.6,LD LTS 18-64,PAYMENTS TO CLIENTS (DIRECT PAYMENTS),2103473570,1000061886
06.05.2022,ADULT SOCIAL CARE,PEOPLEPLUS ILS,464,LD LTS 18-64,PAYMENTS TO CLIENTS (DIRECT PAYMENTS),2103473833,1000061886
06.05.2022,ADULT SOCIAL CARE,PEOPLEPLUS ILS,472.08,LD LTS 18-64,PAYMENTS TO CLIENTS (DIRECT PAYMENTS),2103473877,1000061886
06.05.2022,ADULT SOCIAL CARE,PEOPLEPLUS ILS,478.8,LD LTS 18-64,PAYMENTS TO CLIENTS (DIRECT PAYMENTS),2103473557,1000061886
06.05.2022,ADULT SOCIAL CARE,PEOPLEPLUS ILS,484.8,LD LTS 18-64,PAYMENTS TO CLIENTS (DIRECT PAYMENTS),2103473426,1000061886
06.05.2022,ADULT SOCIAL CARE,PEOPLEPLUS ILS,484.8,LD LTS 18-64,PAYMENTS TO CLIENTS (DIRECT PAYMENTS),2103473432,1000061886
06.05.2022,ADULT SOCIAL CARE,PEOPLEPLUS ILS,484.8,LD LTS 18-64,PAYMENTS TO CLIENTS (DIRECT PAYMENTS),2103473436,1000061886
06.05.2022,ADULT SOCIAL CARE,PEOPLEPLUS ILS,484.8,LD LTS 18-64,PAYMENTS TO CLIENTS (DIRECT PAYMENTS),2103473437,1000061886
06.05.2022,ADULT SOCIAL CARE,PEOPLEPLUS ILS,532.8,LD LTS 18-64,PAYMENTS TO CLIENTS (DIRECT PAYMENTS),2103473649,1000061886
06.05.2022,ADULT SOCIAL CARE,PEOPLEPLUS ILS,545.4,LD LTS 18-64,PAYMENTS TO CLIENTS (DIRECT PAYMENTS),2103473659,1000061886
06.05.2022,ADULT SOCIAL CARE,PEOPLEPLUS ILS,558.6,LD LTS 18-64,PAYMENTS TO CLIENTS (DIRECT PAYMENTS),2103474201,1000061886
06.05.2022,ADULT SOCIAL CARE,PEOPLEPLUS ILS,590.84,LD LTS 18-64,PAYMENTS TO CLIENTS (DIRECT PAYMENTS),2103473948,1000061886
06.05.2022,ADULT SOCIAL CARE,PEOPLEPLUS ILS,618.4,LD LTS 18-64,PAYMENTS TO CLIENTS (DIRECT PAYMENTS),2103473779,1000061886
06.05.2022,ADULT SOCIAL CARE,PEOPLEPLUS ILS,680,LD LTS 18-64,PAYMENTS TO CLIENTS (DIRECT PAYMENTS),2103473999,1000061886
06.05.2022,ADULT SOCIAL CARE,PEOPLEPLUS ILS,699.72,LD LTS 18-64,PAYMENTS TO CLIENTS (DIRECT PAYMENTS),2103474002,1000061886
06.05.2022,ADULT SOCIAL CARE,PEOPLEPLUS ILS,704,LD LTS 18-64,PAYMENTS TO CLIENTS (DIRECT PAYMENTS),2103473558,1000061886
06.05.2022,ADULT SOCIAL CARE,PEOPLEPLUS ILS,727.2,LD LTS 18-64,PAYMENTS TO CLIENTS (DIRECT PAYMENTS),2103473578,1000061886
06.05.2022,ADULT SOCIAL CARE,PEOPLEPLUS ILS,727.2,LD LTS 18-64,PAYMENTS TO CLIENTS (DIRECT PAYMENTS),2103473853,1000061886
06.05.2022,ADULT SOCIAL CARE,PEOPLEPLUS ILS,736.56,LD LTS 18-64,PAYMENTS TO CLIENTS (DIRECT PAYMENTS),2103473848,1000061886
06.05.2022,ADULT SOCIAL CARE,PEOPLEPLUS ILS,753,LD LTS 18-64,PAYMENTS TO CLIENTS (DIRECT PAYMENTS),2103473764,1000061886
06.05.2022,ADULT SOCIAL CARE,PEOPLEPLUS ILS,762.4,LD LTS 18-64,PAYMENTS TO CLIENTS (DIRECT PAYMENTS),2103473730,1000061886
06.05.2022,ADULT SOCIAL CARE,PEOPLEPLUS ILS,775.2,LD LTS 18-64,PAYMENTS TO CLIENTS (DIRECT PAYMENTS),2103473536,1000061886
06.05.2022,ADULT SOCIAL CARE,PEOPLEPLUS ILS,789.6,LD LTS 18-64,PAYMENTS TO CLIENTS (DIRECT PAYMENTS),2103473831,1000061886
06.05.2022,ADULT SOCIAL CARE,PEOPLEPLUS ILS,804,LD LTS 18-64,PAYMENTS TO CLIENTS (DIRECT PAYMENTS),2103474206,1000061886
06.05.2022,ADULT SOCIAL CARE,PEOPLEPLUS ILS,824,LD LTS 18-64,PAYMENTS TO CLIENTS (DIRECT PAYMENTS),2103473997,1000061886
06.05.2022,ADULT SOCIAL CARE,PEOPLEPLUS ILS,909,LD LTS 18-64,PAYMENTS TO CLIENTS (DIRECT PAYMENTS),2103473628,1000061886
06.05.2022,ADULT SOCIAL CARE,PEOPLEPLUS ILS,954.44,LD LTS 18-64,PAYMENTS TO CLIENTS (DIRECT PAYMENTS),2103474154,1000061886
06.05.2022,ADULT SOCIAL CARE,PEOPLEPLUS ILS,957,LD LTS 18-64,PAYMENTS TO CLIENTS (DIRECT PAYMENTS),2103473935,1000061886
06.05.2022,ADULT SOCIAL CARE,PEOPLEPLUS ILS,969.6,LD LTS 18-64,PAYMENTS TO CLIENTS (DIRECT PAYMENTS),2103474155,1000061886
06.05.2022,ADULT SOCIAL CARE,PEOPLEPLUS ILS,978,LD LTS 18-64,PAYMENTS TO CLIENTS (DIRECT PAYMENTS),2103474126,1000061886
06.05.2022,ADULT SOCIAL CARE,PEOPLEPLUS ILS,990.6,LD LTS 18-64,PAYMENTS TO CLIENTS (DIRECT PAYMENTS),2103473633,1000061886
06.05.2022,ADULT SOCIAL CARE,PEOPLEPLUS ILS,"1,023.00",LD LTS 18-64,PAYMENTS TO CLIENTS (DIRECT PAYMENTS),2103473886,1000061886
06.05.2022,ADULT SOCIAL CARE,PEOPLEPLUS ILS,"1,108.52",LD LTS 18-64,PAYMENTS TO CLIENTS (DIRECT PAYMENTS),2103473423,1000061886
06.05.2022,ADULT SOCIAL CARE,PEOPLEPLUS ILS,"1,134.80",LD LTS 18-64,PAYMENTS TO CLIENTS (DIRECT PAYMENTS),2103473575,1000061886
06.05.2022,ADULT SOCIAL CARE,PEOPLEPLUS ILS,"1,142.96",LD LTS 18-64,PAYMENTS TO CLIENTS (DIRECT PAYMENTS),2103473567,1000061886
06.05.2022,ADULT SOCIAL CARE,PEOPLEPLUS ILS,"1,170.00",LD LTS 18-64,PAYMENTS TO CLIENTS (DIRECT PAYMENTS),2103473572,1000061886
06.05.2022,ADULT SOCIAL CARE,PEOPLEPLUS ILS,"1,196.80",LD LTS 18-64,PAYMENTS TO CLIENTS (DIRECT PAYMENTS),2103473734,1000061886
06.05.2022,ADULT SOCIAL CARE,PEOPLEPLUS ILS,"1,196.80",LD LTS 18-64,PAYMENTS TO CLIENTS (DIRECT PAYMENTS),2103474005,1000061886
06.05.2022,ADULT SOCIAL CARE,PEOPLEPLUS ILS,"1,199.40",LD LTS 18-64,PAYMENTS TO CLIENTS (DIRECT PAYMENTS),2103474166,1000061886
06.05.2022,ADULT SOCIAL CARE,PEOPLEPLUS ILS,"1,227.00",LD LTS 18-64,PAYMENTS TO CLIENTS (DIRECT PAYMENTS),2103473966,1000061886
06.05.2022,ADULT SOCIAL CARE,PEOPLEPLUS ILS,"1,236.00",LD LTS 18-64,PAYMENTS TO CLIENTS (DIRECT PAYMENTS),2103474163,1000061886
06.05.2022,ADULT SOCIAL CARE,PEOPLEPLUS ILS,"1,360.24",LD LTS 18-64,PAYMENTS TO CLIENTS (DIRECT PAYMENTS),2103474124,1000061886
06.05.2022,ADULT SOCIAL CARE,PEOPLEPLUS ILS,"1,412.60",LD LTS 18-64,PAYMENTS TO CLIENTS (DIRECT PAYMENTS),2103473690,1000061886
06.05.2022,ADULT SOCIAL CARE,PEOPLEPLUS ILS,"1,460.96",LD LTS 18-64,PAYMENTS TO CLIENTS (DIRECT PAYMENTS),2103473776,1000061886
06.05.2022,ADULT SOCIAL CARE,PEOPLEPLUS ILS,"1,504.72",LD LTS 18-64,PAYMENTS TO CLIENTS (DIRECT PAYMENTS),2103474147,1000061886
06.05.2022,ADULT SOCIAL CARE,PEOPLEPLUS ILS,"1,550.20",LD LTS 18-64,PAYMENTS TO CLIENTS (DIRECT PAYMENTS),2103473645,1000061886
06.05.2022,ADULT SOCIAL CARE,PEOPLEPLUS ILS,"1,600.80",LD LTS 18-64,PAYMENTS TO CLIENTS (DIRECT PAYMENTS),2103473738,1000061886
06.05.2022,ADULT SOCIAL CARE,PEOPLEPLUS ILS,"1,637.60",LD LTS 18-64,PAYMENTS TO CLIENTS (DIRECT PAYMENTS),2103473736,1000061886
06.05.2022,ADULT SOCIAL CARE,PEOPLEPLUS ILS,"1,731.60",LD LTS 18-64,PAYMENTS TO CLIENTS (DIRECT PAYMENTS),2103474021,1000061886
06.05.2022,ADULT SOCIAL CARE,PEOPLEPLUS ILS,"1,787.96",LD LTS 18-64,PAYMENTS TO CLIENTS (DIRECT PAYMENTS),2103473496,1000061886
06.05.2022,ADULT SOCIAL CARE,PEOPLEPLUS ILS,"1,794.00",LD LTS 18-64,PAYMENTS TO CLIENTS (DIRECT PAYMENTS),2103473675,1000061886
06.05.2022,ADULT SOCIAL CARE,PEOPLEPLUS ILS,"1,818.00",LD LTS 18-64,PAYMENTS TO CLIENTS (DIRECT PAYMENTS),2103473526,1000061886
06.05.2022,ADULT SOCIAL CARE,PEOPLEPLUS ILS,"1,818.00",LD LTS 18-64,PAYMENTS TO CLIENTS (DIRECT PAYMENTS),2103473950,1000061886
06.05.2022,ADULT SOCIAL CARE,PEOPLEPLUS ILS,"1,837.48",LD LTS 18-64,PAYMENTS TO CLIENTS (DIRECT PAYMENTS),2103473421,1000061886
06.05.2022,ADULT SOCIAL CARE,PEOPLEPLUS ILS,"1,843.60",LD LTS 18-64,PAYMENTS TO CLIENTS (DIRECT PAYMENTS),2103474216,1000061886
06.05.2022,ADULT SOCIAL CARE,PEOPLEPLUS ILS,"1,854.28",LD LTS 18-64,PAYMENTS TO CLIENTS (DIRECT PAYMENTS),2103473763,1000061886
06.05.2022,ADULT SOCIAL CARE,PEOPLEPLUS ILS,"1,878.60",LD LTS 18-64,PAYMENTS TO CLIENTS (DIRECT PAYMENTS),2103474060,1000061886
06.05.2022,ADULT SOCIAL CARE,PEOPLEPLUS ILS,"1,943.20",LD LTS 18-64,PAYMENTS TO CLIENTS (DIRECT PAYMENTS),2103473610,1000061886
06.05.2022,ADULT SOCIAL CARE,PEOPLEPLUS ILS,"2,046.48",LD LTS 18-64,PAYMENTS TO CLIENTS (DIRECT PAYMENTS),2103473657,1000061886
06.05.2022,ADULT SOCIAL CARE,PEOPLEPLUS ILS,"2,107.56",LD LTS 18-64,PAYMENTS TO CLIENTS (DIRECT PAYMENTS),2103474108,1000061886
06.05.2022,ADULT SOCIAL CARE,PEOPLEPLUS ILS,"2,121.00",LD LTS 18-64,PAYMENTS TO CLIENTS (DIRECT PAYMENTS),2103474040,1000061886
06.05.2022,ADULT SOCIAL CARE,PEOPLEPLUS ILS,"2,121.00",LD LTS 18-64,PAYMENTS TO CLIENTS (DIRECT PAYMENTS),2103474043,1000061886
06.05.2022,ADULT SOCIAL CARE,PEOPLEPLUS ILS,"2,191.20",LD LTS 18-64,PAYMENTS TO CLIENTS (DIRECT PAYMENTS),2103473857,1000061886
06.05.2022,ADULT SOCIAL CARE,PEOPLEPLUS ILS,"2,545.20",LD LTS 18-64,PAYMENTS TO CLIENTS (DIRECT PAYMENTS),2103473860,1000061886
06.05.2022,ADULT SOCIAL CARE,PEOPLEPLUS ILS,"2,631.92",LD LTS 18-64,PAYMENTS TO CLIENTS (DIRECT PAYMENTS),2103473751,1000061886
06.05.2022,ADULT SOCIAL CARE,PEOPLEPLUS ILS,"2,679.84",LD LTS 18-64,PAYMENTS TO CLIENTS (DIRECT PAYMENTS),2103474064,1000061886
06.05.2022,ADULT SOCIAL CARE,PEOPLEPLUS ILS,"2,879.40",LD LTS 18-64,PAYMENTS TO CLIENTS (DIRECT PAYMENTS),2103473682,1000061886
06.05.2022,ADULT SOCIAL CARE,PEOPLEPLUS ILS,"2,902.52",LD LTS 18-64,PAYMENTS TO CLIENTS (DIRECT PAYMENTS),2103473445,1000061886
06.05.2022,ADULT SOCIAL CARE,PEOPLEPLUS ILS,"2,906.20",LD LTS 18-64,PAYMENTS TO CLIENTS (DIRECT PAYMENTS),2103473753,1000061886
06.05.2022,ADULT SOCIAL CARE,PEOPLEPLUS ILS,"2,920.00",LD LTS 18-64,PAYMENTS TO CLIENTS (DIRECT PAYMENTS),2103474109,1000061886
06.05.2022,ADULT SOCIAL CARE,PEOPLEPLUS ILS,"3,927.00",LD LTS 18-64,PAYMENTS TO CLIENTS (DIRECT PAYMENTS),2103473504,1000061886
06.05.2022,ADULT SOCIAL CARE,PEOPLEPLUS ILS,"4,569.00",LD LTS 18-64,PAYMENTS TO CLIENTS (DIRECT PAYMENTS),2103473750,1000061886
06.05.2022,ADULT SOCIAL CARE,PEOPLEPLUS ILS,"4,848.00",LD LTS 18-64,PAYMENTS TO CLIENTS (DIRECT PAYMENTS),2103473728,1000061886
06.05.2022,ADULT SOCIAL CARE,PEOPLEPLUS ILS,"6,004.32",LD LTS 18-64,PAYMENTS TO CLIENTS (DIRECT PAYMENTS),2103473766,1000061886
06.05.2022,ADULT SOCIAL CARE,PEOPLEPLUS ILS,"11,823.20",LD LTS 18-64,PAYMENTS TO CLIENTS (DIRECT PAYMENTS),2103473871,1000061886
06.05.2022,ADULT SOCIAL CARE,PEOPLEPLUS ILS,"12,643.20",LD LTS 18-64,PAYMENTS TO CLIENTS (DIRECT PAYMENTS),2103473545,1000061886
06.05.2022,ADULT SOCIAL CARE,PEOPLEPLUS ILS,"12,691.20",LD LTS 18-64,PAYMENTS TO CLIENTS (DIRECT PAYMENTS),2103473544,1000061886
06.05.2022,ADULT SOCIAL CARE,FRESH IDEAS & SOLUTIONS SERVICES CIC,465.64,LD LTS 18-64,PAYMENTS TO CLIENTS (DIRECT PAYMENTS),2103473778,1000070832
06.05.2022,ADULT SOCIAL CARE,FRESH IDEAS & SOLUTIONS SERVICES CIC,740,LD LTS 18-64,PAYMENTS TO CLIENTS (DIRECT PAYMENTS),2103473777,1000070832
06.05.2022,ADULT SOCIAL CARE,FRESH IDEAS & SOLUTIONS SERVICES CIC,848.4,LD LTS 18-64,PAYMENTS TO CLIENTS (DIRECT PAYMENTS),2103473583,1000070832
06.05.2022,ADULT SOCIAL CARE,FRESH IDEAS & SOLUTIONS SERVICES CIC,875.6,LD LTS 18-64,PAYMENTS TO CLIENTS (DIRECT PAYMENTS),2103473549,1000070832
06.05.2022,ADULT SOCIAL CARE,FRESH IDEAS & SOLUTIONS SERVICES CIC,"1,047.52",LD LTS 18-64,PAYMENTS TO CLIENTS (DIRECT PAYMENTS),2103473872,1000070832
06.05.2022,ADULT SOCIAL CARE,FRESH IDEAS & SOLUTIONS SERVICES CIC,"1,757.20",LD LTS 18-64,PAYMENTS TO CLIENTS (DIRECT PAYMENTS),2103473662,1000070832
06.05.2022,ADULT SOCIAL CARE,FRESH IDEAS & SOLUTIONS SERVICES CIC,"1,848.00",LD LTS 18-64,PAYMENTS TO CLIENTS (DIRECT PAYMENTS),2103473984,1000070832
06.05.2022,ADULT SOCIAL CARE,REDACTED PERSONAL DATA,"2,424.00",LD LTS 18-64,PAYMENTS TO CLIENTS (DIRECT PAYMENTS),REDACTED,REDACTED
06.05.2022,ADULT SOCIAL CARE,REDACTED PERSONAL DATA,"3,960.52",LD LTS 18-64,PAYMENTS TO CLIENTS (DIRECT PAYMENTS),REDACTED,REDACTED
06.05.2022,ADULT SOCIAL CARE,REDACTED PERSONAL DATA,727.2,LD LTS 18-64,PAYMENTS TO CLIENTS (DIRECT PAYMENTS),REDACTED,REDACTED
06.05.2022,ADULT SOCIAL CARE,REDACTED PERSONAL DATA,"6,287.92",LD LTS 18-64,PAYMENTS TO CLIENTS (DIRECT PAYMENTS),REDACTED,REDACTED
06.05.2022,ADULT SOCIAL CARE,REDACTED PERSONAL DATA,"2,787.60",LD LTS 18-64,PAYMENTS TO CLIENTS (DIRECT PAYMENTS),REDACTED,REDACTED
06.05.2022,ADULT SOCIAL CARE,REDACTED PERSONAL DATA,"2,121.00",LD LTS 18-64,PAYMENTS TO CLIENTS (DIRECT PAYMENTS),REDACTED,REDACTED
06.05.2022,ADULT SOCIAL CARE,REDACTED PERSONAL DATA,"8,484.60",LD LTS 18-64,PAYMENTS TO CLIENTS (DIRECT PAYMENTS),REDACTED,REDACTED
06.05.2022,ADULT SOCIAL CARE,REDACTED PERSONAL DATA,"1,523.60",LD LTS 18-64,PAYMENTS TO CLIENTS (DIRECT PAYMENTS),REDACTED,REDACTED
06.05.2022,ADULT SOCIAL CARE,REDACTED PERSONAL DATA,"2,158.60",LD LTS 18-64,PAYMENTS TO CLIENTS (DIRECT PAYMENTS),REDACTED,REDACTED
06.05.2022,ADULT SOCIAL CARE,REDACTED PERSONAL DATA,"3,864.64",LD LTS 18-64,PAYMENTS TO CLIENTS (DIRECT PAYMENTS),REDACTED,REDACTED
06.05.2022,ADULT SOCIAL CARE,REDACTED PERSONAL DATA,"1,420.12",LD LTS 18-64,PAYMENTS TO CLIENTS (DIRECT PAYMENTS),REDACTED,REDACTED
06.05.2022,ADULT SOCIAL CARE,REDACTED PERSONAL DATA,"2,892.00",LD LTS 18-64,PAYMENTS TO CLIENTS (DIRECT PAYMENTS),REDACTED,REDACTED
06.05.2022,ADULT SOCIAL CARE,REDACTED PERSONAL DATA,414.8,LD LTS 18-64,PAYMENTS TO CLIENTS (DIRECT PAYMENTS),REDACTED,REDACTED
06.05.2022,ADULT SOCIAL CARE,REDACTED PERSONAL DATA,522.6,LD LTS 18-64,PAYMENTS TO CLIENTS (DIRECT PAYMENTS),REDACTED,REDACTED
06.05.2022,ADULT SOCIAL CARE,REDACTED PERSONAL DATA,303,LD LTS 18-64,PAYMENTS TO CLIENTS (DIRECT PAYMENTS),REDACTED,REDACTED
06.05.2022,ADULT SOCIAL CARE,REDACTED PERSONAL DATA,"1,296.52",LD LTS 18-64,PAYMENTS TO CLIENTS (DIRECT PAYMENTS),REDACTED,REDACTED
06.05.2022,ADULT SOCIAL CARE,REDACTED PERSONAL DATA,"2,317.60",LD LTS 18-64,PAYMENTS TO CLIENTS (DIRECT PAYMENTS),REDACTED,REDACTED
06.05.2022,ADULT SOCIAL CARE,REDACTED PERSONAL DATA,"1,999.80",LD LTS 18-64,PAYMENTS TO CLIENTS (DIRECT PAYMENTS),REDACTED,REDACTED
06.05.2022,ADULT SOCIAL CARE,REDACTED PERSONAL DATA,522.6,LD LTS 18-64,PAYMENTS TO CLIENTS (DIRECT PAYMENTS),REDACTED,REDACTED
06.05.2022,ADULT SOCIAL CARE,REDACTED PERSONAL DATA,"6,644.40",LD LTS 18-64,PAYMENTS TO CLIENTS (DIRECT PAYMENTS),REDACTED,REDACTED
06.05.2022,ADULT SOCIAL CARE,REDACTED PERSONAL DATA,"1,025.20",LD LTS 18-64,PAYMENTS TO CLIENTS (DIRECT PAYMENTS),REDACTED,REDACTED
06.05.2022,ADULT SOCIAL CARE,REDACTED PERSONAL DATA,327.2,LD LTS 18-64,PAYMENTS TO CLIENTS (DIRECT PAYMENTS),REDACTED,REDACTED
06.05.2022,ADULT SOCIAL CARE,REDACTED PERSONAL DATA,809.8,LD LTS 18-64,PAYMENTS TO CLIENTS (DIRECT PAYMENTS),REDACTED,REDACTED
06.05.2022,ADULT SOCIAL CARE,REDACTED PERSONAL DATA,300,LD LTS 18-64,PAYMENTS TO CLIENTS (DIRECT PAYMENTS),REDACTED,REDACTED
06.05.2022,ADULT SOCIAL CARE,REDACTED PERSONAL DATA,584,LD LTS 18-64,PAYMENTS TO CLIENTS (DIRECT PAYMENTS),REDACTED,REDACTED
06.05.2022,ADULT SOCIAL CARE,REDACTED PERSONAL DATA,"1,454.40",LD LTS 18-64,PAYMENTS TO CLIENTS (DIRECT PAYMENTS),REDACTED,REDACTED
06.05.2022,ADULT SOCIAL CARE,REDACTED PERSONAL DATA,"1,212.00",LD LTS 18-64,PAYMENTS TO CLIENTS (DIRECT PAYMENTS),REDACTED,REDACTED
06.05.2022,ADULT SOCIAL CARE,REDACTED PERSONAL DATA,320,LD LTS 18-64,PAYMENTS TO CLIENTS (DIRECT PAYMENTS),REDACTED,REDACTED
06.05.2022,ADULT SOCIAL CARE,REDACTED PERSONAL DATA,787.8,LD LTS 18-64,PAYMENTS TO CLIENTS (DIRECT PAYMENTS),REDACTED,REDACTED
06.05.2022,ADULT SOCIAL CARE,REDACTED PERSONAL DATA,"2,116.00",LD LTS 18-64,PAYMENTS TO CLIENTS (DIRECT PAYMENTS),REDACTED,REDACTED
06.05.2022,ADULT SOCIAL CARE,REDACTED PERSONAL DATA,727.2,LD LTS 18-64,PAYMENTS TO CLIENTS (DIRECT PAYMENTS),REDACTED,REDACTED
06.05.2022,ADULT SOCIAL CARE,REDACTED PERSONAL DATA,878.72,LD LTS 18-64,PAYMENTS TO CLIENTS (DIRECT PAYMENTS),REDACTED,REDACTED
06.05.2022,ADULT SOCIAL CARE,REDACTED PERSONAL DATA,392,LD LTS 18-64,PAYMENTS TO CLIENTS (DIRECT PAYMENTS),REDACTED,REDACTED
06.05.2022,ADULT SOCIAL CARE,REDACTED PERSONAL DATA,"2,994.52",LD LTS 18-64,PAYMENTS TO CLIENTS (DIRECT PAYMENTS),REDACTED,REDACTED
06.05.2022,ADULT SOCIAL CARE,REDACTED PERSONAL DATA,"1,532.92",LD LTS 18-64,PAYMENTS TO CLIENTS (DIRECT PAYMENTS),REDACTED,REDACTED
06.05.2022,ADULT SOCIAL CARE,REDACTED PERSONAL DATA,"5,026.00",LD LTS 18-64,PAYMENTS TO CLIENTS (DIRECT PAYMENTS),REDACTED,REDACTED
06.05.2022,ADULT SOCIAL CARE,REDACTED PERSONAL DATA,"6,286.08",LD LTS 18-64,PAYMENTS TO CLIENTS (DIRECT PAYMENTS),REDACTED,REDACTED
06.05.2022,ADULT SOCIAL CARE,REDACTED PERSONAL DATA,984.76,LD LTS 18-64,PAYMENTS TO CLIENTS (DIRECT PAYMENTS),REDACTED,REDACTED
06.05.2022,ADULT SOCIAL CARE,REDACTED PERSONAL DATA,"2,514.92",LD LTS 18-64,PAYMENTS TO CLIENTS (DIRECT PAYMENTS),REDACTED,REDACTED
06.05.2022,ADULT SOCIAL CARE,REDACTED PERSONAL DATA,"1,656.20",LD LTS 18-64,PAYMENTS TO CLIENTS (DIRECT PAYMENTS),REDACTED,REDACTED
06.05.2022,ADULT SOCIAL CARE,REDACTED PERSONAL DATA,"4,427.60",LD LTS 18-64,PAYMENTS TO CLIENTS (DIRECT PAYMENTS),REDACTED,REDACTED
06.05.2022,ADULT SOCIAL CARE,REDACTED PERSONAL DATA,540.6,LD LTS 18-64,PAYMENTS TO CLIENTS (DIRECT PAYMENTS),REDACTED,REDACTED
06.05.2022,ADULT SOCIAL CARE,REDACTED PERSONAL DATA,"1,293.44",LD LTS 18-64,PAYMENTS TO CLIENTS (DIRECT PAYMENTS),REDACTED,REDACTED
06.05.2022,ADULT SOCIAL CARE,REDACTED PERSONAL DATA,"1,110.04",LD LTS 18-64,PAYMENTS TO CLIENTS (DIRECT PAYMENTS),REDACTED,REDACTED
06.05.2022,ADULT SOCIAL CARE,REDACTED PERSONAL DATA,448.88,LD LTS 18-64,PAYMENTS TO CLIENTS (DIRECT PAYMENTS),REDACTED,REDACTED
06.05.2022,ADULT SOCIAL CARE,REDACTED PERSONAL DATA,"-62,001.43",LD LTS 18-64,PAYMENTS TO CLIENTS (DIRECT PAYMENTS),REDACTED,REDACTED
06.05.2022,ADULT SOCIAL CARE,REDACTED PERSONAL DATA,"10,380.00",LD LTS 18-64,PAYMENTS TO CLIENTS (DIRECT PAYMENTS),REDACTED,REDACTED
06.05.2022,ADULT SOCIAL CARE,REDACTED PERSONAL DATA,"61,538.57",LD LTS 18-64,PAYMENTS TO CLIENTS (DIRECT PAYMENTS),REDACTED,REDACTED
06.05.2022,ADULT SOCIAL CARE,REDACTED PERSONAL DATA,260,LD LTS 18-64,PAYMENTS TO CLIENTS (DIRECT PAYMENTS),REDACTED,REDACTED
06.05.2022,ADULT SOCIAL CARE,REDACTED PERSONAL DATA,502.6,LD LTS 18-64,PAYMENTS TO CLIENTS (DIRECT PAYMENTS),REDACTED,REDACTED
06.05.2022,ADULT SOCIAL CARE,REDACTED PERSONAL DATA,"1,095.00",LD LTS 18-64,PAYMENTS TO CLIENTS (DIRECT PAYMENTS),REDACTED,REDACTED
06.05.2022,ADULT SOCIAL CARE,REDACTED PERSONAL DATA,"1,400.00",LD LTS 18-64,PAYMENTS TO CLIENTS (DIRECT PAYMENTS),REDACTED,REDACTED
06.05.2022,ADULT SOCIAL CARE,REDACTED PERSONAL DATA,"2,736.00",LD LTS 18-64,PAYMENTS TO CLIENTS (DIRECT PAYMENTS),REDACTED,REDACTED
06.05.2022,ADULT SOCIAL CARE,REDACTED PERSONAL DATA,363.6,LD LTS 18-64,PAYMENTS TO CLIENTS (DIRECT PAYMENTS),REDACTED,REDACTED
06.05.2022,ADULT SOCIAL CARE,REDACTED PERSONAL DATA,832.2,LD LTS 18-64,PAYMENTS TO CLIENTS (DIRECT PAYMENTS),REDACTED,REDACTED
06.05.2022,ADULT SOCIAL CARE,REDACTED PERSONAL DATA,460.04,LD LTS 18-64,PAYMENTS TO CLIENTS (DIRECT PAYMENTS),REDACTED,REDACTED
06.05.2022,ADULT SOCIAL CARE,REDACTED PERSONAL DATA,"1,010.72",LD LTS 18-64,PAYMENTS TO CLIENTS (DIRECT PAYMENTS),REDACTED,REDACTED
06.05.2022,ADULT SOCIAL CARE,REDACTED PERSONAL DATA,857.06,LD LTS 18-64,PAYMENTS TO CLIENTS (DIRECT PAYMENTS),REDACTED,REDACTED
06.05.2022,ADULT SOCIAL CARE,REDACTED PERSONAL DATA,574.4,LD LTS 18-64,PAYMENTS TO CLIENTS (DIRECT PAYMENTS),REDACTED,REDACTED
06.05.2022,ADULT SOCIAL CARE,REDACTED PERSONAL DATA,"1,030.20",LD LTS 18-64,PAYMENTS TO CLIENTS (DIRECT PAYMENTS),REDACTED,REDACTED
06.05.2022,ADULT SOCIAL CARE,REDACTED PERSONAL DATA,"3,126.50",LD LTS 18-64,PAYMENTS TO CLIENTS (DIRECT PAYMENTS),REDACTED,REDACTED
06.05.2022,ADULT SOCIAL CARE,REDACTED PERSONAL DATA,718,LD LTS 18-64,PAYMENTS TO CLIENTS (DIRECT PAYMENTS),REDACTED,REDACTED
06.05.2022,ADULT SOCIAL CARE,REDACTED PERSONAL DATA,"1,815.00",LD LTS 18-64,PAYMENTS TO CLIENTS (DIRECT PAYMENTS),REDACTED,REDACTED
06.05.2022,ADULT SOCIAL CARE,REDACTED PERSONAL DATA,"3,696.60",LD LTS 18-64,PAYMENTS TO CLIENTS (DIRECT PAYMENTS),REDACTED,REDACTED
06.05.2022,ADULT SOCIAL CARE,CHOICE SUPPORT,257.2,LD LTS 18-64,SUPPORTED LIVING,2103474568,1104183
06.05.2022,ADULT SOCIAL CARE,CHOICE SUPPORT,293.92,LD LTS 18-64,SUPPORTED LIVING,2103474548,1104183
06.05.2022,ADULT SOCIAL CARE,CHOICE SUPPORT,293.92,LD LTS 18-64,SUPPORTED LIVING,2103474564,1104183
06.05.2022,ADULT SOCIAL CARE,CHOICE SUPPORT,330.66,LD LTS 18-64,SUPPORTED LIVING,2103474554,1104183
06.05.2022,ADULT SOCIAL CARE,CHOICE SUPPORT,367.4,LD LTS 18-64,SUPPORTED LIVING,2103474545,1104183
06.05.2022,ADULT SOCIAL CARE,CHOICE SUPPORT,440.88,LD LTS 18-64,SUPPORTED LIVING,2103474567,1104183
06.05.2022,ADULT SOCIAL CARE,CHOICE SUPPORT,587.84,LD LTS 18-64,SUPPORTED LIVING,2103474546,1104183
06.05.2022,ADULT SOCIAL CARE,CHOICE SUPPORT,587.84,LD LTS 18-64,SUPPORTED LIVING,2103474556,1104183
06.05.2022,ADULT SOCIAL CARE,CHOICE SUPPORT,587.84,LD LTS 18-64,SUPPORTED LIVING,2103474563,1104183
06.05.2022,ADULT SOCIAL CARE,CHOICE SUPPORT,661.32,LD LTS 18-64,SUPPORTED LIVING,2103474550,1104183
06.05.2022,ADULT SOCIAL CARE,CHOICE SUPPORT,734.8,LD LTS 18-64,SUPPORTED LIVING,2103474551,1104183
06.05.2022,ADULT SOCIAL CARE,CHOICE SUPPORT,881.76,LD LTS 18-64,SUPPORTED LIVING,2103474547,1104183
06.05.2022,ADULT SOCIAL CARE,GRANGE FARM COMPLEX,"1,778.36",LD LTS 18-64,SUPPORTED LIVING,2103473820,11086081
06.05.2022,ADULT SOCIAL CARE,CARE MANAGEMENT GROUP,396,LD LTS 18-64,SUPPORTED LIVING,2103474574,1000040475
06.05.2022,ADULT SOCIAL CARE,CONTACT PROFESSIONALS,465,LD LTS 18-64,SUPPORTED LIVING,2103474572,1000057263
06.05.2022,ADULT SOCIAL CARE,CONTACT PROFESSIONALS,684,LD LTS 18-64,SUPPORTED LIVING,2103474542,1000057263
06.05.2022,ADULT SOCIAL CARE,CONTACT PROFESSIONALS,912,LD LTS 18-64,SUPPORTED LIVING,2103474575,1000057263
06.05.2022,ADULT SOCIAL CARE,YPR LIMITED,352,LD LTS 18-64,SUPPORTED LIVING,2103474552,1000086517
06.05.2022,ADULT SOCIAL CARE,YPR LIMITED,352,LD LTS 18-64,SUPPORTED LIVING,2103474553,1000086517
06.05.2022,ADULT SOCIAL CARE,YPR LIMITED,352,LD LTS 18-64,SUPPORTED LIVING,2103474570,1000086517
06.05.2022,ADULT SOCIAL CARE,YPR LIMITED,352,LD LTS 18-64,SUPPORTED LIVING,2103474571,1000086517
06.05.2022,ADULT SOCIAL CARE,YPR LIMITED,352,LD LTS 18-64,SUPPORTED LIVING,2103474573,1000086517
06.05.2022,ADULT SOCIAL CARE,REDACTED PERSONAL DATA,"1,032.16",LD LTS 18-64,SUPPORTED LIVING,REDACTED,REDACTED
06.05.2022,ADULT SOCIAL CARE,PEOPLEPLUS ILS,416,LD LTS 65+,PAYMENTS TO CLIENTS (DIRECT PAYMENTS),2103473678,1000061886
06.05.2022,ADULT SOCIAL CARE,PEOPLEPLUS ILS,515.12,MEM LTS 18-64,PAYMENTS TO CLIENTS (DIRECT PAYMENTS),2103473832,1000061886
06.05.2022,ADULT SOCIAL CARE,PEOPLEPLUS ILS,"1,539.00",MEM LTS 18-64,PAYMENTS TO CLIENTS (DIRECT PAYMENTS),2103473787,1000061886
06.05.2022,ADULT SOCIAL CARE,PEOPLEPLUS ILS,"1,878.60",MEM LTS 18-64,PAYMENTS TO CLIENTS (DIRECT PAYMENTS),2103473904,1000061886
06.05.2022,ADULT SOCIAL CARE,REDACTED PERSONAL DATA,256,MEM LTS 18-64,SUPPORTED LIVING,REDACTED,REDACTED
06.05.2022,ADULT SOCIAL CARE,AGE UK  LEWISHAM & SOUTHWARK,260,MEM LTS 65+,DAYCARE,2103474174,1000066751
06.05.2022,ADULT SOCIAL CARE,PEOPLEPLUS ILS,-291.28,MEM LTS 65+,DISCRETIONARY FLEXIBLE FEES & INCOME,2103473492,1000061886
06.05.2022,ADULT SOCIAL CARE,REDACTED PERSONAL DATA,-327.84,MEM LTS 65+,DISCRETIONARY FLEXIBLE FEES & INCOME,REDACTED,REDACTED
06.05.2022,ADULT SOCIAL CARE,REDACTED PERSONAL DATA,"-1,219.00",MEM LTS 65+,DISCRETIONARY FLEXIBLE FEES & INCOME,REDACTED,REDACTED
06.05.2022,ADULT SOCIAL CARE,PEOPLEPLUS ILS,311.76,MEM LTS 65+,PAYMENTS TO CLIENTS (DIRECT PAYMENTS),2103473938,1000061886
06.05.2022,ADULT SOCIAL CARE,PEOPLEPLUS ILS,"1,108.52",MEM LTS 65+,PAYMENTS TO CLIENTS (DIRECT PAYMENTS),2103473493,1000061886
06.05.2022,ADULT SOCIAL CARE,PEOPLEPLUS ILS,"2,333.12",MEM LTS 65+,PAYMENTS TO CLIENTS (DIRECT PAYMENTS),2103473840,1000061886
06.05.2022,ADULT SOCIAL CARE,REDACTED PERSONAL DATA,"2,397.07",MEM LTS 65+,PAYMENTS TO CLIENTS (DIRECT PAYMENTS),REDACTED,REDACTED
06.05.2022,ADULT SOCIAL CARE,REDACTED PERSONAL DATA,"2,848.20",MEM LTS 65+,PAYMENTS TO CLIENTS (DIRECT PAYMENTS),REDACTED,REDACTED
06.05.2022,ADULT SOCIAL CARE,PEOPLEPLUS ILS,257.56,MH LTS 18-64,PAYMENTS TO CLIENTS (DIRECT PAYMENTS),2103473447,1000061886
06.05.2022,ADULT SOCIAL CARE,PEOPLEPLUS ILS,264.12,MH LTS 18-64,PAYMENTS TO CLIENTS (DIRECT PAYMENTS),2103474197,1000061886
06.05.2022,ADULT SOCIAL CARE,PEOPLEPLUS ILS,278.28,MH LTS 18-64,PAYMENTS TO CLIENTS (DIRECT PAYMENTS),2103473757,1000061886
06.05.2022,ADULT SOCIAL CARE,PEOPLEPLUS ILS,278.28,MH LTS 18-64,PAYMENTS TO CLIENTS (DIRECT PAYMENTS),2103474074,1000061886
06.05.2022,ADULT SOCIAL CARE,PEOPLEPLUS ILS,288,MH LTS 18-64,PAYMENTS TO CLIENTS (DIRECT PAYMENTS),2103473505,1000061886
06.05.2022,ADULT SOCIAL CARE,PEOPLEPLUS ILS,290.4,MH LTS 18-64,PAYMENTS TO CLIENTS (DIRECT PAYMENTS),2103473858,1000061886
06.05.2022,ADULT SOCIAL CARE,PEOPLEPLUS ILS,318,MH LTS 18-64,PAYMENTS TO CLIENTS (DIRECT PAYMENTS),2103473569,1000061886
06.05.2022,ADULT SOCIAL CARE,PEOPLEPLUS ILS,333.32,MH LTS 18-64,PAYMENTS TO CLIENTS (DIRECT PAYMENTS),2103473530,1000061886
06.05.2022,ADULT SOCIAL CARE,PEOPLEPLUS ILS,335.2,MH LTS 18-64,PAYMENTS TO CLIENTS (DIRECT PAYMENTS),2103474105,1000061886
06.05.2022,ADULT SOCIAL CARE,PEOPLEPLUS ILS,344,MH LTS 18-64,PAYMENTS TO CLIENTS (DIRECT PAYMENTS),2103473413,1000061886
06.05.2022,ADULT SOCIAL CARE,PEOPLEPLUS ILS,351,MH LTS 18-64,PAYMENTS TO CLIENTS (DIRECT PAYMENTS),2103473425,1000061886
06.05.2022,ADULT SOCIAL CARE,PEOPLEPLUS ILS,355.04,MH LTS 18-64,PAYMENTS TO CLIENTS (DIRECT PAYMENTS),2103473585,1000061886
06.05.2022,ADULT SOCIAL CARE,PEOPLEPLUS ILS,355.04,MH LTS 18-64,PAYMENTS TO CLIENTS (DIRECT PAYMENTS),2103473720,1000061886
06.05.2022,ADULT SOCIAL CARE,PEOPLEPLUS ILS,355.04,MH LTS 18-64,PAYMENTS TO CLIENTS (DIRECT PAYMENTS),2103474055,1000061886
06.05.2022,ADULT SOCIAL CARE,PEOPLEPLUS ILS,363.6,MH LTS 18-64,PAYMENTS TO CLIENTS (DIRECT PAYMENTS),2103473741,1000061886
06.05.2022,ADULT SOCIAL CARE,PEOPLEPLUS ILS,393.44,MH LTS 18-64,PAYMENTS TO CLIENTS (DIRECT PAYMENTS),2103473867,1000061886
06.05.2022,ADULT SOCIAL CARE,PEOPLEPLUS ILS,395.76,MH LTS 18-64,PAYMENTS TO CLIENTS (DIRECT PAYMENTS),2103473612,1000061886
06.05.2022,ADULT SOCIAL CARE,PEOPLEPLUS ILS,412,MH LTS 18-64,PAYMENTS TO CLIENTS (DIRECT PAYMENTS),2103473442,1000061886
06.05.2022,ADULT SOCIAL CARE,PEOPLEPLUS ILS,437.92,MH LTS 18-64,PAYMENTS TO CLIENTS (DIRECT PAYMENTS),2103474205,1000061886
06.05.2022,ADULT SOCIAL CARE,PEOPLEPLUS ILS,450,MH LTS 18-64,PAYMENTS TO CLIENTS (DIRECT PAYMENTS),2103474130,1000061886
06.05.2022,ADULT SOCIAL CARE,PEOPLEPLUS ILS,484.56,MH LTS 18-64,PAYMENTS TO CLIENTS (DIRECT PAYMENTS),2103474160,1000061886
06.05.2022,ADULT SOCIAL CARE,PEOPLEPLUS ILS,484.8,MH LTS 18-64,PAYMENTS TO CLIENTS (DIRECT PAYMENTS),2103473587,1000061886
06.05.2022,ADULT SOCIAL CARE,PEOPLEPLUS ILS,484.8,MH LTS 18-64,PAYMENTS TO CLIENTS (DIRECT PAYMENTS),2103473816,1000061886
06.05.2022,ADULT SOCIAL CARE,PEOPLEPLUS ILS,514.36,MH LTS 18-64,PAYMENTS TO CLIENTS (DIRECT PAYMENTS),2103474148,1000061886
06.05.2022,ADULT SOCIAL CARE,PEOPLEPLUS ILS,559.84,MH LTS 18-64,PAYMENTS TO CLIENTS (DIRECT PAYMENTS),2103473873,1000061886
06.05.2022,ADULT SOCIAL CARE,PEOPLEPLUS ILS,585.32,MH LTS 18-64,PAYMENTS TO CLIENTS (DIRECT PAYMENTS),2103473746,1000061886
06.05.2022,ADULT SOCIAL CARE,PEOPLEPLUS ILS,590.24,MH LTS 18-64,PAYMENTS TO CLIENTS (DIRECT PAYMENTS),2103474119,1000061886
06.05.2022,ADULT SOCIAL CARE,PEOPLEPLUS ILS,606,MH LTS 18-64,PAYMENTS TO CLIENTS (DIRECT PAYMENTS),2103473726,1000061886
06.05.2022,ADULT SOCIAL CARE,PEOPLEPLUS ILS,606,MH LTS 18-64,PAYMENTS TO CLIENTS (DIRECT PAYMENTS),2103474149,1000061886
06.05.2022,ADULT SOCIAL CARE,PEOPLEPLUS ILS,611.84,MH LTS 18-64,PAYMENTS TO CLIENTS (DIRECT PAYMENTS),2103474128,1000061886
06.05.2022,ADULT SOCIAL CARE,PEOPLEPLUS ILS,633.76,MH LTS 18-64,PAYMENTS TO CLIENTS (DIRECT PAYMENTS),2103473783,1000061886
06.05.2022,ADULT SOCIAL CARE,PEOPLEPLUS ILS,696.12,MH LTS 18-64,PAYMENTS TO CLIENTS (DIRECT PAYMENTS),2103473870,1000061886
06.05.2022,ADULT SOCIAL CARE,PEOPLEPLUS ILS,720.92,MH LTS 18-64,PAYMENTS TO CLIENTS (DIRECT PAYMENTS),2103473745,1000061886
06.05.2022,ADULT SOCIAL CARE,PEOPLEPLUS ILS,738.84,MH LTS 18-64,PAYMENTS TO CLIENTS (DIRECT PAYMENTS),2103474162,1000061886
06.05.2022,ADULT SOCIAL CARE,PEOPLEPLUS ILS,987.32,MH LTS 18-64,PAYMENTS TO CLIENTS (DIRECT PAYMENTS),2103473974,1000061886
06.05.2022,ADULT SOCIAL CARE,PEOPLEPLUS ILS,"1,175.40",MH LTS 18-64,PAYMENTS TO CLIENTS (DIRECT PAYMENTS),2103473743,1000061886
06.05.2022,ADULT SOCIAL CARE,PEOPLEPLUS ILS,"2,016.00",MH LTS 18-64,PAYMENTS TO CLIENTS (DIRECT PAYMENTS),2103473630,1000061886
06.05.2022,ADULT SOCIAL CARE,PEOPLEPLUS ILS,"2,321.60",MH LTS 18-64,PAYMENTS TO CLIENTS (DIRECT PAYMENTS),2103474218,1000061886
06.05.2022,ADULT SOCIAL CARE,REDACTED PERSONAL DATA,439.36,MH LTS 18-64,PAYMENTS TO CLIENTS (DIRECT PAYMENTS),REDACTED,REDACTED
06.05.2022,ADULT SOCIAL CARE,REDACTED PERSONAL DATA,328,MH LTS 18-64,PAYMENTS TO CLIENTS (DIRECT PAYMENTS),REDACTED,REDACTED
06.05.2022,ADULT SOCIAL CARE,REDACTED PERSONAL DATA,"2,730.24",MH LTS 18-64,PAYMENTS TO CLIENTS (DIRECT PAYMENTS),REDACTED,REDACTED
06.05.2022,ADULT SOCIAL CARE,PEOPLEPLUS ILS,355.04,MH LTS 65+,PAYMENTS TO CLIENTS (DIRECT PAYMENTS),2103473812,1000061886
06.05.2022,ADULT SOCIAL CARE,PEOPLEPLUS ILS,"1,208.60",MH LTS 65+,PAYMENTS TO CLIENTS (DIRECT PAYMENTS),2103473885,1000061886
06.05.2022,ADULT SOCIAL CARE,CHOICE SUPPORT,293.92,MH LTS 65+,SUPPORTED LIVING,2103474562,1104183
06.05.2022,ADULT SOCIAL CARE,SOUTHWARK CARERS,"66,750.00",OLDER PEOPLES HUBS,EXTERNAL AGENCIES AND BODIES,5902523709,1050893
06.05.2022,ADULT SOCIAL CARE,PEOPLEPLUS ILS,"1,092.16",PHB- SOUTHWARK CCG,RECOVERABLE COSTS INCL. HEALTH,2103473620,1000061886
06.05.2022,ADULT SOCIAL CARE,PEOPLEPLUS ILS,"1,484.00",PHB- SOUTHWARK CCG,RECOVERABLE COSTS INCL. HEALTH,2103474112,1000061886
06.05.2022,ADULT SOCIAL CARE,PEOPLEPLUS ILS,"1,555.80",PHB- SOUTHWARK CCG,RECOVERABLE COSTS INCL. HEALTH,2103473958,1000061886
06.05.2022,ADULT SOCIAL CARE,PEOPLEPLUS ILS,"4,137.92",PHB- SOUTHWARK CCG,RECOVERABLE COSTS INCL. HEALTH,2103473406,1000061886
06.05.2022,ADULT SOCIAL CARE,REDACTED PERSONAL DATA,"9,079.20",PHB- SOUTHWARK CCG,RECOVERABLE COSTS INCL. HEALTH,REDACTED,REDACTED
06.05.2022,ADULT SOCIAL CARE,REDACTED PERSONAL DATA,"2,848.20",PHB- SOUTHWARK CCG,RECOVERABLE COSTS INCL. HEALTH,REDACTED,REDACTED
06.05.2022,ADULT SOCIAL CARE,REDACTED PERSONAL DATA,"4,641.36",PHB- SOUTHWARK CCG,RECOVERABLE COSTS INCL. HEALTH,REDACTED,REDACTED
06.05.2022,ADULT SOCIAL CARE,REDACTED PERSONAL DATA,"1,514.16",PHB- SOUTHWARK CCG,RECOVERABLE COSTS INCL. HEALTH,REDACTED,REDACTED
06.05.2022,ADULT SOCIAL CARE,REDACTED PERSONAL DATA,"4,120.80",PHB- SOUTHWARK CCG,RECOVERABLE COSTS INCL. HEALTH,REDACTED,REDACTED
06.05.2022,ADULT SOCIAL CARE,REDACTED PERSONAL DATA,"2,549.52",PHB- SOUTHWARK CCG,RECOVERABLE COSTS INCL. HEALTH,REDACTED,REDACTED
06.05.2022,ADULT SOCIAL CARE,REDACTED PERSONAL DATA,"7,105.32",PHB- SOUTHWARK CCG,RECOVERABLE COSTS INCL. HEALTH,REDACTED,REDACTED
06.05.2022,ADULT SOCIAL CARE,PEOPLEPLUS ILS,-454.84,PHY LTS 18-64,DISCRETIONARY FLEXIBLE FEES & INCOME,2103473614,1000061886
06.05.2022,ADULT SOCIAL CARE,PEOPLEPLUS ILS,-415.4,PHY LTS 18-64,DISCRETIONARY FLEXIBLE FEES & INCOME,2103473707,1000061886
06.05.2022,ADULT SOCIAL CARE,PEOPLEPLUS ILS,-334.92,PHY LTS 18-64,DISCRETIONARY FLEXIBLE FEES & INCOME,2103473604,1000061886
06.05.2022,ADULT SOCIAL CARE,PEOPLEPLUS ILS,-304.56,PHY LTS 18-64,DISCRETIONARY FLEXIBLE FEES & INCOME,2103473799,1000061886
06.05.2022,ADULT SOCIAL CARE,REDACTED PERSONAL DATA,-363.84,PHY LTS 18-64,DISCRETIONARY FLEXIBLE FEES & INCOME,REDACTED,REDACTED
06.05.2022,ADULT SOCIAL CARE,REDACTED PERSONAL DATA,-521.52,PHY LTS 18-64,DISCRETIONARY FLEXIBLE FEES & INCOME,REDACTED,REDACTED
06.05.2022,ADULT SOCIAL CARE,REDACTED PERSONAL DATA,-404.58,PHY LTS 18-64,DISCRETIONARY FLEXIBLE FEES & INCOME,REDACTED,REDACTED
06.05.2022,ADULT SOCIAL CARE,REDACTED PERSONAL DATA,"2,191.68",PHY LTS 18-64,DISCRETIONARY FLEXIBLE FEES & INCOME,REDACTED,REDACTED
06.05.2022,ADULT SOCIAL CARE,REDACTED PERSONAL DATA,-331.64,PHY LTS 18-64,DISCRETIONARY FLEXIBLE FEES & INCOME,REDACTED,REDACTED
06.05.2022,ADULT SOCIAL CARE,REDACTED PERSONAL DATA,-322.4,PHY LTS 18-64,DISCRETIONARY FLEXIBLE FEES & INCOME,REDACTED,REDACTED
06.05.2022,ADULT SOCIAL CARE,PEOPLEPLUS ILS,-794.1,PHY LTS 18-64,PAYMENTS TO CLIENTS (DIRECT PAYMENTS),2103473698,1000061886
06.05.2022,ADULT SOCIAL CARE,PEOPLEPLUS ILS,-516.61,PHY LTS 18-64,PAYMENTS TO CLIENTS (DIRECT PAYMENTS),2103473615,1000061886
06.05.2022,ADULT SOCIAL CARE,PEOPLEPLUS ILS,260.12,PHY LTS 18-64,PAYMENTS TO CLIENTS (DIRECT PAYMENTS),2103474141,1000061886
06.05.2022,ADULT SOCIAL CARE,PEOPLEPLUS ILS,261.04,PHY LTS 18-64,PAYMENTS TO CLIENTS (DIRECT PAYMENTS),2103474207,1000061886
06.05.2022,ADULT SOCIAL CARE,PEOPLEPLUS ILS,342.16,PHY LTS 18-64,PAYMENTS TO CLIENTS (DIRECT PAYMENTS),2103473754,1000061886
06.05.2022,ADULT SOCIAL CARE,PEOPLEPLUS ILS,378.76,PHY LTS 18-64,PAYMENTS TO CLIENTS (DIRECT PAYMENTS),2103474044,1000061886
06.05.2022,ADULT SOCIAL CARE,PEOPLEPLUS ILS,402.76,PHY LTS 18-64,PAYMENTS TO CLIENTS (DIRECT PAYMENTS),2103473435,1000061886
06.05.2022,ADULT SOCIAL CARE,PEOPLEPLUS ILS,478.52,PHY LTS 18-64,PAYMENTS TO CLIENTS (DIRECT PAYMENTS),2103473449,1000061886
06.05.2022,ADULT SOCIAL CARE,PEOPLEPLUS ILS,502.52,PHY LTS 18-64,PAYMENTS TO CLIENTS (DIRECT PAYMENTS),2103473616,1000061886
06.05.2022,ADULT SOCIAL CARE,PEOPLEPLUS ILS,510.6,PHY LTS 18-64,PAYMENTS TO CLIENTS (DIRECT PAYMENTS),2103473908,1000061886
06.05.2022,ADULT SOCIAL CARE,PEOPLEPLUS ILS,530.24,PHY LTS 18-64,PAYMENTS TO CLIENTS (DIRECT PAYMENTS),2103474139,1000061886
06.05.2022,ADULT SOCIAL CARE,PEOPLEPLUS ILS,590.84,PHY LTS 18-64,PAYMENTS TO CLIENTS (DIRECT PAYMENTS),2103474045,1000061886
06.05.2022,ADULT SOCIAL CARE,PEOPLEPLUS ILS,606,PHY LTS 18-64,PAYMENTS TO CLIENTS (DIRECT PAYMENTS),2103474153,1000061886
